{"text_format":"1","workbook":"xlsx","n_sheets":2,"sheets":["Anexo Cuantitativo","Pbr's"],"not_rendered":{"charts":0,"images":0,"macros":1,"external_links":0,"defined_names":8,"comments":0,"pivot_tables":0},"unopened":[],"bounds":{"document_bytes":16777216,"sheet_cells":100000,"rows_first":2000,"rows_last":500,"rows_between":2000,"halvings":0,"cell_chars":16384,"cell_head_chars":4096},"cells_cut":0,"cells_raw":0,"read":"whole","date_system":"1900"}

{"sheet":"Anexo Cuantitativo","index":0,"n_rows":181,"n_cols":16,"rows_kept":181,"cut":false,"hidden":false,"merged":[[9,1,10,1],[9,2,10,2],[9,3,10,3],[9,4,10,4],[9,5,10,5],[9,6,10,6],[9,7,10,7],[9,12,10,12],[9,13,10,13],[0,3,0,7],[3,1,3,13],[4,1,4,2],[4,3,4,13],[5,1,5,2],[5,3,5,13],[6,1,6,2],[6,3,6,13],[7,1,8,13],[17,1,20,1],[17,3,17,13],[18,3,18,13],[19,3,19,13],[20,3,20,13],[12,3,12,13],[13,3,13,13],[14,3,14,13],[15,3,15,13],[12,1,15,1],[27,1,30,1],[27,3,27,13],[28,3,28,13],[29,3,29,13],[30,3,30,13],[22,1,25,1],[22,3,22,13],[23,3,23,13],[24,3,24,13],[25,3,25,13],[37,1,40,1],[37,3,37,13],[38,3,38,13],[39,3,39,13],[40,3,40,13],[32,1,35,1],[32,3,32,13],[33,3,33,13],[34,3,34,13],[35,3,35,13],[47,1,50,1],[47,3,47,13],[48,3,48,13],[50,3,50,13],[42,1,45,1],[42,3,42,13],[43,3,43,13],[44,3,44,13],[45,3,45,13],[49,3,49,13],[57,1,60,1],[57,3,57,13],[58,3,58,13],[59,3,59,13],[60,3,60,13],[52,1,55,1],[52,3,52,13],[53,3,53,13],[54,3,54,13],[55,3,55,13],[67,1,70,1],[67,3,67,13],[68,3,68,13],[69,3,69,13],[70,3,70,13],[62,1,65,1],[62,3,62,13],[63,3,63,13],[64,3,64,13],[65,3,65,13],[77,1,80,1],[77,3,77,13],[78,3,78,13],[79,3,79,13],[80,3,80,13],[72,1,75,1],[72,3,72,13],[73,3,73,13],[74,3,74,13],[75,3,75,13],[87,1,90,1],[87,3,87,13],[88,3,88,13],[89,3,89,13],[90,3,90,13],[82,1,85,1],[82,3,82,13],[83,3,83,13],[84,3,84,13],[85,3,85,13],[97,1,100,1],[97,3,97,13],[98,3,98,13],[99,3,99,13],[100,3,100,13],[92,1,95,1],[92,3,92,13],[93,3,93,13],[94,3,94,13],[95,3,95,13],[107,1,110,1],[107,3,107,13],[108,3,108,13],[109,3,109,13],[110,3,110,13],[102,1,105,1],[102,3,102,13],[103,3,103,13],[104,3,104,13],[105,3,105,13],[117,1,120,1],[117,3,117,13],[118,3,118,13],[119,3,119,13],[120,3,120,13],[112,1,115,1],[112,3,112,13],[113,3,113,13],[114,3,114,13],[115,3,115,13],[127,1,130,1],[127,3,127,13],[128,3,128,13],[129,3,129,13],[130,3,130,13],[122,1,125,1],[122,3,122,13],[123,3,123,13],[124,3,124,13],[125,3,125,13],[137,1,140,1],[137,3,137,13],[138,3,138,13],[139,3,139,13],[140,3,140,13],[132,1,135,1],[132,3,132,13],[133,3,133,13],[134,3,134,13],[135,3,135,13],[147,1,150,1],[147,3,147,13],[148,3,148,13],[149,3,149,13],[150,3,150,13],[142,1,145,1],[142,3,142,13],[143,3,143,13],[144,3,144,13],[145,3,145,13],[157,1,160,1],[157,3,157,13],[158,3,158,13],[159,3,159,13],[160,3,160,13],[152,1,155,1],[152,3,152,13],[153,3,153,13],[154,3,154,13],[155,3,155,13],[167,1,170,1],[167,3,167,13],[168,3,168,13],[169,3,169,13],[170,3,170,13],[162,1,165,1],[162,3,162,13],[163,3,163,13],[164,3,164,13],[165,3,165,13],[177,1,180,1],[177,3,177,13],[178,3,178,13],[179,3,179,13],[180,3,180,13],[172,1,175,1],[172,3,172,13],[173,3,173,13],[174,3,174,13],[175,3,175,13]]}
[null,null,null,"FORMATO DE REPORTES TRIMESTRALES"]
[]
[]
[null,"REPORTES TRIMESTRALES AVANCE CUANTITATIVO Y CUALITATIVO"]
[null,"NOMBRE DE LA SECRETARIA: ",null,"INMUJERES",null,null,null,null,null,null,null,null,null,null,null," "]
[null,"NOMBRE DE LA DIRECCIÓN O JEFATURA: ",null,"Políticas Publicas "]
[null,"TRIMESTRE REPORTADO:",null,"DEL 01 DE ABRIL AL 30 DE JUNIO DEL 2026"]
[null,"REGISTRO DE AVANCES DE PBR 2025-2026"]
[]
[null,null,"NOMBRE DE LA PROPUESTA","DIMENSIÓN A MEDIR (Eficiencia/Eficacia/  Economía/Calidad)","Nombre Indicador (Indicador Operativo)","UNIDAD DE MEDIDA ","LÍNEA BASE"," META ANUAL (ABSOLUTA)","AVANCE 1","AVANCE 2","AVANCE 3","AVANCE 4","AVANCE ACUMULADO EN PORCENTAJE","NOTAS,COMENTARIOS O CORRECCIONES QUE NECESITEN HACER"]
[null,null,null,null,null,null,null,null,"Primer Trimestre             (octubre-diciembre 2025)                        "," Segundo Trimestre           (enero-marzo 2026)                       ","Tercer Trimestre    (abril-junio 2026)                       "," Cuarto Trimestre (julio-septiembre 2026)                       "]
[null,1,{"$f":"IFERROR(VLOOKUP($D$5&$D$6&B12,'Pbr''s'!B:W,5,0),\" \")","v":"Acciones Para Una Vida Libre De Violencia"},"Eficacia",{"$f":"IFERROR(VLOOKUP($D$5&$D$6&B12&C12,'Pbr''s'!A:W,7,0),\" \")","v":"Porcentaje De Atenciones De Primer Contacto, Realizadas"},{"$f":"IFERROR(VLOOKUP($D$5&$D$6&B12&C12,'Pbr''s'!A:W,8,0),\" \")","v":"Número De Atenciones Realizadas"},{"$f":"IFERROR(VLOOKUP($D$5&$D$6&B12&C12,'Pbr''s'!A:W,9,0),\" \")","v":430},{"$f":"IFERROR(VLOOKUP($D$5&$D$6&B12&C12,'Pbr''s'!A:W,10,0),\" \")","v":500},117,147,79,null,{"$f":"(SUM(I12:L12)/H12)","v":0.68600000000000005}," "]
[null,"DESCRIPCIÓN DE LAS ACTIVIDADES REALIZADAS  (REDACTAR SÓLO LO REALIZADO EN TIEMPO PASADO) ","Narrativa de trimestre Octubre-Diciembre:                                                                                                                                                                                                                                                                                                                                                                                                                                                                                                                                                                                             ","Durante el periodo que se reporta, el Instituto brindó 117 atenciones de primer contacto, las cuales se desarrollaron bajo un enfoque de atención integral, garantizando el acceso a asesoría jurídica, atención psicológica y acompañamiento de trabajo social. Estas acciones permitieron identificar oportunamente las necesidades específicas de cada usuaria, así como establecer rutas de atención y canalización adecuadas. El resultado contribuye al fortalecimiento del acceso a servicios especializados y a la protección de los derechos de las mujeres atendidas."]
[null,null,"Narrativa de trimestre Enero-marzo:                                                                                                                                                                                                                                                                                                                                                                                                                                                                                                                                                                                                                                                                                                               ","Durante el periodo que se reporta, el Instituto brindó 147 atenciones de primer contacto, mismas que se desarrollaron bajo un enfoque de atención integral, garantizando el acceso a asesoría jurídica, atención psicológica y acompañamiento de trabajo social. Estas acciones permitieron identificar de manera oportuna las necesidades específicas de cada usuaria, así como establecer rutas de atención y canalización adecuadas. El resultado contribuye al fortalecimiento del acceso a servicios especializados y a la protección de los derechos de las mujeres atendidas."]
[null,null,"Narrativa de trimestre Abril-junio:                                                                                                                                                                                                                                                                                                                                                                                                                                                                                                                                                                                                                                                                                                                                                                                                                                                                                                                                                                                                                                               ","Durante el periodo que se reporta, el Instituto brindó 79 atenciones de primer contacto, mismas que se desarrollaron bajo un enfoque de atención integral, garantizando el acceso a asesoría jurídica, atención psicológica y acompañamiento de trabajo social. Estas acciones permitieron identificar de manera oportuna las necesidades específicas de cada usuaria, así como establecer rutas de atención y canalización adecuadas. El resultado contribuye al fortalecimiento del acceso a servicios especializados y a la protección de los derechos de las mujeres atendidas."]
[null,null,"Narrativa de trimestre Julio-sept:"]
[null,2,{"$f":"IFERROR(VLOOKUP($D$5&$D$6&B17,'Pbr''s'!B:W,5,0),\" \")","v":"Acciones Para Una Vida Libre De Violencia"},"Eficacia",{"$f":"IFERROR(VLOOKUP($D$5&$D$6&B17&C17,'Pbr''s'!A:W,7,0),\" \")","v":"Porcentaje De Acciones De Prevención De La Violencia De Género En La Comunidad, Realizadas"},{"$f":"IFERROR(VLOOKUP($D$5&$D$6&B17&C17,'Pbr''s'!A:W,8,0),\" \")","v":"Número De Acciones Realizadas"},{"$f":"IFERROR(VLOOKUP($D$5&$D$6&B17&C17,'Pbr''s'!A:W,9,0),\" \")","v":40},{"$f":"IFERROR(VLOOKUP($D$5&$D$6&B17&C17,'Pbr''s'!A:W,10,0),\" \")","v":45},10,13,7,null,{"$f":"(SUM(I17:L17)/H17)","v":0.66666666666666663}]
[null,"DESCRIPCIÓN DE LAS ACTIVIDADES REALIZADAS  (REDACTAR SÓLO LO REALIZADO EN TIEMPO PASADO) ","Narrativa de trimestre Octubre-Diciembre:                                                                                                                                                                                                                                                                                                                                                                                                                                                                                                                                                                                             ","Durante el periodo que se reporta se llevaron a cabo 10 acciones de prevención de la violencia de género, mediante capacitaciones y actividades comunitarias con enfoque preventivo y de sensibilización. Estas acciones consistieron en: 1) la participación constante del Instituto en las Ferias de Paz realizadas en diversas comunidades de San Pedro Tlaquepaque; 2) la participación permanente en la Mesa de Género de la Secretaría de Gobernación, que sesiona de manera semanal; 3) una charla sobre consentimiento dirigida al estudiantado de la Preparatoria Santa Anita; 4) la realización de un taller masivo de defensa personal en el marco del 25 de noviembre (25N); 5) la actividad “Niñas por un mundo libre de violencia” en la Primaria Vicente Guerrero; 6) un taller de defensa personal en la delegación Las Juntas; 7) un taller de defensa personal en Toluquilla; 8) un taller mencionado en San Martín de las Flores; 9) una capacitación sobre violencia de género dirigida a personal de la Subdirección de Profesionalización y Acreditación Policial; y 10) talleres de defensa personal en las delegaciones de Tateposco y Santa Anita. En conjunto, estas acciones contribuyeron al fortalecimiento de la prevención primaria y al impacto comunitario del Instituto en la reducción de factores de riesgo asociados a la violencia de género."]
[null,null,"Narrativa de trimestre Enero-marzo:                                                                                                                                                                                                                                                                                                                                                                                                                                                                                                                                                                                                                                                                                                               ","Durante el periodo que se reporta, se llevaron a cabo 13 acciones de prevención de la violencia de género en la comunidad, orientadas a la sensibilización y fortalecimiento de capacidades en distintos sectores. Destacan 9 intervenciones dirigidas a personal de la Secretaría de Seguridad y Protección Ciudadana, abordando temas como feminicidio, violencia de género, violencia familiar y violencia sexual en espacios públicos. Asimismo, se realizaron actividades en la Universidad UNIVER, la empresa AMPM y la empresa Arrow, así como en la Preparatoria Regional de Santa Anita de la UdeG, abordando temas como rutas de atención ante la violencia, tipos y modalidades de violencia, defensa personal, amor romántico y violencias invisibles. De igual forma, al interior del Instituto se impartió capacitación en materia de violencia de género, contribuyendo al fortalecimiento institucional y comunitario en la prevención de estas problemáticas."]
[null,null,"Narrativa de trimestre Abril-junio:                                                                                                                                                                                                                                                                                                                                                                                                                                                                                                                                                                                                                                                                                                                                                                                                                                                                                                                                                                                                                                               ","Durante el periodo que se reporta, se llevaron a cabo 7 acciones de prevención de la violencia de género en la comunidad. Destacando intervenciones a Cadetes de la subsecretaria de profesionalización y acreditación policial, empresa Lavartex y Coca cola sede Toluquilla con inteligencia emocional y resilencia, límites en las relaciones, los si los no, los nunca:hablemos del consentimiento. Asimismo se realizaron actividades en colonias con el tema de Autoestima y amor propio, el amor también se cuida, salud emocional de mamá en las colonias de Lomas de San Miguel, Campesino, Cofradía y el cerro del cuatro con el objetivo de seguir las estrategias de prevención de las violencias de género."]
[null,null,"Narrativa de trimestre Julio-sept:"]
[null,3,{"$f":"IFERROR(VLOOKUP($D$5&$D$6&B22,'Pbr''s'!B:W,5,0),\" \")","v":"Acciones Para Una Vida Libre De Violencia"},"Eficacia",{"$f":"IFERROR(VLOOKUP($D$5&$D$6&B22&C22,'Pbr''s'!A:W,7,0),\" \")","v":"Porcentaje De Personas Beneficiadas Con Las Acciones De Prevención, Atención Y Profesionalización En Materia De Violencia Contra Las Mujeres."},{"$f":"IFERROR(VLOOKUP($D$5&$D$6&B22&C22,'Pbr''s'!A:W,8,0),\" \")","v":"Número De Personas Beneficiarias"},{"$f":"IFERROR(VLOOKUP($D$5&$D$6&B22&C22,'Pbr''s'!A:W,9,0),\" \")","v":1500},{"$f":"IFERROR(VLOOKUP($D$5&$D$6&B22&C22,'Pbr''s'!A:W,10,0),\" \")","v":2500},890,448,472,null,{"$f":"(SUM(I22:L22)/H22)","v":0.72399999999999998}]
[null,"DESCRIPCIÓN DE LAS ACTIVIDADES REALIZADAS  (REDACTAR SÓLO LO REALIZADO EN TIEMPO PASADO) ","Narrativa de trimestre Octubre-Diciembre:                                                                                                                                                                                                                                                                                                                                                                                                                                                                                                                                                                                             ","En atención al indicador “Porcentaje de Personas Beneficiadas con las Acciones de Prevención, Atención y Profesionalización en Materia de Violencia contra las Mujeres”, durante el periodo que se reporta se registró un total de 890 personas beneficiadas. Este resultado se deriva de la implementación de 10 acciones de prevención de la violencia de género, entre ellas la participación en Ferias de Paz, la intervención permanente en la Mesa de Género de la Secretaría de Gobernación, talleres y charlas en centros educativos, capacitaciones a personal policial y actividades comunitarias de defensa personal, incluyendo el evento masivo realizado en el marco del 25 de noviembre. A este impacto se suman las mujeres usuarias atendidas en el servicio de primer contacto, quienes recibieron atención integral por parte del Instituto, fortaleciendo la sensibilización, la prevención y el acceso a servicios especializados."]
[null,null,"Narrativa de trimestre Enero-marzo:                                                                                                                                                                                                                                                                                                                                                                                                                                                                                                                                                                                                                                                                                                               ","Durante el periodo que se reporta, se registró un total de 449 personas beneficiadas a través de acciones de prevención, atención y profesionalización en materia de violencia contra las mujeres. Este resultado integra tanto la participación en capacitaciones y actividades de sensibilización en temas de violencia de género, como la atención brindada a 147 usuarias mediante servicios de primer contacto. Lo anterior contribuye al fortalecimiento de capacidades comunitarias e institucionales, así como al acceso oportuno a servicios especializados para la atención de la violencia contra las mujeres."]
[null,null,"Narrativa de trimestre Abril-junio:                                                                                                                                                                                                                                                                                                                                                                                                                                                                                                                                                                                                                                                                                                                                                                                                                                                                                                                                                                                                                                               ","Durante el periodo que se reporta , se registró un total de 472 personas beneficiadas a través de acciones de prevención, atención y profesionalización en materia de violencia contra las mujeres. Este resultado integra tanto la participación en capacitaciones y actividades de sensibilización en temas de violencia de género, como la atención brindada a 79 usuarias mediante servicios de primer contacto. Lo anterior contribuye al fortalecimiento de capacidades comunitarias e institucionales, así como al acceso oportuno a servicios especializados para la atención de la violencia contra las mujeres."]
[null,null,"Narrativa de trimestre Julio-sept:"]
[null,4,{"$f":"IFERROR(VLOOKUP($D$5&$D$6&B27,'Pbr''s'!B:W,5,0),\" \")","v":"Acciones Para Una Vida Libre De Violencia"},"Eficacia",{"$f":"IFERROR(VLOOKUP($D$5&$D$6&B27&C27,'Pbr''s'!A:W,7,0),\" \")","v":"Porcentaje De Eventos Conmemorativos De Fechas O Acciones Contra La Violencia De Género, Realizados"},{"$f":"IFERROR(VLOOKUP($D$5&$D$6&B27&C27,'Pbr''s'!A:W,8,0),\" \")","v":"Número De Eventos Realizados"},{"$f":"IFERROR(VLOOKUP($D$5&$D$6&B27&C27,'Pbr''s'!A:W,9,0),\" \")","v":1},{"$f":"IFERROR(VLOOKUP($D$5&$D$6&B27&C27,'Pbr''s'!A:W,10,0),\" \")","v":1},1,0,0,null,{"$f":"(SUM(I27:L27)/H27)","v":1}]
[null,"DESCRIPCIÓN DE LAS ACTIVIDADES REALIZADAS  (REDACTAR SÓLO LO REALIZADO EN TIEMPO PASADO) ","Narrativa de trimestre Octubre-Diciembre:                                                                                                                                                                                                                                                                                                                                                                                                                                                                                                                                                                                             ","En el marco de las acciones de prevención de las violencias contra las mujeres, se llevó a cabo un evento conmemorativo del 25 de noviembre, consistente en una clase masiva de defensa personal, orientada a fortalecer las capacidades de autoprotección y la confianza de las participantes. Esta actividad tuvo como objetivo sensibilizar, prevenir y promover herramientas prácticas para la seguridad personal, contribuyendo a la construcción de entornos más seguros. La acción se enmarca en la estrategia institucional de prevención primaria y comunitaria de la violencia de género."]
[null,null,"Narrativa de trimestre Enero-marzo:                                                                                                                                                                                                                                                                                                                                                                                                                                                                                                                                                                                                                                                                                                               ","Durante este periodo no aplica, ya que nuestro evento se realiza en marco del 25 de noviembre dia de la erradiación de la violencia contra las mujeres y niñas."]
[null,null,"Narrativa de trimestre Abril-junio:                                                                                                                                                                                                                                                                                                                                                                                                                                                                                                                                                                                                                                                                                                                                                                                                                                                                                                                                                                                                                                               ","Durante este periodo no aplica, ya que nuestro evento se realiza en marco del 25 de noviembre dia de la erradiación de la violencia contra las mujeres y niñas."]
[null,null,"Narrativa de trimestre Julio-sept:"]
[null,5,{"$f":"IFERROR(VLOOKUP($D$5&$D$6&B32,'Pbr''s'!B:W,5,0),\" \")","v":"Acciones Por La Igualdad Sustantiva"},"Eficacia",{"$f":"IFERROR(VLOOKUP($D$5&$D$6&B32&C32,'Pbr''s'!A:W,7,0),\" \")","v":"Porcentaje De Personas Beneficiadas Por Las Acciones De Promoción"},{"$f":"IFERROR(VLOOKUP($D$5&$D$6&B32&C32,'Pbr''s'!A:W,8,0),\" \")","v":"Número De Personas Beneficiadas"},{"$f":"IFERROR(VLOOKUP($D$5&$D$6&B32&C32,'Pbr''s'!A:W,9,0),\" \")","v":1500},{"$f":"IFERROR(VLOOKUP($D$5&$D$6&B32&C32,'Pbr''s'!A:W,10,0),\" \")","v":2500},1011,548,393,null,{"$f":"(SUM(I32:L32)/H32)","v":0.78080000000000005}]
[null,"DESCRIPCIÓN DE LAS ACTIVIDADES REALIZADAS  (REDACTAR SÓLO LO REALIZADO EN TIEMPO PASADO) ","Narrativa de trimestre Octubre-Diciembre:                                                                                                                                                                                                                                                                                                                                                                                                                                                                                                                                                                                             ","En relación con el indicador “Porcentaje de Personas Beneficiadas por las Acciones de Promoción”, durante el periodo que se informa el área de Capacitación impactó a un total de 1,011 personas, mediante la implementación de acciones formativas dirigidas a la promoción de la igualdad, la prevención de las violencias y el fortalecimiento de capacidades comunitarias. Asimismo, se realizó la actualización del catálogo de capacitación, incorporando temáticas de interés para la población de San Pedro Tlaquepaque, lo que permitió asegurar la pertinencia social de los contenidos y ampliar el alcance de las acciones institucionales."]
[null,null,"Narrativa de trimestre Enero-marzo:                                                                                                                                                                                                                                                                                                                                                                                                                                                                                                                                                                                                                                                                                                               ","Durante el periodo que se reporta, se registró un total de 548 personas beneficiadas a través de acciones de promoción en materia de prevención de la violencia contra las mujeres, derivadas del trabajo del área de capacitación. Estas acciones se desarrollaron en espacios comunitarios, educativos e institucionales mediante ferias de la paz, actividades lúdicas, rallies, así como dinámicas de sensibilización, que permitieron acercar información a la población sobre igualdad de género, derechos de las mujeres y prevención de la violencia.\n\nAsimismo, se abordaron temáticas como perspectiva de género, relaciones sanas, amor romántico, construcción de la identidad, consentimiento y autonomía, fomentando la reflexión y el reconocimiento de conductas que pueden derivar en violencia. Estas acciones contribuyen al fortalecimiento de una cultura preventiva, al promover entornos más informados, participativos y conscientes dentro de la comunidad."]
[null,null,"Narrativa de trimestre Abril-junio:                                                                                                                                                                                                                                                                                                                                                                                                                                                                                                                                                                                                                                                                                                                                                                                                                                                                                                                                                                                                                                               ","Durante el periodo que se presenta, se registro un total 393 personas beneficiadas a través de acciones en materia de prevención de la violencia contra las mujeres, estas acciones se abordan en centros educativos e institucionales mediante ferias de la paz, mesas de trabajo, que permiten informar a la población, sobre de igualdad de género, derechos de las mujeres y prevención de la violencia."]
[null,null,"Narrativa de trimestre Julio-sept:"]
[null,6,{"$f":"IFERROR(VLOOKUP($D$5&$D$6&B37,'Pbr''s'!B:W,5,0),\" \")","v":"Acciones Por La Igualdad Sustantiva"},"Eficacia",{"$f":"IFERROR(VLOOKUP($D$5&$D$6&B37&C37,'Pbr''s'!A:W,7,0),\" \")","v":"Porcentaje De Eventos Conmemorativos Para Promover Y Reconocer Los Derechos De Las Mujeres En Su Diversidad, Realizados"},{"$f":"IFERROR(VLOOKUP($D$5&$D$6&B37&C37,'Pbr''s'!A:W,8,0),\" \")","v":"Número De Eventos Realizados  "},{"$f":"IFERROR(VLOOKUP($D$5&$D$6&B37&C37,'Pbr''s'!A:W,9,0),\" \")","v":1},{"$f":"IFERROR(VLOOKUP($D$5&$D$6&B37&C37,'Pbr''s'!A:W,10,0),\" \")","v":1},0,1,0,null,{"$f":"(SUM(I37:L37)/H37)","v":1}]
[null,"DESCRIPCIÓN DE LAS ACTIVIDADES REALIZADAS  (REDACTAR SÓLO LO REALIZADO EN TIEMPO PASADO) ","Narrativa de trimestre Octubre-Diciembre:                                                                                                                                                                                                                                                                                                                                                                                                                                                                                                                                                                                             ","No hubo eventos conmemorativos este trismestre, dado que el evento principal que el instituto realiza para esto se lleva a cabo en marzo."]
[null,null,"Narrativa de trimestre Enero-marzo:                                                                                                                                                                                                                                                                                                                                                                                                                                                                                                                                                                                                                                                                                                               ","En el marco del 8 de marzo, Día Internacional de las Mujeres, se llevó a cabo en la delegación de San Martín de las Flores (1) un acto simbólico de iluminación del edificio delegacional y el kiosco de la plaza principal. Esta acción tuvo como objetivo visibilizar la conmemoración y promover la reflexión colectiva sobre la importancia de los derechos de las mujeres. Asimismo, se fortaleció la presencia institucional en el territorio mediante actividades de sensibilización dirigidas a la comunidad.\n"]
[null,null,"Narrativa de trimestre Abril-junio:                                                                                                                                                                                                                                                                                                                                                                                                                                                                                                                                                                                                                                                                                                                                                                                                                                                                                                                                                                                                                                               ","No hubo eventos conmemorativos este trismestre, dado que el evento principal que el instituto se llevo a cabo en marzo."]
[null,null,"Narrativa de trimestre Julio-sept:"]
[null,7,{"$f":"IFERROR(VLOOKUP($D$5&$D$6&B42,'Pbr''s'!B:W,5,0),\" \")","v":"Visión Transversal De La Perspectiva De Género."},"Eficacia",{"$f":"IFERROR(VLOOKUP($D$5&$D$6&B42&C42,'Pbr''s'!A:W,7,0),\" \")","v":"Porcentaje De Acciones Con Perspectiva De Género Reportadas."},{"$f":"IFERROR(VLOOKUP($D$5&$D$6&B42&C42,'Pbr''s'!A:W,8,0),\" \")","v":"Número De Acciones Reportadas"},{"$f":"IFERROR(VLOOKUP($D$5&$D$6&B42&C42,'Pbr''s'!A:W,9,0),\" \")","v":30},{"$f":"IFERROR(VLOOKUP($D$5&$D$6&B42&C42,'Pbr''s'!A:W,10,0),\" \")","v":35},9,12,8,null,{"$f":"(SUM(I42:L42)/H42)","v":0.82857142857142863}]
[null,"DESCRIPCIÓN DE LAS ACTIVIDADES REALIZADAS  (REDACTAR SÓLO LO REALIZADO EN TIEMPO PASADO) ","Narrativa de trimestre Octubre-Diciembre:                                                                                                                                                                                                                                                                                                                                                                                                                                                                                                                                                                                             ","En relación con el indicador “Porcentaje de Acciones con Perspectiva de Género Reportadas”, durante el periodo evaluado se implementaron y reportaron 9 acciones con enfoque de género, las cuales fueron: (1) el taller Niñas por la Igualdad; (2) la charla Un minuto de prevención, una vida de esperanza realizada en CUA Tlaquepaque de la Universidad de Guadalajara; (3) la misma charla impartida en la Universidad Tecnológica de Guadalajara (UTEG); (4) el taller de Desarrollo Humano en la Preparatoria 22; (5) el taller de Sororidad en la empresa Lavartex; (6) el taller de Desarrollo Humano en la Secundaria 91; (7) la capacitación en Perspectiva de Género en la Subdirección de Profesionalización y Acreditación Policial; (8) el taller de Roles y Estereotipos de Género en la misma Subdirección; y (9) la campaña de difusión de los servicios del Instituto en el Hospital de PEMEX Tlaquepaque. Estas acciones fortalecen la transversalización de la perspectiva de género en ámbitos educativos, laborales, comunitarios, institucionales y de salud, así como la coordinación interinstitucional para la prevención y atención de las violencias contra las mujeres."]
[null,null,"Narrativa de trimestre Enero-marzo:                                                                                                                                                                                                                                                                                                                                                                                                                                                                                                                                                                                                                                                                                                               ","En relación con el indicador, durante el periodo de enero a marzo se implementaron y reportaron 12 acciones con enfoque de género, las cuales fueron: Actuar con perspectiva de género, Construcción de identidad, Sororidad y Affidamento, Acciones a seguir en casos de violencia de género. "]
[null,null,"Narrativa de trimestre Abril-junio:                                                                                                                                                                                                                                                                                                                                                                                                                                                                                                                                                                                                                                                                                                                                                                                                                                                                                                                                                                                                                                               ","En atención con el indicador, se implementaron y reportaron 8 acciones con enfoque de género, las cuales fueron: Hostigamiento y acoso sexual impartida en la empresa AMPM Y DIMEO,Límites en las relaciones en la empresa Lavartex, Prevención del Feminicidio a cadetes, Violencia Dígital a la empresa Lavartex y Masculinidades en Cecytej Plantel San Pedro Tlaquepaque "]
[null,null,"Narrativa de trimestre Julio-sept:"]
[null,8,{"$f":"IFERROR(VLOOKUP($D$5&$D$6&B47,'Pbr''s'!B:W,5,0),\" \")","v":"Visión Transversal De La Perspectiva De Género."},"Eficacia",{"$f":"IFERROR(VLOOKUP($D$5&$D$6&B47&C47,'Pbr''s'!A:W,7,0),\" \")","v":"Porcentaje De Mujeres Beneficiadas Por Incorporación De Perspectiva De Género."},{"$f":"IFERROR(VLOOKUP($D$5&$D$6&B47&C47,'Pbr''s'!A:W,8,0),\" \")","v":"Número De Mujeres Beneficiadas"},{"$f":"IFERROR(VLOOKUP($D$5&$D$6&B47&C47,'Pbr''s'!A:W,9,0),\" \")","v":1500},{"$f":"IFERROR(VLOOKUP($D$5&$D$6&B47&C47,'Pbr''s'!A:W,10,0),\" \")","v":1500},238,811,271,null,{"$f":"(SUM(I47:L47)/H47)","v":0.88}]
[null,"DESCRIPCIÓN DE LAS ACTIVIDADES REALIZADAS  (REDACTAR SÓLO LO REALIZADO EN TIEMPO PASADO) ","Narrativa de trimestre Octubre-Diciembre:                                                                                                                                                                                                                                                                                                                                                                                                                                                                                                                                                                                             ","En atención al indicador “Porcentaje de Mujeres Beneficiadas por Incorporación de Perspectiva de Género”, durante el periodo que se reporta se benefició a un total de 238 mujeres, a través de la implementación de eventos, talleres y capacitaciones organizadas por el Instituto. Estas acciones abordaron temas como perspectiva de género, roles y estereotipos, desarrollo humano y derechos humanos de las mujeres, contribuyendo al fortalecimiento de capacidades, la reflexión crítica y la promoción de la igualdad sustantiva, así como a la prevención de las violencias de género en distintos ámbitos de la vida social.          "]
[null,null,"Narrativa de trimestre Enero-marzo:                                                                                                                                                                                                                                                                                                                                                                                                                                                                                                                                                                                                                                                                                                               ","En relación con el indicador, durante el periodo enero–marzo 2026 se benefició a 811 mujeres a través de las acciones de prevención y promoción implementadas por el IMMIST. Estas mujeres participaron en actividades como nuestro evento conmemorativo del 8M, capacitaciones en relaciones sanas, consentimiento y autonomía, defensa personal, sororidad, así como en Ferias de la Paz, rallies científicos, conversatorios y actividades de sensibilización comunitaria, desarrolladas en colonias, instituciones educativas, empresas y espacios institucionales del municipio de San Pedro Tlaquepaque. Estas acciones fortalecen el ejercicio pleno de los derechos de las mujeres, la prevención de las violencias y la transversalización de la perspectiva de género en los distintos ámbitos de la vida pública y comunitaria."]
[null,null,"Narrativa de trimestre Abril-junio:                                                                                                                                                                                                                                                                                                                                                                                                                                                                                                                                                                                                                                                                                                                                                                                                                                                                                                                                                                                                                                               ","En atención con el indicador, se benefició a 271 mujeres a traves de las acciones de prevención y promoción implementadas por el IMMIST. Estas mujeres participaron en capacitaciones como, ferias de la paz y actividades de sensibilización, desarrolladas en colonias, instituciones educativas, empresas y espacios institucionales del municipio de San Pedro Tlaquepaque."]
[null,null,"Narrativa de trimestre Julio-sept:"]
[null,9,{"$f":"IFERROR(VLOOKUP($D$5&$D$6&B52,'Pbr''s'!B:W,5,0),\" \")","v":" "},null,{"$f":"IFERROR(VLOOKUP($D$5&$D$6&B52&C52,'Pbr''s'!A:W,7,0),\" \")","v":" "},{"$f":"IFERROR(VLOOKUP($D$5&$D$6&B52&C52,'Pbr''s'!A:W,8,0),\" \")","v":" "},{"$f":"IFERROR(VLOOKUP($D$5&$D$6&B52&C52,'Pbr''s'!A:W,9,0),\" \")","v":" "},{"$f":"IFERROR(VLOOKUP($D$5&$D$6&B52&C52,'Pbr''s'!A:W,10,0),\" \")","v":" "},null,null,null,null,{"$f":"(SUM(I52:L52)/H52)","v":{"$error":"#VALUE!"}}]
[null,"DESCRIPCIÓN DE LAS ACTIVIDADES REALIZADAS  (REDACTAR SÓLO LO REALIZADO EN TIEMPO PASADO) ","Narrativa de trimestre Octubre-Diciembre:                                                                                                                                                                                                                                                                                                                                                                                                                                                                                                                                                                                             "]
[null,null,"Narrativa de trimestre Enero-marzo:                                                                                                                                                                                                                                                                                                                                                                                                                                                                                                                                                                                                                                                                                                               "]
[null,null,"Narrativa de trimestre Abril-junio:                                                                                                                                                                                                                                                                                                                                                                                                                                                                                                                                                                                                                                                                                                                                                                                                                                                                                                                                                                                                                                               "]
[null,null,"Narrativa de trimestre Julio-sept:"]
[null,10,{"$f":"IFERROR(VLOOKUP($D$5&$D$6&B57,'Pbr''s'!B:W,5,0),\" \")","v":" "},null,{"$f":"IFERROR(VLOOKUP($D$5&$D$6&B57&C57,'Pbr''s'!A:W,7,0),\" \")","v":" "},{"$f":"IFERROR(VLOOKUP($D$5&$D$6&B57&C57,'Pbr''s'!A:W,8,0),\" \")","v":" "},{"$f":"IFERROR(VLOOKUP($D$5&$D$6&B57&C57,'Pbr''s'!A:W,9,0),\" \")","v":" "},{"$f":"IFERROR(VLOOKUP($D$5&$D$6&B57&C57,'Pbr''s'!A:W,10,0),\" \")","v":" "},null,null,null,null,{"$f":"(SUM(I57:L57)/H57)","v":{"$error":"#VALUE!"}}]
[null,"DESCRIPCIÓN DE LAS ACTIVIDADES REALIZADAS  (REDACTAR SÓLO LO REALIZADO EN TIEMPO PASADO) ","Narrativa de trimestre Octubre-Diciembre:                                                                                                                                                                                                                                                                                                                                                                                                                                                                                                                                                                                             "]
[null,null,"Narrativa de trimestre Enero-marzo:                                                                                                                                                                                                                                                                                                                                                                                                                                                                                                                                                                                                                                                                                                               "]
[null,null,"Narrativa de trimestre Abril-junio:                                                                                                                                                                                                                                                                                                                                                                                                                                                                                                                                                                                                                                                                                                                                                                                                                                                                                                                                                                                                                                               "]
[null,null,"Narrativa de trimestre Julio-sept:"]
[null,11,{"$f":"IFERROR(VLOOKUP($D$5&$D$6&B62,'Pbr''s'!B:W,5,0),\" \")","v":" "},null,{"$f":"IFERROR(VLOOKUP($D$5&$D$6&B62&C62,'Pbr''s'!A:W,7,0),\" \")","v":" "},{"$f":"IFERROR(VLOOKUP($D$5&$D$6&B62&C62,'Pbr''s'!A:W,8,0),\" \")","v":" "},{"$f":"IFERROR(VLOOKUP($D$5&$D$6&B62&C62,'Pbr''s'!A:W,9,0),\" \")","v":" "},{"$f":"IFERROR(VLOOKUP($D$5&$D$6&B62&C62,'Pbr''s'!A:W,10,0),\" \")","v":" "},null,null,null,null,{"$f":"(SUM(I62:L62)/H62)","v":{"$error":"#VALUE!"}}]
[null,"DESCRIPCIÓN DE LAS ACTIVIDADES REALIZADAS  (REDACTAR SÓLO LO REALIZADO EN TIEMPO PASADO) ","Narrativa de trimestre Octubre-Diciembre:                                                                                                                                                                                                                                                                                                                                                                                                                                                                                                                                                                                             "]
[null,null,"Narrativa de trimestre Enero-marzo:                                                                                                                                                                                                                                                                                                                                                                                                                                                                                                                                                                                                                                                                                                               "]
[null,null,"Narrativa de trimestre Abril-junio:                                                                                                                                                                                                                                                                                                                                                                                                                                                                                                                                                                                                                                                                                                                                                                                                                                                                                                                                                                                                                                               "]
[null,null,"Narrativa de trimestre Julio-sept:"]
[null,16,{"$f":"IFERROR(VLOOKUP($D$5&$D$6&B67,'Pbr''s'!B:W,5,0),\" \")","v":" "},null,{"$f":"IFERROR(VLOOKUP($D$5&$D$6&B67&C67,'Pbr''s'!A:W,7,0),\" \")","v":" "},{"$f":"IFERROR(VLOOKUP($D$5&$D$6&B67&C67,'Pbr''s'!A:W,8,0),\" \")","v":" "},{"$f":"IFERROR(VLOOKUP($D$5&$D$6&B67&C67,'Pbr''s'!A:W,9,0),\" \")","v":" "},{"$f":"IFERROR(VLOOKUP($D$5&$D$6&B67&C67,'Pbr''s'!A:W,10,0),\" \")","v":" "},null,null,null,null,{"$f":"(SUM(I67:L67)/H67)","v":{"$error":"#VALUE!"}}]
[null,"DESCRIPCIÓN DE LAS ACTIVIDADES REALIZADAS  (REDACTAR SÓLO LO REALIZADO EN TIEMPO PASADO) ","Narrativa de trimestre Octubre-Diciembre:                                                                                                                                                                                                                                                                                                                                                                                                                                                                                                                                                                                             "]
[null,null,"Narrativa de trimestre Enero-marzo:                                                                                                                                                                                                                                                                                                                                                                                                                                                                                                                                                                                                                                                                                                               "]
[null,null,"Narrativa de trimestre Abril-junio:                                                                                                                                                                                                                                                                                                                                                                                                                                                                                                                                                                                                                                                                                                                                                                                                                                                                                                                                                                                                                                               "]
[null,null,"Narrativa de trimestre Julio-sept:"]
[null,21,{"$f":"IFERROR(VLOOKUP($D$5&$D$6&B72,'Pbr''s'!B:W,5,0),\" \")","v":" "},null,{"$f":"IFERROR(VLOOKUP($D$5&$D$6&B72&C72,'Pbr''s'!A:W,7,0),\" \")","v":" "},{"$f":"IFERROR(VLOOKUP($D$5&$D$6&B72&C72,'Pbr''s'!A:W,8,0),\" \")","v":" "},{"$f":"IFERROR(VLOOKUP($D$5&$D$6&B72&C72,'Pbr''s'!A:W,9,0),\" \")","v":" "},{"$f":"IFERROR(VLOOKUP($D$5&$D$6&B72&C72,'Pbr''s'!A:W,10,0),\" \")","v":" "},null,null,null,null,{"$f":"(SUM(I72:L72)/H72)","v":{"$error":"#VALUE!"}}]
[null,"DESCRIPCIÓN DE LAS ACTIVIDADES REALIZADAS  (REDACTAR SÓLO LO REALIZADO EN TIEMPO PASADO) ","Narrativa de trimestre Octubre-Diciembre:                                                                                                                                                                                                                                                                                                                                                                                                                                                                                                                                                                                             "]
[null,null,"Narrativa de trimestre Enero-marzo:                                                                                                                                                                                                                                                                                                                                                                                                                                                                                                                                                                                                                                                                                                               "]
[null,null,"Narrativa de trimestre Abril-junio:                                                                                                                                                                                                                                                                                                                                                                                                                                                                                                                                                                                                                                                                                                                                                                                                                                                                                                                                                                                                                                               "]
[null,null,"Narrativa de trimestre Julio-sept:"]
[null,22,{"$f":"IFERROR(VLOOKUP($D$5&$D$6&B77,'Pbr''s'!B:W,5,0),\" \")","v":" "},null,{"$f":"IFERROR(VLOOKUP($D$5&$D$6&B77&C77,'Pbr''s'!A:W,7,0),\" \")","v":" "},{"$f":"IFERROR(VLOOKUP($D$5&$D$6&B77&C77,'Pbr''s'!A:W,8,0),\" \")","v":" "},{"$f":"IFERROR(VLOOKUP($D$5&$D$6&B77&C77,'Pbr''s'!A:W,9,0),\" \")","v":" "},{"$f":"IFERROR(VLOOKUP($D$5&$D$6&B77&C77,'Pbr''s'!A:W,10,0),\" \")","v":" "},null,null,null,null,{"$f":"(SUM(I77:L77)/H77)","v":{"$error":"#VALUE!"}}]
[null,"DESCRIPCIÓN DE LAS ACTIVIDADES REALIZADAS  (REDACTAR SÓLO LO REALIZADO EN TIEMPO PASADO) ","Narrativa de trimestre Octubre-Diciembre:                                                                                                                                                                                                                                                                                                                                                                                                                                                                                                                                                                                             "]
[null,null,"Narrativa de trimestre Enero-marzo:                                                                                                                                                                                                                                                                                                                                                                                                                                                                                                                                                                                                                                                                                                               "]
[null,null,"Narrativa de trimestre Abril-junio:                                                                                                                                                                                                                                                                                                                                                                                                                                                                                                                                                                                                                                                                                                                                                                                                                                                                                                                                                                                                                                               "]
[null,null,"Narrativa de trimestre Julio-sept:"]
[null,23,{"$f":"IFERROR(VLOOKUP($D$5&$D$6&B82,'Pbr''s'!B:W,5,0),\" \")","v":" "},null,{"$f":"IFERROR(VLOOKUP($D$5&$D$6&B82&C82,'Pbr''s'!A:W,7,0),\" \")","v":" "},{"$f":"IFERROR(VLOOKUP($D$5&$D$6&B82&C82,'Pbr''s'!A:W,8,0),\" \")","v":" "},{"$f":"IFERROR(VLOOKUP($D$5&$D$6&B82&C82,'Pbr''s'!A:W,9,0),\" \")","v":" "},{"$f":"IFERROR(VLOOKUP($D$5&$D$6&B82&C82,'Pbr''s'!A:W,10,0),\" \")","v":" "},null,null,null,null,{"$f":"(SUM(I82:L82)/H82)","v":{"$error":"#VALUE!"}}]
[null,"DESCRIPCIÓN DE LAS ACTIVIDADES REALIZADAS  (REDACTAR SÓLO LO REALIZADO EN TIEMPO PASADO) ","Narrativa de trimestre Octubre-Diciembre:                                                                                                                                                                                                                                                                                                                                                                                                                                                                                                                                                                                             "]
[null,null,"Narrativa de trimestre Enero-marzo:                                                                                                                                                                                                                                                                                                                                                                                                                                                                                                                                                                                                                                                                                                               "]
[null,null,"Narrativa de trimestre Abril-junio:                                                                                                                                                                                                                                                                                                                                                                                                                                                                                                                                                                                                                                                                                                                                                                                                                                                                                                                                                                                                                                               "]
[null,null,"Narrativa de trimestre Julio-sept:"]
[null,24,{"$f":"IFERROR(VLOOKUP($D$5&$D$6&B87,'Pbr''s'!B:W,5,0),\" \")","v":" "},null,{"$f":"IFERROR(VLOOKUP($D$5&$D$6&B87&C87,'Pbr''s'!A:W,7,0),\" \")","v":" "},{"$f":"IFERROR(VLOOKUP($D$5&$D$6&B87&C87,'Pbr''s'!A:W,8,0),\" \")","v":" "},{"$f":"IFERROR(VLOOKUP($D$5&$D$6&B87&C87,'Pbr''s'!A:W,9,0),\" \")","v":" "},{"$f":"IFERROR(VLOOKUP($D$5&$D$6&B87&C87,'Pbr''s'!A:W,10,0),\" \")","v":" "},null,null,null,null,{"$f":"(SUM(I87:L87)/H87)","v":{"$error":"#VALUE!"}}]
[null,"DESCRIPCIÓN DE LAS ACTIVIDADES REALIZADAS  (REDACTAR SÓLO LO REALIZADO EN TIEMPO PASADO) ","Narrativa de trimestre Octubre-Diciembre:                                                                                                                                                                                                                                                                                                                                                                                                                                                                                                                                                                                             "]
[null,null,"Narrativa de trimestre Enero-marzo:                                                                                                                                                                                                                                                                                                                                                                                                                                                                                                                                                                                                                                                                                                               "]
[null,null,"Narrativa de trimestre Abril-junio:                                                                                                                                                                                                                                                                                                                                                                                                                                                                                                                                                                                                                                                                                                                                                                                                                                                                                                                                                                                                                                               "]
[null,null,"Narrativa de trimestre Julio-sept:"]
[null,25,{"$f":"IFERROR(VLOOKUP($D$5&$D$6&B92,'Pbr''s'!B:W,5,0),\" \")","v":" "},null,{"$f":"IFERROR(VLOOKUP($D$5&$D$6&B92&C92,'Pbr''s'!A:W,7,0),\" \")","v":" "},{"$f":"IFERROR(VLOOKUP($D$5&$D$6&B92&C92,'Pbr''s'!A:W,8,0),\" \")","v":" "},{"$f":"IFERROR(VLOOKUP($D$5&$D$6&B92&C92,'Pbr''s'!A:W,9,0),\" \")","v":" "},{"$f":"IFERROR(VLOOKUP($D$5&$D$6&B92&C92,'Pbr''s'!A:W,10,0),\" \")","v":" "},null,null,null,null,{"$f":"(SUM(I92:L92)/H92)","v":{"$error":"#VALUE!"}}]
[null,"DESCRIPCIÓN DE LAS ACTIVIDADES REALIZADAS  (REDACTAR SÓLO LO REALIZADO EN TIEMPO PASADO) ","Narrativa de trimestre Octubre-Diciembre:                                                                                                                                                                                                                                                                                                                                                                                                                                                                                                                                                                                             "]
[null,null,"Narrativa de trimestre Enero-marzo:                                                                                                                                                                                                                                                                                                                                                                                                                                                                                                                                                                                                                                                                                                               "]
[null,null,"Narrativa de trimestre Abril-junio:                                                                                                                                                                                                                                                                                                                                                                                                                                                                                                                                                                                                                                                                                                                                                                                                                                                                                                                                                                                                                                               "]
[null,null,"Narrativa de trimestre Julio-sept:"]
[null,26,{"$f":"IFERROR(VLOOKUP($D$5&$D$6&B97,'Pbr''s'!B:W,5,0),\" \")","v":" "},null,{"$f":"IFERROR(VLOOKUP($D$5&$D$6&B97&C97,'Pbr''s'!A:W,7,0),\" \")","v":" "},{"$f":"IFERROR(VLOOKUP($D$5&$D$6&B97&C97,'Pbr''s'!A:W,8,0),\" \")","v":" "},{"$f":"IFERROR(VLOOKUP($D$5&$D$6&B97&C97,'Pbr''s'!A:W,9,0),\" \")","v":" "},{"$f":"IFERROR(VLOOKUP($D$5&$D$6&B97&C97,'Pbr''s'!A:W,10,0),\" \")","v":" "},null,null,null,null,{"$f":"(SUM(I97:L97)/H97)","v":{"$error":"#VALUE!"}}]
[null,"DESCRIPCIÓN DE LAS ACTIVIDADES REALIZADAS  (REDACTAR SÓLO LO REALIZADO EN TIEMPO PASADO) ","Narrativa de trimestre Octubre-Diciembre:                                                                                                                                                                                                                                                                                                                                                                                                                                                                                                                                                                                             "]
[null,null,"Narrativa de trimestre Enero-marzo:                                                                                                                                                                                                                                                                                                                                                                                                                                                                                                                                                                                                                                                                                                               "]
[null,null,"Narrativa de trimestre Abril-junio:                                                                                                                                                                                                                                                                                                                                                                                                                                                                                                                                                                                                                                                                                                                                                                                                                                                                                                                                                                                                                                               "]
[null,null,"Narrativa de trimestre Julio-sept:"]
[null,27,{"$f":"IFERROR(VLOOKUP($D$5&$D$6&B102,'Pbr''s'!B:W,5,0),\" \")","v":" "},null,{"$f":"IFERROR(VLOOKUP($D$5&$D$6&B102&C102,'Pbr''s'!A:W,7,0),\" \")","v":" "},{"$f":"IFERROR(VLOOKUP($D$5&$D$6&B102&C102,'Pbr''s'!A:W,8,0),\" \")","v":" "},{"$f":"IFERROR(VLOOKUP($D$5&$D$6&B102&C102,'Pbr''s'!A:W,9,0),\" \")","v":" "},{"$f":"IFERROR(VLOOKUP($D$5&$D$6&B102&C102,'Pbr''s'!A:W,10,0),\" \")","v":" "},null,null,null,null,{"$f":"(SUM(I102:L102)/H102)","v":{"$error":"#VALUE!"}}]
[null,"DESCRIPCIÓN DE LAS ACTIVIDADES REALIZADAS  (REDACTAR SÓLO LO REALIZADO EN TIEMPO PASADO) ","Narrativa de trimestre Octubre-Diciembre:                                                                                                                                                                                                                                                                                                                                                                                                                                                                                                                                                                                             "]
[null,null,"Narrativa de trimestre Enero-marzo:                                                                                                                                                                                                                                                                                                                                                                                                                                                                                                                                                                                                                                                                                                               "]
[null,null,"Narrativa de trimestre Abril-junio:                                                                                                                                                                                                                                                                                                                                                                                                                                                                                                                                                                                                                                                                                                                                                                                                                                                                                                                                                                                                                                               "]
[null,null,"Narrativa de trimestre Julio-sept:"]
[null,28,{"$f":"IFERROR(VLOOKUP($D$5&$D$6&B107,'Pbr''s'!B:W,5,0),\" \")","v":" "},null,{"$f":"IFERROR(VLOOKUP($D$5&$D$6&B107&C107,'Pbr''s'!A:W,7,0),\" \")","v":" "},{"$f":"IFERROR(VLOOKUP($D$5&$D$6&B107&C107,'Pbr''s'!A:W,8,0),\" \")","v":" "},{"$f":"IFERROR(VLOOKUP($D$5&$D$6&B107&C107,'Pbr''s'!A:W,9,0),\" \")","v":" "},{"$f":"IFERROR(VLOOKUP($D$5&$D$6&B107&C107,'Pbr''s'!A:W,10,0),\" \")","v":" "},null,null,null,null,{"$f":"(SUM(I107:L107)/H107)","v":{"$error":"#VALUE!"}}]
[null,"DESCRIPCIÓN DE LAS ACTIVIDADES REALIZADAS  (REDACTAR SÓLO LO REALIZADO EN TIEMPO PASADO) ","Narrativa de trimestre Octubre-Diciembre:                                                                                                                                                                                                                                                                                                                                                                                                                                                                                                                                                                                             "]
[null,null,"Narrativa de trimestre Enero-marzo:                                                                                                                                                                                                                                                                                                                                                                                                                                                                                                                                                                                                                                                                                                               "]
[null,null,"Narrativa de trimestre Abril-junio:                                                                                                                                                                                                                                                                                                                                                                                                                                                                                                                                                                                                                                                                                                                                                                                                                                                                                                                                                                                                                                               "]
[null,null,"Narrativa de trimestre Julio-sept:"]
[null,29,{"$f":"IFERROR(VLOOKUP($D$5&$D$6&B112,'Pbr''s'!B:W,5,0),\" \")","v":" "},null,{"$f":"IFERROR(VLOOKUP($D$5&$D$6&B112&C112,'Pbr''s'!A:W,7,0),\" \")","v":" "},{"$f":"IFERROR(VLOOKUP($D$5&$D$6&B112&C112,'Pbr''s'!A:W,8,0),\" \")","v":" "},{"$f":"IFERROR(VLOOKUP($D$5&$D$6&B112&C112,'Pbr''s'!A:W,9,0),\" \")","v":" "},{"$f":"IFERROR(VLOOKUP($D$5&$D$6&B112&C112,'Pbr''s'!A:W,10,0),\" \")","v":" "},null,null,null,null,{"$f":"(SUM(I112:L112)/H112)","v":{"$error":"#VALUE!"}}]
[null,"DESCRIPCIÓN DE LAS ACTIVIDADES REALIZADAS  (REDACTAR SÓLO LO REALIZADO EN TIEMPO PASADO) ","Narrativa de trimestre Octubre-Diciembre:                                                                                                                                                                                                                                                                                                                                                                                                                                                                                                                                                                                             "]
[null,null,"Narrativa de trimestre Enero-marzo:                                                                                                                                                                                                                                                                                                                                                                                                                                                                                                                                                                                                                                                                                                               "]
[null,null,"Narrativa de trimestre Abril-junio:                                                                                                                                                                                                                                                                                                                                                                                                                                                                                                                                                                                                                                                                                                                                                                                                                                                                                                                                                                                                                                               "]
[null,null,"Narrativa de trimestre Julio-sept:"]
[null,30,{"$f":"IFERROR(VLOOKUP($D$5&$D$6&B117,'Pbr''s'!B:W,5,0),\" \")","v":" "},null,{"$f":"IFERROR(VLOOKUP($D$5&$D$6&B117&C117,'Pbr''s'!A:W,7,0),\" \")","v":" "},{"$f":"IFERROR(VLOOKUP($D$5&$D$6&B117&C117,'Pbr''s'!A:W,8,0),\" \")","v":" "},{"$f":"IFERROR(VLOOKUP($D$5&$D$6&B117&C117,'Pbr''s'!A:W,9,0),\" \")","v":" "},{"$f":"IFERROR(VLOOKUP($D$5&$D$6&B117&C117,'Pbr''s'!A:W,10,0),\" \")","v":" "},null,null,null,null,{"$f":"(SUM(I117:L117)/H117)","v":{"$error":"#VALUE!"}}]
[null,"DESCRIPCIÓN DE LAS ACTIVIDADES REALIZADAS  (REDACTAR SÓLO LO REALIZADO EN TIEMPO PASADO) ","Narrativa de trimestre Octubre-Diciembre:                                                                                                                                                                                                                                                                                                                                                                                                                                                                                                                                                                                             "]
[null,null,"Narrativa de trimestre Enero-marzo:                                                                                                                                                                                                                                                                                                                                                                                                                                                                                                                                                                                                                                                                                                               "]
[null,null,"Narrativa de trimestre Abril-junio:                                                                                                                                                                                                                                                                                                                                                                                                                                                                                                                                                                                                                                                                                                                                                                                                                                                                                                                                                                                                                                               "]
[null,null,"Narrativa de trimestre Julio-sept:"]
[null,31,{"$f":"IFERROR(VLOOKUP($D$5&$D$6&B122,'Pbr''s'!B:W,5,0),\" \")","v":" "},null,{"$f":"IFERROR(VLOOKUP($D$5&$D$6&B122&C122,'Pbr''s'!A:W,7,0),\" \")","v":" "},{"$f":"IFERROR(VLOOKUP($D$5&$D$6&B122&C122,'Pbr''s'!A:W,8,0),\" \")","v":" "},{"$f":"IFERROR(VLOOKUP($D$5&$D$6&B122&C122,'Pbr''s'!A:W,9,0),\" \")","v":" "},{"$f":"IFERROR(VLOOKUP($D$5&$D$6&B122&C122,'Pbr''s'!A:W,10,0),\" \")","v":" "},null,null,null,null,{"$f":"(SUM(I122:L122)/H122)","v":{"$error":"#VALUE!"}}]
[null,"DESCRIPCIÓN DE LAS ACTIVIDADES REALIZADAS  (REDACTAR SÓLO LO REALIZADO EN TIEMPO PASADO) ","Narrativa de trimestre Octubre-Diciembre:                                                                                                                                                                                                                                                                                                                                                                                                                                                                                                                                                                                             "]
[null,null,"Narrativa de trimestre Enero-marzo:                                                                                                                                                                                                                                                                                                                                                                                                                                                                                                                                                                                                                                                                                                               "]
[null,null,"Narrativa de trimestre Abril-junio:                                                                                                                                                                                                                                                                                                                                                                                                                                                                                                                                                                                                                                                                                                                                                                                                                                                                                                                                                                                                                                               "]
[null,null,"Narrativa de trimestre Julio-sept:"]
[null,32,{"$f":"IFERROR(VLOOKUP($D$5&$D$6&B127,'Pbr''s'!B:W,5,0),\" \")","v":" "},null,{"$f":"IFERROR(VLOOKUP($D$5&$D$6&B127&C127,'Pbr''s'!A:W,7,0),\" \")","v":" "},{"$f":"IFERROR(VLOOKUP($D$5&$D$6&B127&C127,'Pbr''s'!A:W,8,0),\" \")","v":" "},{"$f":"IFERROR(VLOOKUP($D$5&$D$6&B127&C127,'Pbr''s'!A:W,9,0),\" \")","v":" "},{"$f":"IFERROR(VLOOKUP($D$5&$D$6&B127&C127,'Pbr''s'!A:W,10,0),\" \")","v":" "},null,null,null,null,{"$f":"(SUM(I127:L127)/H127)","v":{"$error":"#VALUE!"}}]
[null,"DESCRIPCIÓN DE LAS ACTIVIDADES REALIZADAS  (REDACTAR SÓLO LO REALIZADO EN TIEMPO PASADO) ","Narrativa de trimestre Octubre-Diciembre:                                                                                                                                                                                                                                                                                                                                                                                                                                                                                                                                                                                             "]
[null,null,"Narrativa de trimestre Enero-marzo:                                                                                                                                                                                                                                                                                                                                                                                                                                                                                                                                                                                                                                                                                                               "]
[null,null,"Narrativa de trimestre Abril-junio:                                                                                                                                                                                                                                                                                                                                                                                                                                                                                                                                                                                                                                                                                                                                                                                                                                                                                                                                                                                                                                               "]
[null,null,"Narrativa de trimestre Julio-sept:"]
[null,33,{"$f":"IFERROR(VLOOKUP($D$5&$D$6&B132,'Pbr''s'!B:W,5,0),\" \")","v":" "},null,{"$f":"IFERROR(VLOOKUP($D$5&$D$6&B132&C132,'Pbr''s'!A:W,7,0),\" \")","v":" "},{"$f":"IFERROR(VLOOKUP($D$5&$D$6&B132&C132,'Pbr''s'!A:W,8,0),\" \")","v":" "},{"$f":"IFERROR(VLOOKUP($D$5&$D$6&B132&C132,'Pbr''s'!A:W,9,0),\" \")","v":" "},{"$f":"IFERROR(VLOOKUP($D$5&$D$6&B132&C132,'Pbr''s'!A:W,10,0),\" \")","v":" "},null,null,null,null,{"$f":"(SUM(I132:L132)/H132)","v":{"$error":"#VALUE!"}}]
[null,"DESCRIPCIÓN DE LAS ACTIVIDADES REALIZADAS  (REDACTAR SÓLO LO REALIZADO EN TIEMPO PASADO) ","Narrativa de trimestre Octubre-Diciembre:                                                                                                                                                                                                                                                                                                                                                                                                                                                                                                                                                                                             "]
[null,null,"Narrativa de trimestre Enero-marzo:                                                                                                                                                                                                                                                                                                                                                                                                                                                                                                                                                                                                                                                                                                               "]
[null,null,"Narrativa de trimestre Abril-junio:                                                                                                                                                                                                                                                                                                                                                                                                                                                                                                                                                                                                                                                                                                                                                                                                                                                                                                                                                                                                                                               "]
[null,null,"Narrativa de trimestre Julio-sept:"]
[null,34,{"$f":"IFERROR(VLOOKUP($D$5&$D$6&B137,'Pbr''s'!B:W,5,0),\" \")","v":" "},null,{"$f":"IFERROR(VLOOKUP($D$5&$D$6&B137&C137,'Pbr''s'!A:W,7,0),\" \")","v":" "},{"$f":"IFERROR(VLOOKUP($D$5&$D$6&B137&C137,'Pbr''s'!A:W,8,0),\" \")","v":" "},{"$f":"IFERROR(VLOOKUP($D$5&$D$6&B137&C137,'Pbr''s'!A:W,9,0),\" \")","v":" "},{"$f":"IFERROR(VLOOKUP($D$5&$D$6&B137&C137,'Pbr''s'!A:W,10,0),\" \")","v":" "},null,null,null,null,{"$f":"(SUM(I137:L137)/H137)","v":{"$error":"#VALUE!"}}]
[null,"DESCRIPCIÓN DE LAS ACTIVIDADES REALIZADAS  (REDACTAR SÓLO LO REALIZADO EN TIEMPO PASADO) ","Narrativa de trimestre Octubre-Diciembre:                                                                                                                                                                                                                                                                                                                                                                                                                                                                                                                                                                                             "]
[null,null,"Narrativa de trimestre Enero-marzo:                                                                                                                                                                                                                                                                                                                                                                                                                                                                                                                                                                                                                                                                                                               "]
[null,null,"Narrativa de trimestre Abril-junio:                                                                                                                                                                                                                                                                                                                                                                                                                                                                                                                                                                                                                                                                                                                                                                                                                                                                                                                                                                                                                                               "]
[null,null,"Narrativa de trimestre Julio-sept:"]
[null,35,{"$f":"IFERROR(VLOOKUP($D$5&$D$6&B142,'Pbr''s'!B:W,5,0),\" \")","v":" "},null,{"$f":"IFERROR(VLOOKUP($D$5&$D$6&B142&C142,'Pbr''s'!A:W,7,0),\" \")","v":" "},{"$f":"IFERROR(VLOOKUP($D$5&$D$6&B142&C142,'Pbr''s'!A:W,8,0),\" \")","v":" "},{"$f":"IFERROR(VLOOKUP($D$5&$D$6&B142&C142,'Pbr''s'!A:W,9,0),\" \")","v":" "},{"$f":"IFERROR(VLOOKUP($D$5&$D$6&B142&C142,'Pbr''s'!A:W,10,0),\" \")","v":" "},null,null,null,null,{"$f":"(SUM(I142:L142)/H142)","v":{"$error":"#VALUE!"}}]
[null,"DESCRIPCIÓN DE LAS ACTIVIDADES REALIZADAS  (REDACTAR SÓLO LO REALIZADO EN TIEMPO PASADO) ","Narrativa de trimestre Octubre-Diciembre:                                                                                                                                                                                                                                                                                                                                                                                                                                                                                                                                                                                             "]
[null,null,"Narrativa de trimestre Enero-marzo:                                                                                                                                                                                                                                                                                                                                                                                                                                                                                                                                                                                                                                                                                                               "]
[null,null,"Narrativa de trimestre Abril-junio:                                                                                                                                                                                                                                                                                                                                                                                                                                                                                                                                                                                                                                                                                                                                                                                                                                                                                                                                                                                                                                               "]
[null,null,"Narrativa de trimestre Julio-sept:"]
[null,36,{"$f":"IFERROR(VLOOKUP($D$5&$D$6&B147,'Pbr''s'!B:W,5,0),\" \")","v":" "},null,{"$f":"IFERROR(VLOOKUP($D$5&$D$6&B147&C147,'Pbr''s'!A:W,7,0),\" \")","v":" "},{"$f":"IFERROR(VLOOKUP($D$5&$D$6&B147&C147,'Pbr''s'!A:W,8,0),\" \")","v":" "},{"$f":"IFERROR(VLOOKUP($D$5&$D$6&B147&C147,'Pbr''s'!A:W,9,0),\" \")","v":" "},{"$f":"IFERROR(VLOOKUP($D$5&$D$6&B147&C147,'Pbr''s'!A:W,10,0),\" \")","v":" "},null,null,null,null,{"$f":"(SUM(I147:L147)/H147)","v":{"$error":"#VALUE!"}}]
[null,"DESCRIPCIÓN DE LAS ACTIVIDADES REALIZADAS  (REDACTAR SÓLO LO REALIZADO EN TIEMPO PASADO) ","Narrativa de trimestre Octubre-Diciembre:                                                                                                                                                                                                                                                                                                                                                                                                                                                                                                                                                                                             "]
[null,null,"Narrativa de trimestre Enero-marzo:                                                                                                                                                                                                                                                                                                                                                                                                                                                                                                                                                                                                                                                                                                               "]
[null,null,"Narrativa de trimestre Abril-junio:                                                                                                                                                                                                                                                                                                                                                                                                                                                                                                                                                                                                                                                                                                                                                                                                                                                                                                                                                                                                                                               "]
[null,null,"Narrativa de trimestre Julio-sept:"]
[null,37,{"$f":"IFERROR(VLOOKUP($D$5&$D$6&B152,'Pbr''s'!B:W,5,0),\" \")","v":" "},null,{"$f":"IFERROR(VLOOKUP($D$5&$D$6&B152&C152,'Pbr''s'!A:W,7,0),\" \")","v":" "},{"$f":"IFERROR(VLOOKUP($D$5&$D$6&B152&C152,'Pbr''s'!A:W,8,0),\" \")","v":" "},{"$f":"IFERROR(VLOOKUP($D$5&$D$6&B152&C152,'Pbr''s'!A:W,9,0),\" \")","v":" "},{"$f":"IFERROR(VLOOKUP($D$5&$D$6&B152&C152,'Pbr''s'!A:W,10,0),\" \")","v":" "},null,null,null,null,{"$f":"(SUM(I152:L152)/H152)","v":{"$error":"#VALUE!"}}]
[null,"DESCRIPCIÓN DE LAS ACTIVIDADES REALIZADAS  (REDACTAR SÓLO LO REALIZADO EN TIEMPO PASADO) ","Narrativa de trimestre Octubre-Diciembre:                                                                                                                                                                                                                                                                                                                                                                                                                                                                                                                                                                                             "]
[null,null,"Narrativa de trimestre Enero-marzo:                                                                                                                                                                                                                                                                                                                                                                                                                                                                                                                                                                                                                                                                                                               "]
[null,null,"Narrativa de trimestre Abril-junio:                                                                                                                                                                                                                                                                                                                                                                                                                                                                                                                                                                                                                                                                                                                                                                                                                                                                                                                                                                                                                                               "]
[null,null,"Narrativa de trimestre Julio-sept:"]
[null,38,{"$f":"IFERROR(VLOOKUP($D$5&$D$6&B157,'Pbr''s'!B:W,5,0),\" \")","v":" "},null,{"$f":"IFERROR(VLOOKUP($D$5&$D$6&B157&C157,'Pbr''s'!A:W,7,0),\" \")","v":" "},{"$f":"IFERROR(VLOOKUP($D$5&$D$6&B157&C157,'Pbr''s'!A:W,8,0),\" \")","v":" "},{"$f":"IFERROR(VLOOKUP($D$5&$D$6&B157&C157,'Pbr''s'!A:W,9,0),\" \")","v":" "},{"$f":"IFERROR(VLOOKUP($D$5&$D$6&B157&C157,'Pbr''s'!A:W,10,0),\" \")","v":" "},null,null,null,null,{"$f":"(SUM(I157:L157)/H157)","v":{"$error":"#VALUE!"}}]
[null,"DESCRIPCIÓN DE LAS ACTIVIDADES REALIZADAS  (REDACTAR SÓLO LO REALIZADO EN TIEMPO PASADO) ","Narrativa de trimestre Octubre-Diciembre:                                                                                                                                                                                                                                                                                                                                                                                                                                                                                                                                                                                             "]
[null,null,"Narrativa de trimestre Enero-marzo:                                                                                                                                                                                                                                                                                                                                                                                                                                                                                                                                                                                                                                                                                                               "]
[null,null,"Narrativa de trimestre Abril-junio:                                                                                                                                                                                                                                                                                                                                                                                                                                                                                                                                                                                                                                                                                                                                                                                                                                                                                                                                                                                                                                               "]
[null,null,"Narrativa de trimestre Julio-sept:"]
[null,39,{"$f":"IFERROR(VLOOKUP($D$5&$D$6&B162,'Pbr''s'!B:W,5,0),\" \")","v":" "},null,{"$f":"IFERROR(VLOOKUP($D$5&$D$6&B162&C162,'Pbr''s'!A:W,7,0),\" \")","v":" "},{"$f":"IFERROR(VLOOKUP($D$5&$D$6&B162&C162,'Pbr''s'!A:W,8,0),\" \")","v":" "},{"$f":"IFERROR(VLOOKUP($D$5&$D$6&B162&C162,'Pbr''s'!A:W,9,0),\" \")","v":" "},{"$f":"IFERROR(VLOOKUP($D$5&$D$6&B162&C162,'Pbr''s'!A:W,10,0),\" \")","v":" "},null,null,null,null,{"$f":"(SUM(I162:L162)/H162)","v":{"$error":"#VALUE!"}}]
[null,"DESCRIPCIÓN DE LAS ACTIVIDADES REALIZADAS  (REDACTAR SÓLO LO REALIZADO EN TIEMPO PASADO) ","Narrativa de trimestre Octubre-Diciembre:                                                                                                                                                                                                                                                                                                                                                                                                                                                                                                                                                                                             "]
[null,null,"Narrativa de trimestre Enero-marzo:                                                                                                                                                                                                                                                                                                                                                                                                                                                                                                                                                                                                                                                                                                               "]
[null,null,"Narrativa de trimestre Abril-junio:                                                                                                                                                                                                                                                                                                                                                                                                                                                                                                                                                                                                                                                                                                                                                                                                                                                                                                                                                                                                                                               "]
[null,null,"Narrativa de trimestre Julio-sept:"]
[null,40,{"$f":"IFERROR(VLOOKUP($D$5&$D$6&B167,'Pbr''s'!B:W,5,0),\" \")","v":" "},null,{"$f":"IFERROR(VLOOKUP($D$5&$D$6&B167&C167,'Pbr''s'!A:W,7,0),\" \")","v":" "},{"$f":"IFERROR(VLOOKUP($D$5&$D$6&B167&C167,'Pbr''s'!A:W,8,0),\" \")","v":" "},{"$f":"IFERROR(VLOOKUP($D$5&$D$6&B167&C167,'Pbr''s'!A:W,9,0),\" \")","v":" "},{"$f":"IFERROR(VLOOKUP($D$5&$D$6&B167&C167,'Pbr''s'!A:W,10,0),\" \")","v":" "},null,null,null,null,{"$f":"(SUM(I167:L167)/H167)","v":{"$error":"#VALUE!"}}]
[null,"DESCRIPCIÓN DE LAS ACTIVIDADES REALIZADAS  (REDACTAR SÓLO LO REALIZADO EN TIEMPO PASADO) ","Narrativa de trimestre Octubre-Diciembre:                                                                                                                                                                                                                                                                                                                                                                                                                                                                                                                                                                                             "]
[null,null,"Narrativa de trimestre Enero-marzo:                                                                                                                                                                                                                                                                                                                                                                                                                                                                                                                                                                                                                                                                                                               "]
[null,null,"Narrativa de trimestre Abril-junio:                                                                                                                                                                                                                                                                                                                                                                                                                                                                                                                                                                                                                                                                                                                                                                                                                                                                                                                                                                                                                                               "]
[null,null,"Narrativa de trimestre Julio-sept:"]
[null,41,{"$f":"IFERROR(VLOOKUP($D$5&$D$6&B172,'Pbr''s'!B:W,5,0),\" \")","v":" "},null,{"$f":"IFERROR(VLOOKUP($D$5&$D$6&B172&C172,'Pbr''s'!A:W,7,0),\" \")","v":" "},{"$f":"IFERROR(VLOOKUP($D$5&$D$6&B172&C172,'Pbr''s'!A:W,8,0),\" \")","v":" "},{"$f":"IFERROR(VLOOKUP($D$5&$D$6&B172&C172,'Pbr''s'!A:W,9,0),\" \")","v":" "},{"$f":"IFERROR(VLOOKUP($D$5&$D$6&B172&C172,'Pbr''s'!A:W,10,0),\" \")","v":" "},null,null,null,null,{"$f":"(SUM(I172:L172)/H172)","v":{"$error":"#VALUE!"}}]
[null,"DESCRIPCIÓN DE LAS ACTIVIDADES REALIZADAS  (REDACTAR SÓLO LO REALIZADO EN TIEMPO PASADO) ","Narrativa de trimestre Octubre-Diciembre:                                                                                                                                                                                                                                                                                                                                                                                                                                                                                                                                                                                             "]
[null,null,"Narrativa de trimestre Enero-marzo:                                                                                                                                                                                                                                                                                                                                                                                                                                                                                                                                                                                                                                                                                                               "]
[null,null,"Narrativa de trimestre Abril-junio:                                                                                                                                                                                                                                                                                                                                                                                                                                                                                                                                                                                                                                                                                                                                                                                                                                                                                                                                                                                                                                               "]
[null,null,"Narrativa de trimestre Julio-sept:"]
[null,42,{"$f":"IFERROR(VLOOKUP($D$5&$D$6&B177,'Pbr''s'!B:W,5,0),\" \")","v":" "},null,{"$f":"IFERROR(VLOOKUP($D$5&$D$6&B177&C177,'Pbr''s'!A:W,7,0),\" \")","v":" "},{"$f":"IFERROR(VLOOKUP($D$5&$D$6&B177&C177,'Pbr''s'!A:W,8,0),\" \")","v":" "},{"$f":"IFERROR(VLOOKUP($D$5&$D$6&B177&C177,'Pbr''s'!A:W,9,0),\" \")","v":" "},{"$f":"IFERROR(VLOOKUP($D$5&$D$6&B177&C177,'Pbr''s'!A:W,10,0),\" \")","v":" "},null,null,null,null,{"$f":"(SUM(I177:L177)/H177)","v":{"$error":"#VALUE!"}}]
[null,"DESCRIPCIÓN DE LAS ACTIVIDADES REALIZADAS  (REDACTAR SÓLO LO REALIZADO EN TIEMPO PASADO) ","Narrativa de trimestre Octubre-Diciembre:                                                                                                                                                                                                                                                                                                                                                                                                                                                                                                                                                                                             "]
[null,null,"Narrativa de trimestre Enero-marzo:                                                                                                                                                                                                                                                                                                                                                                                                                                                                                                                                                                                                                                                                                                               "]
[null,null,"Narrativa de trimestre Abril-junio:                                                                                                                                                                                                                                                                                                                                                                                                                                                                                                                                                                                                                                                                                                                                                                                                                                                                                                                                                                                                                                               "]
[null,null,"Narrativa de trimestre Julio-sept:"]

{"sheet":"Pbr's","index":1,"n_rows":600,"n_cols":12,"rows_kept":600,"cut":false,"hidden":true,"merged":[]}
[null,null,null,"SECRETARIA","DIRECCIONES","Proyecto","Indicador Operativo","Unidad de medida","Línea Base","Meta",null,"Dimension a Medir"]
[{"$f":"B2&F2","v":"ComucatComucat1Capacitaciones Preventivas En Adicciones "},{"$f":"D2&E2&C2","v":"ComucatComucat1"},{"$f":"COUNTIF($E$2:E2,E2:E2)","v":1},"Comucat","Comucat","Capacitaciones Preventivas En Adicciones ","Porcentaje De Personas Capacitadas En Tema De Prevención De Adicciones ","Número De Personas Capacitadas ",4900,7000,null,"Eficiencia"]
[{"$f":"B3&F3","v":"ComucatComucat2Jornadas De La Salud Mental"},{"$f":"D3&E3&C3","v":"ComucatComucat2"},{"$f":"COUNTIF($E$2:E3,E3:E3)","v":2},"Comucat","Comucat","Jornadas De La Salud Mental","Porcentaje De Eventos Realizados Con Temas De Salud Mental ","Número De Eventos Realizados ",0,4,null,"Eficacia"]
["ComucatComucat3Red De Apoyo Para Establecimientos Especializados En Adicciones ","ComucatComucat3",{"$f":"COUNTIF($E$2:E4,E4:E4)","v":3},"Comucat","Comucat","Red De Apoyo Para Establecimientos Especializados En Adicciones ","Porcentaje De Establecimientos Especializados En Adicciones Registrados Ante El Comucat","Número De Establecimientos Registrados ",55,65,null,"Economía"]
["ComucatComucat4Red De Apoyo Para Establecimientos Especializados En Adicciones ","ComucatComucat4",{"$f":"COUNTIF($E$2:E5,E5:E5)","v":4},"Comucat","Comucat","Red De Apoyo Para Establecimientos Especializados En Adicciones ","Porcentaje De Capacitaciones Otorgadas A Los Establecimientos ","Número De Capacitaciones Otorgadas ",8,12,null,"Calidad"]
["ComucatComucat5Terapias Psicológicas (Tratamiento Breve Y/O Ambulatorio)","ComucatComucat5",{"$f":"COUNTIF($E$2:E6,E6:E6)","v":5},"Comucat","Comucat","Terapias Psicológicas (Tratamiento Breve Y/O Ambulatorio)","Porcentaje De Personas Atendidas Mediante Terapia Psicológica ","Número De Personas Atendidas ",216,400]
["COMUDECOMUDE1Administración Y Gestión Institucional","COMUDECOMUDE1",{"$f":"COUNTIF($E$2:E7,E7:E7)","v":1},"COMUDE","COMUDE","Administración Y Gestión Institucional","Porcentaje de convenios elaborados para el programa de Administración y Gestión Institucional.","Número de convenios elaborados",241,250]
["COMUDECOMUDE2Tlaquepaque Acude","COMUDECOMUDE2",{"$f":"COUNTIF($E$2:E8,E8:E8)","v":2},"COMUDE","COMUDE","Tlaquepaque Acude","Porcentaje de Escuelas y talleres de activación física implementados.","Número de escuelas y talleres de activación física implementados.",130,150]
["COMUDECOMUDE3Tlaquepaque Acude","COMUDECOMUDE3",{"$f":"COUNTIF($E$2:E9,E9:E9)","v":3},"COMUDE","COMUDE","Tlaquepaque Acude","Porcentaje de Ligas deportivas implementadas.","Número ligas deportivas implementadas.",37,40]
["COMUDECOMUDE4Administración Y Gestión Institucional","COMUDECOMUDE4",{"$f":"COUNTIF($E$2:E10,E10:E10)","v":4},"COMUDE","COMUDE","Administración Y Gestión Institucional","Porcentaje de Intervenciones en el programa de Mantenimiento de Espacios Públicos realizadas.","Número de intervenciones realizadas.",120,140]
["COMUDECOMUDE5Macro Eventos","COMUDECOMUDE5",{"$f":"COUNTIF($E$2:E11,E11:E11)","v":5},"COMUDE","COMUDE","Macro Eventos","Porcentaje de Macro Eventos Realizados.","Número de Macro Eventos Realizados",18,20]
["COMUDECOMUDE6Vía Recreativa Metropolitana San Pedro Tlaquepaque","COMUDECOMUDE6",{"$f":"COUNTIF($E$2:E12,E12:E12)","v":6},"COMUDE","COMUDE","Vía Recreativa Metropolitana San Pedro Tlaquepaque","Porcentaje de Jornadas dominicales de la Vía Recreativa, realizadas","Número de jornadas realizadas ",55,55]
["DIFAdulto Mayor1Colibrí Esperanza, Centro De Dia ","DIFAdulto Mayor1",{"$f":"COUNTIF($E$2:E13,E13:E13)","v":1},"DIF","Adulto Mayor","Colibrí Esperanza, Centro De Dia ","Servicios Otorgados Porcentaje De Servicios Integrales A Los Adultos Mayores Otorgados ","Número De Servicios Otorgados ",0,5000]
["DIFAdulto Mayor2Colibrí Esperanza, Centro De Dia ","DIFAdulto Mayor2",{"$f":"COUNTIF($E$2:E14,E14:E14)","v":2},"DIF","Adulto Mayor","Colibrí Esperanza, Centro De Dia ","Talleres Otorgados Porcentaje De Talleres ","Numero De Talleres Otorgados",0,5000]
["DIFAdulto Mayor3Colibrí Esperanza, Centro De Dia ","DIFAdulto Mayor3",{"$f":"COUNTIF($E$2:E15,E15:E15)","v":3},"DIF","Adulto Mayor","Colibrí Esperanza, Centro De Dia ","Actividades Recreativa, Culturales Y Deportivas","Atención En Actividades Recreativa, Culturales Y Deportivas",0,6400]
["DIFAsistencia Alimentaria1Área Alimentaria ","DIFAsistencia Alimentaria1",{"$f":"COUNTIF($E$2:E16,E16:E16)","v":1},"DIF","Asistencia Alimentaria","Área Alimentaria ","Raciones De Alimentos En Escolares","Cantidad De Raciones Entregadas",952167,952167]
["DIFAsistencia Alimentaria2Área Alimentaria ","DIFAsistencia Alimentaria2",{"$f":"COUNTIF($E$2:E17,E17:E17)","v":2},"DIF","Asistencia Alimentaria","Área Alimentaria ","Dotaciones Alimentarias","Cantidad De Despensas",32208,32208]
[{"$f":"B18&F18","v":"DIFAsistencia Alimentaria3Área Alimentaria "},"DIFAsistencia Alimentaria3",{"$f":"COUNTIF($E$2:E18,E18:E18)","v":3},"DIF","Asistencia Alimentaria","Área Alimentaria ","Capacitaciones De Orientación Alimentaria ","Cantidad De Beneficiarios Que Reciben ",19944,19944]
["DIFAsistencia Alimentaria4Área Alimentaria ","DIFAsistencia Alimentaria4",{"$f":"COUNTIF($E$2:E19,E19:E19)","v":4},"DIF","Asistencia Alimentaria","Área Alimentaria ","Raciones De Alimentos Preparados  En Comedores Comunitarios","Cantidad De Raciones Entregadas",13920,13920]
["DIFApce1Tlaquepaque Solidario: Atención Y Protección En Situaciones De Emergencia","DIFApce1",{"$f":"COUNTIF($E$2:E20,E20:E20)","v":1},"DIF","Apce","Tlaquepaque Solidario: Atención Y Protección En Situaciones De Emergencia","Número De Personas En Situación De Calle Y Población Vulnerable Atendida Mediante Apoyos Y Programas Emergentes.","Personas Atendidas",0,1000]
["DIFÁrea Medica1Área Medica","DIFÁrea Medica1",{"$f":"COUNTIF($E$2:E21,E21:E21)","v":1},"DIF","Área Medica","Área Medica"," Servicios Otorgados","Numero De Servicios Otorgados",30200,30400]
["DIFÁrea Medica2Área Medica","DIFÁrea Medica2",{"$f":"COUNTIF($E$2:E22,E22:E22)","v":2},"DIF","Área Medica","Área Medica"," Capacitaciones Brindadas En Temas De Salud.","Número De Capacitaciones Brindadas",65,65]
["DIFÁrea Medica3Área Medica","DIFÁrea Medica3",{"$f":"COUNTIF($E$2:E23,E23:E23)","v":3},"DIF","Área Medica","Área Medica","Capacitaciones Recibidas Por El Personal De Área Medica.","Número De Capacitaciones.",20,20]
["DIFCoordinación De Caic1Seguimiento De Acciones Para Implementar Capacitaciones De Primeros Auxilios En Maestras De Ciac ","DIFCoordinación De Caic1",{"$f":"COUNTIF($E$2:E24,E24:E24)","v":1},"DIF","Coordinación De Caic","Seguimiento De Acciones Para Implementar Capacitaciones De Primeros Auxilios En Maestras De Ciac ","Porcentaje De Sesiones Impartidas Para La Capacitaciones D Primeros Auxilios En Maestras Y Directoras De Caic","Sesiones",0,2]
["DIFCoordinación De Caic2Seguimiento De Acciones Para Realizar Capacitaciones A Las Intendentes Y Cocineras De Cada Uno De Los Centros De Atención Infantil Cometarios (Caic)","DIFCoordinación De Caic2",{"$f":"COUNTIF($E$2:E25,E25:E25)","v":2},"DIF","Coordinación De Caic","Seguimiento De Acciones Para Realizar Capacitaciones A Las Intendentes Y Cocineras De Cada Uno De Los Centros De Atención Infantil Cometarios (Caic)","Porcentaje De Sesiones Impartidas ","Sesiones",0,2]
["DIFDif Tlaquepaque (Casa La Esperanza) 1Casa La Esperanza ","DIFDif Tlaquepaque (Casa La Esperanza) 1",{"$f":"COUNTIF($E$2:E26,E26:E26)","v":1},"DIF","Dif Tlaquepaque (Casa La Esperanza) ","Casa La Esperanza ","Niñas, Niños Y Adolescentes (Nna) Albergados En Situación De Vulnerabilidad. Así Como Niñas, Niños Y Adolescentes Reintegrados O Reubicados.","Niñas, Niños Y Adolescentes Albergados, Reintegrados.",91,65]
["DIFCentro De Capacitación Y Atención Para Personas Con Discapacidad1Programa De Atención A La Discapacidad","DIFCentro De Capacitación Y Atención Para Personas Con Discapacidad1",{"$f":"COUNTIF($E$2:E27,E27:E27)","v":1},"DIF","Centro De Capacitación Y Atención Para Personas Con Discapacidad","Programa De Atención A La Discapacidad","Personas Atendidas Con Autismo ","Sesiones ",30,30]
["DIFCentro De Capacitación Y Atención Para Personas Con Discapacidad2Programa De Atención A La Discapacidad","DIFCentro De Capacitación Y Atención Para Personas Con Discapacidad2",{"$f":"COUNTIF($E$2:E28,E28:E28)","v":2},"DIF","Centro De Capacitación Y Atención Para Personas Con Discapacidad","Programa De Atención A La Discapacidad","Porcentaje De Atención A Personas Con Discapacidad ","Sesiones De Atención Brindadas A Personas Con Discapacidad",4000,4500]
["DIFJefatura Cdc1Cdc","DIFJefatura Cdc1",{"$f":"COUNTIF($E$2:E29,E29:E29)","v":1},"DIF","Jefatura Cdc","Cdc","Porcentajes De Campañas, Promovidas Para Dar A Conocer Los Cursos, Talleres            ","Número De Campañas Promovidas ",0,3]
["DIFProcuraduría De Protección A Niñas, Niños Y Adolescentes1Centro De Convivencia Familiar ","DIFProcuraduría De Protección A Niñas, Niños Y Adolescentes1",{"$f":"COUNTIF($E$2:E30,E30:E30)","v":1},"DIF","Procuraduría De Protección A Niñas, Niños Y Adolescentes","Centro De Convivencia Familiar ","Atención A Convivencias","Numero De Convivencias Supervisadas",1581,1850]
["DIFProcuraduría De Protección A Niñas, Niños Y Adolescentes2Centro De Convivencia Familiar ","DIFProcuraduría De Protección A Niñas, Niños Y Adolescentes2",{"$f":"COUNTIF($E$2:E31,E31:E31)","v":2},"DIF","Procuraduría De Protección A Niñas, Niños Y Adolescentes","Centro De Convivencia Familiar ","Realización De Reportes","Numero De Reportes Realizados",2194,2950]
["DIFProcuraduría De Protección A Niñas, Niños Y Adolescentes3Centro De Convivencia Familiar ","DIFProcuraduría De Protección A Niñas, Niños Y Adolescentes3",{"$f":"COUNTIF($E$2:E32,E32:E32)","v":3},"DIF","Procuraduría De Protección A Niñas, Niños Y Adolescentes","Centro De Convivencia Familiar ","Atención A Usuarios","Numero De Usuarios Atendidos",5307,8500]
["DIFAuxiliar Administrativo 1Operatividad Administrativa","DIFAuxiliar Administrativo 1",{"$f":"COUNTIF($E$2:E33,E33:E33)","v":1},"DIF","Auxiliar Administrativo ","Operatividad Administrativa","Porcentaje de usuarios que acuden al CECOFAM con credencial expedida","Número de usuarios con credencial expedida",0,174]
["DIFProcuraduría De Protección A Niñas, Niños Y Adolescentes4Platica Prematrimoniales","DIFProcuraduría De Protección A Niñas, Niños Y Adolescentes4",{"$f":"COUNTIF($E$2:E34,E34:E34)","v":4},"DIF","Procuraduría De Protección A Niñas, Niños Y Adolescentes","Platica Prematrimoniales","Platica Prematrimoniales","Constancias",2000,2500]
["DIFProcuraduría De Protección A Niñas, Niños Y Adolescentes5Delegación De La Procuraduría De Protección A Niñas, Niños Y Adolescentes ","DIFProcuraduría De Protección A Niñas, Niños Y Adolescentes5",{"$f":"COUNTIF($E$2:E35,E35:E35)","v":5},"DIF","Procuraduría De Protección A Niñas, Niños Y Adolescentes","Delegación De La Procuraduría De Protección A Niñas, Niños Y Adolescentes ","Reporte Atendido Por Medio De Visita Domiciliaria","Visita Domiciliaria",384,800]
["DIFPreverp1Clínica Deportiva Prevención De Adicciones","DIFPreverp1",{"$f":"COUNTIF($E$2:E36,E36:E36)","v":1},"DIF","Preverp","Clínica Deportiva Prevención De Adicciones","Porcentaje De Niñas, Niños Y Adolescentes Atendidos Mediante El Programa Clínicas Deportivas De  Prevención De Adicciones","Número De Niñas, Niños Y Adolescentes Atendidos ",35,40]
["DIFPreverp2Crecer Sin Violencia Y Prevención Del Embarazo Adolescente","DIFPreverp2",{"$f":"COUNTIF($E$2:E37,E37:E37)","v":2},"DIF","Preverp","Crecer Sin Violencia Y Prevención Del Embarazo Adolescente","Porcentaje De Niñas, Niños Y Adolescentes Atendidos Mediante El Programa Crecer Sin Violencia","Número De Niñas, Niños Y Adolescentes Atendidos",750,800]
["DIFPreverp3Exploro, Crezco Y Juego Mientras Estudio Y Me  Divierto","DIFPreverp3",{"$f":"COUNTIF($E$2:E38,E38:E38)","v":3},"DIF","Preverp","Exploro, Crezco Y Juego Mientras Estudio Y Me  Divierto","Porcentaje De Niñas, Niños Y Adolescentes Atendidos Mediante El Proyecto \"Exploro, Crezco Y Juego, Mientras Estudio Y Me Divierto\"","Número De Niñas, Niños Y Adolescentes Atendidos",0,100]
["DIFPsicología 1Psicología","DIFPsicología 1",{"$f":"COUNTIF($E$2:E39,E39:E39)","v":1},"DIF","Psicología ","Psicología","Atención Psicológica","Sesiones",10000,10500]
["DIFTrabajo Social1Fortalecimiento Sociofamiliar","DIFTrabajo Social1",{"$f":"COUNTIF($E$2:E40,E40:E40)","v":1},"DIF","Trabajo Social","Fortalecimiento Sociofamiliar","Servicios Y Tramites De Apoyo \nAsistencial Otorgados.","Actividades Realizadas\nPara Llevar Acabo Su\nAtención",3700,"3000\t\t"]
["DIFTutela De Derechos 1Restitución De Derechos De NN ya ","DIFTutela De Derechos 1",{"$f":"COUNTIF($E$2:E41,E41:E41)","v":1},"DIF","Tutela De Derechos ","Restitución De Derechos De NN ya ","Niñas Niños Y Adolescentes Reintegrados ","Numero De  Nna",0,100]
["DIFTutela De Derechos 2Restitución De Derechos De Nnya ","DIFTutela De Derechos 2",{"$f":"COUNTIF($E$2:E42,E42:E42)","v":2},"DIF","Tutela De Derechos ","Restitución De Derechos De Nnya ","Niñas Niños Y Adolescentes En Acogimiento ","Numero De  Nna",0,5]
["DIFTutela De Derechos 3Restitución De Derechos De Nnya ","DIFTutela De Derechos 3",{"$f":"COUNTIF($E$2:E43,E43:E43)","v":3},"DIF","Tutela De Derechos ","Restitución De Derechos De Nnya ","Niñas Niños Y Adolescentes P.D ","Numero De  Nna",60,118]
["DIFUavifam 1Protección Y Atención Ante Casos De Violencia Familiar ","DIFUavifam 1",{"$f":"COUNTIF($E$2:E44,E44:E44)","v":1},"DIF","Uavifam ","Protección Y Atención Ante Casos De Violencia Familiar ","Porcentaje de casos atendidos de manera directa o por derivación","Número de casos atendidos",300,400]
["DIFJefatura Cdc2Cdc","DIFJefatura Cdc2",{"$f":"COUNTIF($E$2:E45,E45:E45)","v":2},"DIF","Jefatura Cdc","Cdc","Porcentajes de sesiones de educación básica y media superior, realizadas","Número De Sesiones Realizadas",13,52]
["DIFJefatura Cdc3Cdc","DIFJefatura Cdc3",{"$f":"COUNTIF($E$2:E46,E46:E46)","v":3},"DIF","Jefatura Cdc","Cdc","Porcentaje de sesiones de capacitación de oficios y habilidades técnicas para el empleo y emprendimiento en las coonias prioritarias, realizadas","Número De Sesiones Realizadas",1500,1800]
["IMJUVETProyectos Y Programas1Abrazando Tus Raíces","IMJUVETProyectos Y Programas1",{"$f":"COUNTIF($E$2:E47,E47:E47)","v":1},"IMJUVET","Proyectos Y Programas","Abrazando Tus Raíces","Porcentaje De Juventudes ","Numero De Juventudes Beneficiadas",0,4500]
["IMJUVETProyectos Y Programas2Cabildo Juvenil","IMJUVETProyectos Y Programas2",{"$f":"COUNTIF($E$2:E48,E48:E48)","v":2},"IMJUVET","Proyectos Y Programas","Cabildo Juvenil","Numero De Etapas Realizadas","Numero De Etapas Realizadas",3,4]
["IMJUVETProyectos Y Programas3Inovatlaq","IMJUVETProyectos Y Programas3",{"$f":"COUNTIF($E$2:E49,E49:E49)","v":3},"IMJUVET","Proyectos Y Programas","Inovatlaq","Porcentaje De Juventudes Participantes","Numero De Juventudes Participantes",0,600]
["IMJUVETProyectos Y Programas4Juventudes A La Cancha","IMJUVETProyectos Y Programas4",{"$f":"COUNTIF($E$2:E50,E50:E50)","v":4},"IMJUVET","Proyectos Y Programas","Juventudes A La Cancha","Juventudes Participantes En Los Torneos","Numero De Juventudes Participantes",0,2000]
["IMJUVETProyectos Y Programas5Juventudes Altruistas","IMJUVETProyectos Y Programas5",{"$f":"COUNTIF($E$2:E51,E51:E51)","v":5},"IMJUVET","Proyectos Y Programas","Juventudes Altruistas","Porcentaje De Juventudes ","Numero De Juventudes Beneficiadas",0,600]
["IMJUVETProyectos Y Programas6Juventudes Emprendedoras","IMJUVETProyectos Y Programas6",{"$f":"COUNTIF($E$2:E52,E52:E52)","v":6},"IMJUVET","Proyectos Y Programas","Juventudes Emprendedoras","Porcentaje De Juventudes ","Numero De Juventudes Beneficiadas",0,500]
["IMJUVETProyectos Y Programas7Premio De Las Juventudes","IMJUVETProyectos Y Programas7",{"$f":"COUNTIF($E$2:E53,E53:E53)","v":7},"IMJUVET","Proyectos Y Programas","Premio De Las Juventudes","Porcentaje De Juventudes Participantes","Numero De Juventudes Participantes",2100,2500]
["IMJUVETProyectos Y Programas8Preparando Juventudes","IMJUVETProyectos Y Programas8",{"$f":"COUNTIF($E$2:E54,E54:E54)","v":8},"IMJUVET","Proyectos Y Programas","Preparando Juventudes","Porcentaje De Jóvenes Que Asistan A Las Charlas","Numero De Jóvenes Participantes",3700,4000]
["INMUJERESPolíticas Publicas 1Acciones Para Una Vida Libre De Violencia","INMUJERESPolíticas Publicas 1",{"$f":"COUNTIF($E$2:E55,E55:E55)","v":1},"INMUJERES","Políticas Publicas ","Acciones Para Una Vida Libre De Violencia","Porcentaje De Atenciones De Primer Contacto, Realizadas","Número De Atenciones Realizadas",430,500]
["INMUJERESPolíticas Publicas 2Acciones Para Una Vida Libre De Violencia","INMUJERESPolíticas Publicas 2",{"$f":"COUNTIF($E$2:E56,E56:E56)","v":2},"INMUJERES","Políticas Publicas ","Acciones Para Una Vida Libre De Violencia","Porcentaje De Acciones De Prevención De La Violencia De Género En La Comunidad, Realizadas","Número De Acciones Realizadas",40,45]
["INMUJERESPolíticas Publicas 3Acciones Para Una Vida Libre De Violencia","INMUJERESPolíticas Publicas 3",{"$f":"COUNTIF($E$2:E57,E57:E57)","v":3},"INMUJERES","Políticas Publicas ","Acciones Para Una Vida Libre De Violencia","Porcentaje De Personas Beneficiadas Con Las Acciones De Prevención, Atención Y Profesionalización En Materia De Violencia Contra Las Mujeres.","Número De Personas Beneficiarias",1500,2500]
["INMUJERESPolíticas Publicas 4Acciones Para Una Vida Libre De Violencia","INMUJERESPolíticas Publicas 4",{"$f":"COUNTIF($E$2:E58,E58:E58)","v":4},"INMUJERES","Políticas Publicas ","Acciones Para Una Vida Libre De Violencia","Porcentaje De Eventos Conmemorativos De Fechas O Acciones Contra La Violencia De Género, Realizados","Número De Eventos Realizados",1,1]
["INMUJERESPolíticas Publicas 5Acciones Por La Igualdad Sustantiva","INMUJERESPolíticas Publicas 5",{"$f":"COUNTIF($E$2:E59,E59:E59)","v":5},"INMUJERES","Políticas Publicas ","Acciones Por La Igualdad Sustantiva","Porcentaje De Personas Beneficiadas Por Las Acciones De Promoción","Número De Personas Beneficiadas",1500,2500]
["INMUJERESPolíticas Publicas 6Acciones Por La Igualdad Sustantiva","INMUJERESPolíticas Publicas 6",{"$f":"COUNTIF($E$2:E60,E60:E60)","v":6},"INMUJERES","Políticas Publicas ","Acciones Por La Igualdad Sustantiva","Porcentaje De Eventos Conmemorativos Para Promover Y Reconocer Los Derechos De Las Mujeres En Su Diversidad, Realizados","Número De Eventos Realizados  ",1,1]
["INMUJERESPolíticas Publicas 7Visión Transversal De La Perspectiva De Género.","INMUJERESPolíticas Publicas 7",{"$f":"COUNTIF($E$2:E61,E61:E61)","v":7},"INMUJERES","Políticas Publicas ","Visión Transversal De La Perspectiva De Género.","Porcentaje De Acciones Con Perspectiva De Género Reportadas.","Número De Acciones Reportadas",30,35]
["INMUJERESPolíticas Publicas 8Visión Transversal De La Perspectiva De Género.","INMUJERESPolíticas Publicas 8",{"$f":"COUNTIF($E$2:E62,E62:E62)","v":8},"INMUJERES","Políticas Publicas ","Visión Transversal De La Perspectiva De Género.","Porcentaje De Mujeres Beneficiadas Por Incorporación De Perspectiva De Género.","Número De Mujeres Beneficiadas",1500,1500]
["Oficialía Mayor Departamento De Capacitación Y Servicio Social1Convenios De Colaboración Para Prácticas Profesionales\n Y Servicio Social Con Universidades E Instituciones Educativas","Oficialía Mayor Departamento De Capacitación Y Servicio Social1",{"$f":"COUNTIF($E$2:E63,E63:E63)","v":1},"Oficialía Mayor ","Departamento De Capacitación Y Servicio Social","Convenios De Colaboración Para Prácticas Profesionales\n Y Servicio Social Con Universidades E Instituciones Educativas","Cantidad De Convenios De Colaboración.","Número De Convenios De Colaboración Celebrados.",12,40]
["Oficialía Mayor Departamento De Capacitación Y Servicio Social2Vinculación Universitaria Tlaquepaque ","Oficialía Mayor Departamento De Capacitación Y Servicio Social2",{"$f":"COUNTIF($E$2:E64,E64:E64)","v":2},"Oficialía Mayor ","Departamento De Capacitación Y Servicio Social","Vinculación Universitaria Tlaquepaque ","Cantidad De Prestadores De Servicio Social Y Prácticas Profesionales Registrados En El Gobierno Municipal De San Pedro Tlaquepaque ","Número De Prestadores De Servicio Social Y Prácticas Profesionales",941,1200]
["Oficialía Mayor Departamento De Capacitación Y Servicio Social3Capacitación En Derechos Humanos","Oficialía Mayor Departamento De Capacitación Y Servicio Social3",{"$f":"COUNTIF($E$2:E65,E65:E65)","v":3},"Oficialía Mayor ","Departamento De Capacitación Y Servicio Social","Capacitación En Derechos Humanos","Porcentaje De  Servidoras Y Servidores Públicos Capacitados  En Materia De Ddhh","Número De Personas Capacitadas",0,750]
["Oficialía Mayor Departamento De Capacitación Y Servicio Social4Difusión De Protocolos","Oficialía Mayor Departamento De Capacitación Y Servicio Social4",{"$f":"COUNTIF($E$2:E66,E66:E66)","v":4},"Oficialía Mayor ","Departamento De Capacitación Y Servicio Social","Difusión De Protocolos","Porcentaje De Personas Con Sensibilización En La Difusión De Protocolos Para Personas Adultas Mayores Y Personas Con Discapacidad ","Número De Personas Capacitadas",0,720]
["Oficialía Mayor Departamento De Capacitación Y Servicio Social5Promoción De Estilos De Vida Y Entornos Laboral, Alimentaria Y Físicamente Saludable Para El Personal.",{"$f":"D67&E67&C67","v":"Oficialía Mayor Departamento De Capacitación Y Servicio Social5"},{"$f":"COUNTIF($E$2:E67,E67:E67)","v":5},"Oficialía Mayor ","Departamento De Capacitación Y Servicio Social","Promoción De Estilos De Vida Y Entornos Laboral, Alimentaria Y Físicamente Saludable Para El Personal.","Porcentaje De Edificios Certificados Como Entornos Saludables ","Número De Edificios Certificados",0,8]
["Oficialía Mayor Departamento De Capacitación Y Servicio Social6Fortalecimiento Y Desarrollo De Habilidades Técnicas, Blandas, De Salud Mental Y De Desarrollo Humano.","Oficialía Mayor Departamento De Capacitación Y Servicio Social6",{"$f":"COUNTIF($E$2:E68,E68:E68)","v":6},"Oficialía Mayor ","Departamento De Capacitación Y Servicio Social","Fortalecimiento Y Desarrollo De Habilidades Técnicas, Blandas, De Salud Mental Y De Desarrollo Humano.","Porcentaje De Servidoras Y Servidores Públicos Capacitados","Número De Personas Capacitadas",0,750]
["Oficialía Mayor Dirección De Desarrollo Organizacional1Diagnostico Clima Organizacional","Oficialía Mayor Dirección De Desarrollo Organizacional1",{"$f":"COUNTIF($E$2:E69,E69:E69)","v":1},"Oficialía Mayor ","Dirección De Desarrollo Organizacional","Diagnostico Clima Organizacional","Porcentaje De Secretarias Atendidas Mediante Un Cuestionario Para Evaluar El Perfil Laboral. ","Número De Secretarias Atendidas",0,14]
["Oficialía Mayor Departamento De Identificación Y Análisis De Riesgos1Identificación De Riesgos En Áreas Operativas ","Oficialía Mayor Departamento De Identificación Y Análisis De Riesgos1",{"$f":"COUNTIF($E$2:E70,E70:E70)","v":1},"Oficialía Mayor ","Departamento De Identificación Y Análisis De Riesgos","Identificación De Riesgos En Áreas Operativas ","Porcentaje De Secretarias Atendidas Mediante Un Cuestionario Para Evaluar El Perfil Laboral  ","Numero De Secretarias Atendidas",0,14]
["Oficialía Mayor Oficialía Mayor1Difusión Integral De Las Obligaciones Y Derechos De Los Servidores Públicos.","Oficialía Mayor Oficialía Mayor1",{"$f":"COUNTIF($E$2:E71,E71:E71)","v":1},"Oficialía Mayor ","Oficialía Mayor","Difusión Integral De Las Obligaciones Y Derechos De Los Servidores Públicos.","Porcentaje De Secretarias Con Promoción Y Difusión De Derechos Y Obligaciones De Los Servidores Públicos","Número De Secretarías Con Promoción Y Difusión De Derechos Y Obligaciones De Los Servidores Públicos. ",0,14]
["Oficialía Mayor Dirección De Recursos Humanos1Pago De Nóminas","Oficialía Mayor Dirección De Recursos Humanos1",{"$f":"COUNTIF($E$2:E72,E72:E72)","v":1},"Oficialía Mayor ","Dirección De Recursos Humanos","Pago De Nóminas","Porcentaje En La Generación Y Expedición Eficiente Y Puntual De La Nómina Ordinaria Municipal, Apoyada En Procesos De Actualización Y Digitalización De Sistemas Para La Gestión De Recursos Humanos.","Número De Nóminas Generadas ",24,24]
["Oficialía Mayor Dirección De Recursos Humanos2Pago De Nóminas","Oficialía Mayor Dirección De Recursos Humanos2",{"$f":"COUNTIF($E$2:E73,E73:E73)","v":2},"Oficialía Mayor ","Dirección De Recursos Humanos","Pago De Nóminas","Porcentaje En La Generación Y Expedición Eficiente Y Puntual De La Nómina Extraordinaria Municipal, Apoyada En Procesos De Actualización Y Digitalización De Sistemas Para La Gestión De Recursos Humanos.","Número De Nóminas Generadas ",65,65]
["Premio Nacional De La CerámicaPremio Nacional De La Cerámica1Premio Nacional De La Cerámica","Premio Nacional De La CerámicaPremio Nacional De La Cerámica1",{"$f":"COUNTIF($E$2:E74,E74:E74)","v":1},"Premio Nacional De La Cerámica","Premio Nacional De La Cerámica","Premio Nacional De La Cerámica","Porcentaje De Artesanos Participantes Dentro De La Edición 49 Del Premio Nacional De La Cerámica","Número De Participantes",912,950]
["Premio Nacional De La CerámicaPremio Nacional De La Cerámica2Premio Nacional De La Cerámica","Premio Nacional De La CerámicaPremio Nacional De La Cerámica2",{"$f":"COUNTIF($E$2:E75,E75:E75)","v":2},"Premio Nacional De La Cerámica","Premio Nacional De La Cerámica","Premio Nacional De La Cerámica","Porcentaje De Artesanos Beneficiados En La Expo Venta De Obras Dentro De La Edición  49 Del Premio Nacional De La Cerámica","Número De Artesanos Beneficiados.",150,180]
["Premio Nacional De La CerámicaPremio Nacional De La Cerámica3Premio Nacional De La Cerámica","Premio Nacional De La CerámicaPremio Nacional De La Cerámica3",{"$f":"COUNTIF($E$2:E76,E76:E76)","v":3},"Premio Nacional De La Cerámica","Premio Nacional De La Cerámica","Premio Nacional De La Cerámica","Porcentaje de talleres y conferencias impartidas para promover y difundir las técnicas artesanales realizadas,",null,4,5]
["Secretaría De Administración Y Finanzas Dirección De Catastro1Trámites Y Servicios ","Secretaría De Administración Y Finanzas Dirección De Catastro1",{"$f":"COUNTIF($E$2:E77,E77:E77)","v":1},"Secretaría De Administración Y Finanzas ","Dirección De Catastro","Trámites Y Servicios ","Porcentaje De Trámites Y Servicios En La Dirección De Catastro, Atendidos ","Número De Trámites Y Servicios Atendidos ",25199,27000]
["Secretaría De Administración Y Finanzas Dirección De Contabilidad Y Glosa 1Programa De Elaboración Y Presentación De Cuentas Públicas","Secretaría De Administración Y Finanzas Dirección De Contabilidad Y Glosa 1",{"$f":"COUNTIF($E$2:E78,E78:E78)","v":1},"Secretaría De Administración Y Finanzas ","Dirección De Contabilidad Y Glosa ","Programa De Elaboración Y Presentación De Cuentas Públicas","Porcentaje De Avance En La Elaboración Y Presentación Puntual De Los Movimientos Detallados Y Cuentas Públicas.","Número de talleres y conferencias realizadas. ",0,14]
["Secretaría De Administración Y Finanzas Dirección De Egresos1Porcentaje De Presupuesto Ejercido De Acuerdo Con Criterios De Eficiencia, Austeridad Y Ahorro","Secretaría De Administración Y Finanzas Dirección De Egresos1",{"$f":"COUNTIF($E$2:E79,E79:E79)","v":1},"Secretaría De Administración Y Finanzas ","Dirección De Egresos","Porcentaje De Presupuesto Ejercido De Acuerdo Con Criterios De Eficiencia, Austeridad Y Ahorro","Porcentaje De Presupuesto Ejercido De Acuerdo Con Base En Criterios De Eficiencia, Austeridad, Ahorro Y Rendición De Cuentas.","Presupuesto Ejercido",2624511115,2624511115]
["Secretaría De Administración Y Finanzas Departamento De Redes Y Telecomunicaciones1Restructuración De Red De Secretaría De Salud (Marcos Montero)","Secretaría De Administración Y Finanzas Departamento De Redes Y Telecomunicaciones1",{"$f":"COUNTIF($E$2:E80,E80:E80)","v":1},"Secretaría De Administración Y Finanzas ","Departamento De Redes Y Telecomunicaciones","Restructuración De Red De Secretaría De Salud (Marcos Montero)","Porcentaje De Etapas Realizadas Para La Instalación De Cámaras De Seguridad","10",0,10]
["Secretaría De Administración Y Finanzas Departamento De Redes Y Telecomunicaciones2Restructuración De Red De La Unidad De Pila Seca","Secretaría De Administración Y Finanzas Departamento De Redes Y Telecomunicaciones2",{"$f":"COUNTIF($E$2:E81,E81:E81)","v":2},"Secretaría De Administración Y Finanzas ","Departamento De Redes Y Telecomunicaciones","Restructuración De Red De La Unidad De Pila Seca","Porcentaje De Etapas Realizadas Para La Instalación De Cámaras De Seguridad","10",0,10]
[{"$f":"B82&F82","v":"Secretaría De Administración Y Finanzas Dirección De Ingresos1Programa De Apoyo A Adultos Mayores"},"Secretaría De Administración Y Finanzas Dirección De Ingresos1",{"$f":"COUNTIF($E$2:E82,E82:E82)","v":1},"Secretaría De Administración Y Finanzas ","Dirección De Ingresos","Programa De Apoyo A Adultos Mayores","Porcentaje De Trámites Autorizados Para Descuentos Y Exenciones A Adultos Mayores","Número De Trámites Realizados",22000,23000]
["Secretaría De Administración Y Finanzas Dirección De Ingresos2Programa De Convenios","Secretaría De Administración Y Finanzas Dirección De Ingresos2",{"$f":"COUNTIF($E$2:E83,E83:E83)","v":2},"Secretaría De Administración Y Finanzas ","Dirección De Ingresos","Programa De Convenios","Porcentaje De Convenios Realizados Para Cumplir Con El Pago De Los Impuestos","Número De Convenios Realizados",320,340]
["Secretaría De Administración Y Finanzas Dirección De Ingresos3Programa Integral De Recaudación","Secretaría De Administración Y Finanzas Dirección De Ingresos3",{"$f":"COUNTIF($E$2:E84,E84:E84)","v":3},"Secretaría De Administración Y Finanzas ","Dirección De Ingresos","Programa Integral De Recaudación","Porcentaje De Avance En La Recaudación Municipal","Cantidad De Recursos Recaudados",336000000,350000000]
["Secretaría De Administración Y Finanzas Subdirección De Patrimonio Municipal1Administración De Bienes Inmuebles","Secretaría De Administración Y Finanzas Subdirección De Patrimonio Municipal1",{"$f":"COUNTIF($E$2:E85,E85:E85)","v":1},"Secretaría De Administración Y Finanzas ","Subdirección De Patrimonio Municipal","Administración De Bienes Inmuebles","PORCENTAJE DE BIENES INMUEBLES DEL MUNICIPIO, CON REVISIÓN ","NÚMERO DE BIENES INMUEBLES REVISADOS",1160,1289]
["Secretaría De Administración Y Finanzas Departamento De Bienes Muebles1Administración De Bienes Muebles","Secretaría De Administración Y Finanzas Departamento De Bienes Muebles1",{"$f":"COUNTIF($E$2:E86,E86:E86)","v":1},"Secretaría De Administración Y Finanzas ","Departamento De Bienes Muebles","Administración De Bienes Muebles","Porcentaje De Efectividad De Revisión De Bienes Muebles.","Porcentaje ",30258,49923]
["Secretaría De Administración Y Finanzas Dirección De Recursos Materiales1Capacitación Para Compras Y Adquisiciones","Secretaría De Administración Y Finanzas Dirección De Recursos Materiales1",{"$f":"COUNTIF($E$2:E87,E87:E87)","v":1},"Secretaría De Administración Y Finanzas ","Dirección De Recursos Materiales","Capacitación Para Compras Y Adquisiciones","Porcentaje De Capacitaciones En Materia De Adquisiciones, Realizadas ","Número De Capacitaciones Realizadas",1,2]
["Secretaría De Administración Y Finanzas Dirección De Recursos Materiales2Procesos De Adquisiciones Ejecutadas ","Secretaría De Administración Y Finanzas Dirección De Recursos Materiales2",{"$f":"COUNTIF($E$2:E88,E88:E88)","v":2},"Secretaría De Administración Y Finanzas ","Dirección De Recursos Materiales","Procesos De Adquisiciones Ejecutadas ","Porcentaje De Procedimientos De Adquisiciones De Bienes Y Servicios Realizados.","Número De Procedimientos Realizados.",173,180]
["Secretaría De Administración Y Finanzas Departamento De Taller Municipal1Atención Al Mantenimiento Y Reparación Del Parque\n Vehicular Del Municipio De San Pedro Tlaquepaque","Secretaría De Administración Y Finanzas Departamento De Taller Municipal1",{"$f":"COUNTIF($E$2:E89,E89:E89)","v":1},"Secretaría De Administración Y Finanzas ","Departamento De Taller Municipal","Atención Al Mantenimiento Y Reparación Del Parque\n Vehicular Del Municipio De San Pedro Tlaquepaque","Porcentaje De Unidades  Reparadas En El Departamento De Taller Municipal. ","Número De Unidades  Reparadas. ",0,1200]
["Secretaría De BienestarAtención A Grupos En Situación De Vulnerabilidad1Entre Sombras Y Sueños De Esperanza","Secretaría De BienestarAtención A Grupos En Situación De Vulnerabilidad1",{"$f":"COUNTIF($E$2:E90,E90:E90)","v":1},"Secretaría De Bienestar","Atención A Grupos En Situación De Vulnerabilidad","Entre Sombras Y Sueños De Esperanza","porcentaje de personas atendidas mediante talleres de inteligencia emocional ","número de personas atendidas",null,60]
["Secretaría De BienestarAtención A Grupos En Situación De Vulnerabilidad2Entre Sombras Y Sueños De Esperanza","Secretaría De BienestarAtención A Grupos En Situación De Vulnerabilidad2",{"$f":"COUNTIF($E$2:E91,E91:E91)","v":2},"Secretaría De Bienestar","Atención A Grupos En Situación De Vulnerabilidad","Entre Sombras Y Sueños De Esperanza","porcentaje de familias atendidas con pláticas de atención integral ","número de familias atendidas",null,30]
["Secretaría De BienestarAtención A Grupos En Situación De Vulnerabilidad3¿Qué Hacer Con Los Desechos Orgánicos? Y Obtener Un Ingreso","Secretaría De BienestarAtención A Grupos En Situación De Vulnerabilidad3",{"$f":"COUNTIF($E$2:E92,E92:E92)","v":3},"Secretaría De Bienestar","Atención A Grupos En Situación De Vulnerabilidad","¿Qué Hacer Con Los Desechos Orgánicos? Y Obtener Un Ingreso","Porcentaje de personas concientizadas sobre la importancia del manejo adecuado de residuos orgánicos.                                                                                                     ","Número de personas concientizadas",0,30]
["Secretaría De BienestarAtención A Grupos En Situación De Vulnerabilidad4¿Qué Hacer Con Los Desechos Orgánicos? Y Obtener Un Ingreso","Secretaría De BienestarAtención A Grupos En Situación De Vulnerabilidad4",{"$f":"COUNTIF($E$2:E93,E93:E93)","v":4},"Secretaría De Bienestar","Atención A Grupos En Situación De Vulnerabilidad","¿Qué Hacer Con Los Desechos Orgánicos? Y Obtener Un Ingreso","Porcentaje de personas capacitadas en técnicas de elaboración de composta.","Número de personas capacitadas ",0,30]
["Secretaría De BienestarAtención A Grupos En Situación De Vulnerabilidad5¿Qué Hacer Con Los Desechos Orgánicos? Y Obtener Un Ingreso","Secretaría De BienestarAtención A Grupos En Situación De Vulnerabilidad5",{"$f":"COUNTIF($E$2:E94,E94:E94)","v":5},"Secretaría De Bienestar","Atención A Grupos En Situación De Vulnerabilidad","¿Qué Hacer Con Los Desechos Orgánicos? Y Obtener Un Ingreso","Porcentaje de personas capacitadas para implementar espacios para la producción de composta ","Número de personas capacitadas ",0,10]
["Secretaría De BienestarAtención A Grupos En Situación De Vulnerabilidad6Raíces Fuertes:\nComunidad De Mujeres Por El Bienestar","Secretaría De BienestarAtención A Grupos En Situación De Vulnerabilidad6",{"$f":"COUNTIF($E$2:E95,E95:E95)","v":6},"Secretaría De Bienestar","Atención A Grupos En Situación De Vulnerabilidad","Raíces Fuertes:\nComunidad De Mujeres Por El Bienestar","Porcentaje De Personas Capacitadas  Mediante Un Taller En Habilidades De Crianza, Autocuidado Y Prevención De Adicciones.","Número De Personas Capacitadas",0,40]
["Secretaría De BienestarDirección De Educación1Abrigando Tu Bienestar","Secretaría De BienestarDirección De Educación1",{"$f":"COUNTIF($E$2:E96,E96:E96)","v":1},"Secretaría De Bienestar","Dirección De Educación","Abrigando Tu Bienestar","Porcentaje De Personas Beneficiadas Mediante La Campaña Abrigando Tu Bienestar ","Número De Personas  Beneficiadas",1000,1500]
["Secretaría De BienestarDirección De Educación2Actividades Extraescolares","Secretaría De BienestarDirección De Educación2",{"$f":"COUNTIF($E$2:E97,E97:E97)","v":2},"Secretaría De Bienestar","Dirección De Educación","Actividades Extraescolares","Porcentaje De Alumnos Beneficiados, Mediante Cursos Extraescolares","Número De Alumnos Beneficiados ",0,1000]
["Secretaría De BienestarDirección De Educación3Cabildo Infantil","Secretaría De BienestarDirección De Educación3",{"$f":"COUNTIF($E$2:E98,E98:E98)","v":3},"Secretaría De Bienestar","Dirección De Educación","Cabildo Infantil","Porcentaje De Alumnos Elegidos En El Proceso Electoral","Número De Alumnos Elegidos En El Proceso Electoral",0,21]
["Secretaría De BienestarDirección De Educación4Educación Y Capacitación Para El Medio Ambiente","Secretaría De BienestarDirección De Educación4",{"$f":"COUNTIF($E$2:E99,E99:E99)","v":4},"Secretaría De Bienestar","Dirección De Educación","Educación Y Capacitación Para El Medio Ambiente","Porcentaje De Planteles Intervenidos Mediante Capacitaciones Sobre Cuidado Del Medio Ambiente","Numero De Planteles Intervenidos",0,50]
["Secretaría De BienestarDirección De Educación5Feria De La Oferta Educativa","Secretaría De BienestarDirección De Educación5",{"$f":"COUNTIF($E$2:E100,E100:E100)","v":5},"Secretaría De Bienestar","Dirección De Educación","Feria De La Oferta Educativa","Porcentaje De Escuelas Publicas Y Privadas Que Ofrecen  Charlas Sobre Ofertas Educativas A Estudiantes De Secundaria, Impartidas ","Número De Charlas Impartidas ",5000,10000]
["Secretaría De BienestarDirección De Educación6Reconocimiento A La Labor Docente Y Entrega De La Medalla \"Francisco Silva Romero\"","Secretaría De BienestarDirección De Educación6",{"$f":"COUNTIF($E$2:E101,E101:E101)","v":6},"Secretaría De Bienestar","Dirección De Educación","Reconocimiento A La Labor Docente Y Entrega De La Medalla \"Francisco Silva Romero\"","Porcentaje De Docentes Reconocidos Mediante La Entrega De La Medalla \"Francisco Silva Romero\"","Número De Docentes Reconocidos ",0,50]
["Secretaría De BienestarDirección De Programas Sociales Para El Bienestar1Aprendiendo Con Bienestar","Secretaría De BienestarDirección De Programas Sociales Para El Bienestar1",{"$f":"COUNTIF($E$2:E102,E102:E102)","v":1},"Secretaría De Bienestar","Dirección De Programas Sociales Para El Bienestar","Aprendiendo Con Bienestar","Útiles Escolares","Número De Alumnos Inscritos En Matrícula De Educación Básica Pública",0,100]
["Secretaría De BienestarDirección De Programas Sociales Para El Bienestar2Bienestar Incluyente","Secretaría De BienestarDirección De Programas Sociales Para El Bienestar2",{"$f":"COUNTIF($E$2:E103,E103:E103)","v":2},"Secretaría De Bienestar","Dirección De Programas Sociales Para El Bienestar","Bienestar Incluyente","Apoyar En Las Personas Con Alguna Discapacidad De San Pedro Tlaquepaque","Presupuesto Ejercido Por Entrega",0,48000600]
["Secretaría De BienestarDirección De Programas Sociales Para El Bienestar3Líderes De Esperanza ","Secretaría De BienestarDirección De Programas Sociales Para El Bienestar3",{"$f":"COUNTIF($E$2:E104,E104:E104)","v":3},"Secretaría De Bienestar","Dirección De Programas Sociales Para El Bienestar","Líderes De Esperanza ","Apoyar A Mujeres Líderes Del Hogar,  Y Tutoras De San Pedro Tlaquepaque ","Presupuesto Ejercido Por Entrega",0,55000000]
["Secretaría De BienestarDirección De Programas Sociales Para El Bienestar4Raíces De Esperanza","Secretaría De BienestarDirección De Programas Sociales Para El Bienestar4",{"$f":"COUNTIF($E$2:E105,E105:E105)","v":4},"Secretaría De Bienestar","Dirección De Programas Sociales Para El Bienestar","Raíces De Esperanza","Artesanas Y Artesanos De San Pedro Tlaquepaque Inscritos En El Programa","428",0,428]
["Secretaría De BienestarSubdirección De Desarrollo Y Atención Al Sector Agropecuario1Material Incorporado A Los Caminos Rurales","Secretaría De BienestarSubdirección De Desarrollo Y Atención Al Sector Agropecuario1",{"$f":"COUNTIF($E$2:E106,E106:E106)","v":1},"Secretaría De Bienestar","Subdirección De Desarrollo Y Atención Al Sector Agropecuario","Material Incorporado A Los Caminos Rurales","Porcentaje De Gestiones Para La Compra De Material Incorporado A Los Caminos Rurales ","Número De Gestiones Realizadas ",0,5]
["Secretaría De BienestarSubdirección De Desarrollo Y Atención Al Sector Agropecuario2Material Incorporado A Los Caminos Rurales","Secretaría De BienestarSubdirección De Desarrollo Y Atención Al Sector Agropecuario2",{"$f":"COUNTIF($E$2:E107,E107:E107)","v":2},"Secretaría De Bienestar","Subdirección De Desarrollo Y Atención Al Sector Agropecuario","Material Incorporado A Los Caminos Rurales","Porcentaje De Viajes Con El Material Que Se Incorporara A Los Caminos Rurales ","Número De Gestiones Realizadas ",0,100]
["Secretaría De BienestarSubdirección De Desarrollo Y Atención Al Sector Agropecuario3Mejorador De Suelos  Para Parcelas Agrícolas","Secretaría De BienestarSubdirección De Desarrollo Y Atención Al Sector Agropecuario3",{"$f":"COUNTIF($E$2:E108,E108:E108)","v":3},"Secretaría De Bienestar","Subdirección De Desarrollo Y Atención Al Sector Agropecuario","Mejorador De Suelos  Para Parcelas Agrícolas","Porcentaje De Toneladas De Cal Agrícola Adquiridas ","Numero De Toneladas Adquiridas ",0,700]
["Secretaría De BienestarSubdirección De Desarrollo Y Atención Al Sector Agropecuario4Mejorador De Suelos  Para Parcelas Agrícolas","Secretaría De BienestarSubdirección De Desarrollo Y Atención Al Sector Agropecuario4",{"$f":"COUNTIF($E$2:E109,E109:E109)","v":4},"Secretaría De Bienestar","Subdirección De Desarrollo Y Atención Al Sector Agropecuario","Mejorador De Suelos  Para Parcelas Agrícolas","Porcentaje De Toneladas De Composta Adquiridas ","Numero De Toneladas Adquiridas ",0,700]
["Secretaría De BienestarSubdirección De Desarrollo Y Atención Al Sector Agropecuario5Rehabilitación Permanente De Caminos Rurales","Secretaría De BienestarSubdirección De Desarrollo Y Atención Al Sector Agropecuario5",{"$f":"COUNTIF($E$2:E110,E110:E110)","v":5},"Secretaría De Bienestar","Subdirección De Desarrollo Y Atención Al Sector Agropecuario","Rehabilitación Permanente De Caminos Rurales","Porcentaje De Etapas De Gestión Para La Adquisición De Una Moto Conformadora.","Número De Etapas De Gestión Realizadas",0,4]
["Secretaría De BienestarSubdirección De Desarrollo Y Atención Al Sector Agropecuario6Pozos De Absorción Tecnificados.","Secretaría De BienestarSubdirección De Desarrollo Y Atención Al Sector Agropecuario6",{"$f":"COUNTIF($E$2:E111,E111:E111)","v":6},"Secretaría De Bienestar","Subdirección De Desarrollo Y Atención Al Sector Agropecuario","Pozos De Absorción Tecnificados.","Porcentaje De Pozos De Absorción Tecnificados Construidos.","Pozos De Absorción Construidos.",10,10]
["Secretaría De BienestarDirección De Vinculación Con Sectores Sociales1Raíces De Bienestar","Secretaría De BienestarDirección De Vinculación Con Sectores Sociales1",{"$f":"COUNTIF($E$2:E112,E112:E112)","v":1},"Secretaría De Bienestar","Dirección De Vinculación Con Sectores Sociales","Raíces De Bienestar","Porcentaje De Talleres De Concientización Imprentadas En El H. Ayuntamiento","Talleres Impartidos  A Pueblos Originarios",0,22]
["Secretaría De BienestarSubdirección De Desarrollo Y Atención Al Sector Agropecuario7Mantenimiento Del Dron Agrícola","Secretaría De BienestarSubdirección De Desarrollo Y Atención Al Sector Agropecuario7",{"$f":"COUNTIF($E$2:E113,E113:E113)","v":7},"Secretaría De Bienestar","Subdirección De Desarrollo Y Atención Al Sector Agropecuario","Mantenimiento Del Dron Agrícola","Porcentaje En La Gestión Para El Mantenimiento Del Dron Agrícola","Número De Gestiones Realizadas ",0,5]
["Secretaría De BienestarSubdirección De Desarrollo Y Atención Al Sector Agropecuario8Hidroponía ","Secretaría De BienestarSubdirección De Desarrollo Y Atención Al Sector Agropecuario8",{"$f":"COUNTIF($E$2:E114,E114:E114)","v":8},"Secretaría De Bienestar","Subdirección De Desarrollo Y Atención Al Sector Agropecuario","Hidroponía ","Porcentaje De Huertos De Hidroponía Creados En El Municipio","Número De Huertos Creados",0,40]
["Secretaría De BienestarSubdirección De Desarrollo Y Atención Al Sector Agropecuario9Rehabilitación Permanente De Caminos Rurales","Secretaría De BienestarSubdirección De Desarrollo Y Atención Al Sector Agropecuario9",{"$f":"COUNTIF($E$2:E115,E115:E115)","v":9},"Secretaría De Bienestar","Subdirección De Desarrollo Y Atención Al Sector Agropecuario","Rehabilitación Permanente De Caminos Rurales","Porcentaje de caminos rurales reahabilitados ","Número de caminos rehabilitados ",0,60]
["Secretaría De Fomento Económico Y CulturalDirección De Cultura1Preservación De Tradiciones Cultural","Secretaría De Fomento Económico Y CulturalDirección De Cultura1",{"$f":"COUNTIF($E$2:E116,E116:E116)","v":1},"Secretaría De Fomento Económico Y Cultural","Dirección De Cultura","Preservación De Tradiciones Cultural","Porcentaje De Murales Realizados","Número De Murales Realizados",0,5]
["Secretaría De Fomento Económico Y CulturalDirección De Cultura2Preservación De Tradiciones Cultural","Secretaría De Fomento Económico Y CulturalDirección De Cultura2",{"$f":"COUNTIF($E$2:E117,E117:E117)","v":2},"Secretaría De Fomento Económico Y Cultural","Dirección De Cultura","Preservación De Tradiciones Cultural","Porcentaje De Presentaciones Realizadas","Número De Presentaciones Realizadas",0,8]
["Secretaría De Fomento Económico Y CulturalAdministración Del Centro Cultural El Refugio1Acondicionamiento Y Equipamiento Del Refugio","Secretaría De Fomento Económico Y CulturalAdministración Del Centro Cultural El Refugio1",{"$f":"COUNTIF($E$2:E118,E118:E118)","v":1},"Secretaría De Fomento Económico Y Cultural","Administración Del Centro Cultural El Refugio","Acondicionamiento Y Equipamiento Del Refugio","Porcentaje De Etapas De Gestión Del Programa Dentro Del Centro Cultural El Refugio.","Número De Etapas Realizadas ",0,5]
["Secretaría De Fomento Económico Y CulturalAdministración Del Centro Cultural El Refugio2Mantenimiento Del Centro Cultural El Refugio","Secretaría De Fomento Económico Y CulturalAdministración Del Centro Cultural El Refugio2",{"$f":"COUNTIF($E$2:E119,E119:E119)","v":2},"Secretaría De Fomento Económico Y Cultural","Administración Del Centro Cultural El Refugio","Mantenimiento Del Centro Cultural El Refugio","Porcentaje De Etapas De Gestión Para El Mantenimiento Del Centro Cultural El Refugio, Realizadas.","Número De Etapas Realizadas ",0,6]
["Secretaría De Fomento Económico Y CulturalDirección Del Centro Histórico1Agenda Del Espacio Público","Secretaría De Fomento Económico Y CulturalDirección Del Centro Histórico1",{"$f":"COUNTIF($E$2:E120,E120:E120)","v":1},"Secretaría De Fomento Económico Y Cultural","Dirección Del Centro Histórico","Agenda Del Espacio Público","Porcentaje De Autorizaciones Emitidas Para El Uso Del Espacio Público Del Centro Histórico","Número De Autorizaciones Emitidas",80,120]
["Secretaría De Fomento Económico Y CulturalDirección Del Centro Histórico2Casa Colibrí","Secretaría De Fomento Económico Y CulturalDirección Del Centro Histórico2",{"$f":"COUNTIF($E$2:E121,E121:E121)","v":2},"Secretaría De Fomento Económico Y Cultural","Dirección Del Centro Histórico","Casa Colibrí","Porcentaje De Exposiciones Realizadas","Número De Exposiciones Realizadas",0,5]
["Secretaría De Fomento Económico Y CulturalDirección Del Centro Histórico3Mantenimiento Y Conservación Del Centro Histórico","Secretaría De Fomento Económico Y CulturalDirección Del Centro Histórico3",{"$f":"COUNTIF($E$2:E122,E122:E122)","v":3},"Secretaría De Fomento Económico Y Cultural","Dirección Del Centro Histórico","Mantenimiento Y Conservación Del Centro Histórico","Porcentaje De Actividades De Mantenimiento Y Conservación Del Centro Histórico","Número De Actividades Realizadas",240,400]
["Secretaría De Fomento Económico Y CulturalDirección De Cultura3Desarrollo Cultural","Secretaría De Fomento Económico Y CulturalDirección De Cultura3",{"$f":"COUNTIF($E$2:E123,E123:E123)","v":3},"Secretaría De Fomento Económico Y Cultural","Dirección De Cultura","Desarrollo Cultural","Porcentaje De Actividades Realizadas En Las Colonias Del Municipio ","Número De Actividades Realizadas",0,10]
["Secretaría De Fomento Económico Y CulturalDirección De Desarrollo Artesanal Y Turístico1Capacitación","Secretaría De Fomento Económico Y CulturalDirección De Desarrollo Artesanal Y Turístico1",{"$f":"COUNTIF($E$2:E124,E124:E124)","v":1},"Secretaría De Fomento Económico Y Cultural","Dirección De Desarrollo Artesanal Y Turístico","Capacitación","Porcentaje de capacitaciones y talleres impartidos a los artesanos del municipio ","Numero de capacitaciones y talleres impartidos ",9,12]
["Secretaría De Fomento Económico Y CulturalDirección De Desarrollo Artesanal Y Turístico2Padrón Artesanal Y Credencialización","Secretaría De Fomento Económico Y CulturalDirección De Desarrollo Artesanal Y Turístico2",{"$f":"COUNTIF($E$2:E125,E125:E125)","v":2},"Secretaría De Fomento Económico Y Cultural","Dirección De Desarrollo Artesanal Y Turístico","Padrón Artesanal Y Credencialización","Porcentaje de actualizción del Padrón de Beneficiarios","Número de visitas de verificación en el padrón",492,492]
["Secretaría De Fomento Económico Y CulturalDirección De Desarrollo Artesanal Y Turístico3Rescatando Nuestras Tradiciones","Secretaría De Fomento Económico Y CulturalDirección De Desarrollo Artesanal Y Turístico3",{"$f":"COUNTIF($E$2:E126,E126:E126)","v":3},"Secretaría De Fomento Económico Y Cultural","Dirección De Desarrollo Artesanal Y Turístico","Rescatando Nuestras Tradiciones","Porcentaje de talleres para rescatar tradiciones artesanales, impartidos","Numero de talleres impartidos ",50,60]
["Secretaría De Fomento Económico Y CulturalDirección De Desarrollo Artesanal Y Turístico4Atención De Visitantes En Módulos","Secretaría De Fomento Económico Y CulturalDirección De Desarrollo Artesanal Y Turístico4",{"$f":"COUNTIF($E$2:E127,E127:E127)","v":4},"Secretaría De Fomento Económico Y Cultural","Dirección De Desarrollo Artesanal Y Turístico","Atención De Visitantes En Módulos"," Porcentaje de personas que visitan el municpio registrados en módulos de información, tour-operadores. ","Número de personas que visitan el municipio registrados en módulos de información, tour-operadores.",76000,77000]
["Secretaría De Fomento Económico Y CulturalDirección De Desarrollo Artesanal Y Turístico5Festivales, Eventos, Ferias Y Exposiciones.","Secretaría De Fomento Económico Y CulturalDirección De Desarrollo Artesanal Y Turístico5",{"$f":"COUNTIF($E$2:E128,E128:E128)","v":5},"Secretaría De Fomento Económico Y Cultural","Dirección De Desarrollo Artesanal Y Turístico","Festivales, Eventos, Ferias Y Exposiciones.","Porcentaje De Actividades Turísticas Y  Culturales Que Promueven El Flujo De Visitantes, Realizadas ","Número De Actividades Turísticas Y Culturales Realizadas ",17,19]
["Secretaría De Fomento Económico Y CulturalDirección De Desarrollo Artesanal Y Turístico6Permanencia Pueblo Mágico","Secretaría De Fomento Económico Y CulturalDirección De Desarrollo Artesanal Y Turístico6",{"$f":"COUNTIF($E$2:E129,E129:E129)","v":6},"Secretaría De Fomento Económico Y Cultural","Dirección De Desarrollo Artesanal Y Turístico","Permanencia Pueblo Mágico","Porcentaje De Personas Que Visitan El Municipio  Registrados En Módulos De Información, Tour-Operadores Y Hoteles   ","Número De Visitantes Registrados ",400000,405000]
["Secretaría De Fomento Económico Y CulturalDirección De Gestión Empresarial E Industrial1Asesoría Personalizada De Emprendimiento","Secretaría De Fomento Económico Y CulturalDirección De Gestión Empresarial E Industrial1",{"$f":"COUNTIF($E$2:E130,E130:E130)","v":1},"Secretaría De Fomento Económico Y Cultural","Dirección De Gestión Empresarial E Industrial","Asesoría Personalizada De Emprendimiento","Porcentaje De Personas Capacitadas En Temas Empresariales.","Número De Personas Capacitadas En Temas Empresariales",100,120]
["Secretaría De Fomento Económico Y CulturalDirección De Gestión Empresarial E Industrial2 Empleo A Tu Alcance",{"$f":"D131&E131&C131","v":"Secretaría De Fomento Económico Y CulturalDirección De Gestión Empresarial E Industrial2"},{"$f":"COUNTIF($E$2:E131,E131:E131)","v":2},"Secretaría De Fomento Económico Y Cultural","Dirección De Gestión Empresarial E Industrial"," Empleo A Tu Alcance","Porcentaje De Personas Beneficiadas Con Alguna Vacante, Mediante El Programa Empleo A Tu Alcance","Número De Personas Beneficiarias ",300,350]
["Secretaría De Fomento Económico Y CulturalDirección De Gestión Empresarial E Industrial3Vinculación Con Empresas","Secretaría De Fomento Económico Y CulturalDirección De Gestión Empresarial E Industrial3",{"$f":"COUNTIF($E$2:E132,E132:E132)","v":3},"Secretaría De Fomento Económico Y Cultural","Dirección De Gestión Empresarial E Industrial","Vinculación Con Empresas","Porcentaje De Empresarios Atendidos Mediante La Vinculación Con Las Áreas  Correspondientes ","Número De Empresarios Atendidos",30,35]
["Secretaría De Fomento Económico Y CulturalSecretaria De Fomento Económico Y Cultural 1Festivales, Eventos Y Ferias ","Secretaría De Fomento Económico Y CulturalSecretaria De Fomento Económico Y Cultural 1",{"$f":"COUNTIF($E$2:E133,E133:E133)","v":1},"Secretaría De Fomento Económico Y Cultural","Secretaria De Fomento Económico Y Cultural ","Festivales, Eventos Y Ferias ","Festivales, Actividades Y Eventos. ","Numero De Festivales, Eventos, Actividades. ",7,12]
["Secretaría De Fomento Económico Y CulturalSubdirección De Bibliotecas1Talleres De Fomento A Cultura","Secretaría De Fomento Económico Y CulturalSubdirección De Bibliotecas1",{"$f":"COUNTIF($E$2:E134,E134:E134)","v":1},"Secretaría De Fomento Económico Y Cultural","Subdirección De Bibliotecas","Talleres De Fomento A Cultura","Porcentaje De Personas Atendidas Mediante Los Talleres De Fomento A La Cultura.","Numero De Personas Atendidas",100000,110000]
["Secretaría De Fomento Económico Y CulturalSubDirección De Museos1Renovación Museográfica Y Digitalización","Secretaría De Fomento Económico Y CulturalSubDirección De Museos1",{"$f":"COUNTIF($E$2:E135,E135:E135)","v":1},"Secretaría De Fomento Económico Y Cultural","SubDirección De Museos","Renovación Museográfica Y Digitalización","_Renovación Museográfica: 3 Salas Remodeladas\n- Adquisición De Equipo: Luminarias Led Profesionales\n- Producción Digital: 1 Recorrido Virtual Interactivo\n- Materiales Gráficos: Impresiones Educativas","Número De Visitantes",18000,20000]
["Secretaría De Fomento Económico Y CulturalSubDirección De Museos2Exposiciones Temporales","Secretaría De Fomento Económico Y CulturalSubDirección De Museos2",{"$f":"COUNTIF($E$2:E136,E136:E136)","v":2},"Secretaría De Fomento Económico Y Cultural","SubDirección De Museos","Exposiciones Temporales","Porcentaje De Visitante Anuales.","Número De Visitantes ",18000,20000]
["Secretaría De Fomento Económico Y CulturalSubdirección De Promoción Y Difusión Cultural1Desarrollo Artístico","Secretaría De Fomento Económico Y CulturalSubdirección De Promoción Y Difusión Cultural1",{"$f":"COUNTIF($E$2:E137,E137:E137)","v":1},"Secretaría De Fomento Económico Y Cultural","Subdirección De Promoción Y Difusión Cultural","Desarrollo Artístico","Porcentaje De Avance En La Promoción Y Organización De Cursos, Talleres, Para El Desarrollo De Capacidades Artísticas    ","Número De Cursos, Talleres, Realizados",25,30]
["Secretaría De Fomento Económico Y CulturalDirección De Desarrollo Artesanal Y Turístico7Padrón Artesanal Y Credencialización","Secretaría De Fomento Económico Y CulturalDirección De Desarrollo Artesanal Y Turístico7",{"$f":"COUNTIF($E$2:E138,E138:E138)","v":7},"Secretaría De Fomento Económico Y Cultural","Dirección De Desarrollo Artesanal Y Turístico","Padrón Artesanal Y Credencialización","Porcentaje de credenciales expedidas a los artesanos","Numero de credenciales expedidas",492,492]
["Secretaría De Gobernanza Y TerritorioDepartamento De Asuntos Religiosos1Servicio De Atención A Las Necesidades De Las Distintas Asociaciones Religiosas","Secretaría De Gobernanza Y TerritorioDepartamento De Asuntos Religiosos1",{"$f":"COUNTIF($E$2:E139,E139:E139)","v":1},"Secretaría De Gobernanza Y Territorio","Departamento De Asuntos Religiosos","Servicio De Atención A Las Necesidades De Las Distintas Asociaciones Religiosas","   Porcentaje De Asociaciones Religiosas Atendidas ","Número De Asociaciones Religiosas Atendidas ",180,225]
["Secretaría De Gobernanza Y TerritorioDirección De Delegaciones Y Agencias Municipales1Actividades Administrativas ","Secretaría De Gobernanza Y TerritorioDirección De Delegaciones Y Agencias Municipales1",{"$f":"COUNTIF($E$2:E140,E140:E140)","v":1},"Secretaría De Gobernanza Y Territorio","Dirección De Delegaciones Y Agencias Municipales","Actividades Administrativas ","Porcentaje De Solicitudes De Comprobantes De Domicilio Expedidas ","Numero De Solicitudes De Comprobantes De Domicilio Expedidos",4650,5500]
["Secretaría De Gobernanza Y TerritorioDirección De Delegaciones Y Agencias Municipales2Atención A Solicitudes Ciudadanas ","Secretaría De Gobernanza Y TerritorioDirección De Delegaciones Y Agencias Municipales2",{"$f":"COUNTIF($E$2:E141,E141:E141)","v":2},"Secretaría De Gobernanza Y Territorio","Dirección De Delegaciones Y Agencias Municipales","Atención A Solicitudes Ciudadanas ","Porcentaje De Solicitudes Canalizadas Para Su Atención","Porcentaje Número De Solicitudes Canalizadas ",2000,2250]
["Secretaría De Gobernanza Y TerritorioDirección De Delegaciones Y Agencias Municipales3Festividades Tradicionales ","Secretaría De Gobernanza Y TerritorioDirección De Delegaciones Y Agencias Municipales3",{"$f":"COUNTIF($E$2:E142,E142:E142)","v":3},"Secretaría De Gobernanza Y Territorio","Dirección De Delegaciones Y Agencias Municipales","Festividades Tradicionales ","Porcentaje De Asistentes A Las Festividades Porcentaje De Asistentes A Las Festividades Tradicionales Realizadas","Número De Asistentes A Las Festividades ",4200,5800]
["Secretaría De Gobernanza Y TerritorioDirección De Delegaciones Y Agencias Municipales4Visitas A Colonias ","Secretaría De Gobernanza Y TerritorioDirección De Delegaciones Y Agencias Municipales4",{"$f":"COUNTIF($E$2:E143,E143:E143)","v":4},"Secretaría De Gobernanza Y Territorio","Dirección De Delegaciones Y Agencias Municipales","Visitas A Colonias ","Porcentaje De Recorridos Para La Detección De Las Problemáticas De Las Colonias  Comunidades Del Municipio, Realizados","Numero De Recorridos Realizados",1200,1500]
["Secretaría De Gobernanza Y TerritorioDirección De Archivo Municipal 1Programa Para La Clasificación, Organización, Transferencia, Resguardo Y Consulta De Información Oficial, Coordinado Por La Dirección De Archivo","Secretaría De Gobernanza Y TerritorioDirección De Archivo Municipal 1",{"$f":"COUNTIF($E$2:E144,E144:E144)","v":1},"Secretaría De Gobernanza Y Territorio","Dirección De Archivo Municipal ","Programa Para La Clasificación, Organización, Transferencia, Resguardo Y Consulta De Información Oficial, Coordinado Por La Dirección De Archivo","Porcentaje De Etapas Para La Clasificación, Organización, Transferencia, Resguardo Y Consulta De Información Oficial","Número De Etapas Realizadas",0,6]
["Secretaría De Gobernanza Y TerritorioDirección De Archivo Municipal 2Programa De Capacitación En Materia Archivística","Secretaría De Gobernanza Y TerritorioDirección De Archivo Municipal 2",{"$f":"COUNTIF($E$2:E145,E145:E145)","v":2},"Secretaría De Gobernanza Y Territorio","Dirección De Archivo Municipal ","Programa De Capacitación En Materia Archivística","Porcentaje De Capacitaciones En Materia Archivística Realizadas Por La Dirección De Archivo","Número De Capacitaciones Realizadas",9,10]
[{"$f":"B146&F146","v":"Secretaría De Gobernanza Y TerritorioDirección De Archivo Municipal 3Programa De Depuración, Baja Documental Y Transferencia Secundaria En El Archivo De Concentración"},"Secretaría De Gobernanza Y TerritorioDirección De Archivo Municipal 3",{"$f":"COUNTIF($E$2:E146,E146:E146)","v":3},"Secretaría De Gobernanza Y Territorio","Dirección De Archivo Municipal ","Programa De Depuración, Baja Documental Y Transferencia Secundaria En El Archivo De Concentración","Porcentaje De Etapas Para Depurar, Dar De Baja Y Hacer La Transferencia Secundaria En Archivo De Concentración, Realizadas","Número De Etapas Realizadas",0,7]
["Secretaría De Gobernanza Y TerritorioDirección De Archivo Municipal 4Proyecto Para La Adquisición Y Colocación De Elevador De Carga Hidráulico, Con Capacidad De 1,000 Kg Para El Archivo Municipal ","Secretaría De Gobernanza Y TerritorioDirección De Archivo Municipal 4",{"$f":"COUNTIF($E$2:E147,E147:E147)","v":4},"Secretaría De Gobernanza Y Territorio","Dirección De Archivo Municipal ","Proyecto Para La Adquisición Y Colocación De Elevador De Carga Hidráulico, Con Capacidad De 1,000 Kg Para El Archivo Municipal ","Porcentaje De Etapas Para La Adquisición Y Colocación De Un Elevador De Carga Hidráulico Para El Archivo Municipal, Realizadas","Número De Etapas Realizadas",0,4]
["Secretaría De Gobernanza Y TerritorioSubdirección De Inspección Ambiental1Concientización Y Regularización A Contribuyentes Que  Tienen Talleres De Laminado Y Pintura","Secretaría De Gobernanza Y TerritorioSubdirección De Inspección Ambiental1",{"$f":"COUNTIF($E$2:E148,E148:E148)","v":1},"Secretaría De Gobernanza Y Territorio","Subdirección De Inspección Ambiental","Concientización Y Regularización A Contribuyentes Que  Tienen Talleres De Laminado Y Pintura","Concientización Y Regularización A Contribuyentes Que  Tienen Talleres De Laminado Y Pintura","Inspeccionar Los Giros De Talleres De Laminado Y Pintura ",40,50]
["Secretaría De Gobernanza Y TerritorioSubdirección De Inspección De Reglamentos1Verificación De Giros Comerciales Establecidos En El Municipio De  San Pedro Tlaquepaque ","Secretaría De Gobernanza Y TerritorioSubdirección De Inspección De Reglamentos1",{"$f":"COUNTIF($E$2:E149,E149:E149)","v":1},"Secretaría De Gobernanza Y Territorio","Subdirección De Inspección De Reglamentos","Verificación De Giros Comerciales Establecidos En El Municipio De  San Pedro Tlaquepaque ","Porcentaje De Visitas Realizadas A Los Comercios Establecidos Dentro Del Municipio De San Pedro Tlaquepaque Para Inspección","Número De Visitas Realizadas",5200,5200]
["Secretaría De Gobernanza Y TerritorioSubdirección De Atención E Inspección A Mercados.1Recuperación De Locales Abandonados En Mercados Municipales.","Secretaría De Gobernanza Y TerritorioSubdirección De Atención E Inspección A Mercados.1",{"$f":"COUNTIF($E$2:E150,E150:E150)","v":1},"Secretaría De Gobernanza Y Territorio","Subdirección De Atención E Inspección A Mercados.","Recuperación De Locales Abandonados En Mercados Municipales.","Porcentaje En La Realización De Acciones Tendientes A La Recuperación De Locales Comerciales En Estado De Abandono. ","Etapas Realizadas",0,4]
["Secretaría De Gobernanza Y TerritorioDirección De Padrón Y Licencias1Revalidación En Digital De Los Documentos Para Tramites De Licencia ","Secretaría De Gobernanza Y TerritorioDirección De Padrón Y Licencias1",{"$f":"COUNTIF($E$2:E151,E151:E151)","v":1},"Secretaría De Gobernanza Y Territorio","Dirección De Padrón Y Licencias","Revalidación En Digital De Los Documentos Para Tramites De Licencia ","Disminución  Burocrática   Porcentaje De Revalidaciones En Digital Para Tramitar Licencias, Realizadas ","El Tiempo De Resolución De Ingreso Del Tramite             Número De Revalidaciones Realizadas ",0,500]
["Secretaría De Gobernanza Y TerritorioDepartamento De Pasaportes1Trámite De Pasaporte Mexicano En Oficina De Enlace De Tlaquepaque","Secretaría De Gobernanza Y TerritorioDepartamento De Pasaportes1",{"$f":"COUNTIF($E$2:E152,E152:E152)","v":1},"Secretaría De Gobernanza Y Territorio","Departamento De Pasaportes","Trámite De Pasaporte Mexicano En Oficina De Enlace De Tlaquepaque","Porcentaje De Trámites De Expedición De Pasaportes Realizados En La Oficina De Enlace Pila Seca.","Solicitud De Trámite De Pasaporte",9000,9500]
["Secretaría De Gobernanza Y TerritorioSubdirección De Atención E Inspección A Tianguis Y Espacios Abiertos1Operativos En Espacios Abiertos","Secretaría De Gobernanza Y TerritorioSubdirección De Atención E Inspección A Tianguis Y Espacios Abiertos1",{"$f":"COUNTIF($E$2:E153,E153:E153)","v":1},"Secretaría De Gobernanza Y Territorio","Subdirección De Atención E Inspección A Tianguis Y Espacios Abiertos","Operativos En Espacios Abiertos","Porcentaje de colonias inspeccionadas en el cumplimiento de la normatividad.","Numero De Colonias Inspeccionadas",20,41]
["Secretaría De Gobernanza Y TerritorioSubdirección De Atención E Inspección A Tianguis Y Espacios Abiertos2Actualizar Los Padrones De Los Comerciantes De Tianguis","Secretaría De Gobernanza Y TerritorioSubdirección De Atención E Inspección A Tianguis Y Espacios Abiertos2",{"$f":"COUNTIF($E$2:E154,E154:E154)","v":2},"Secretaría De Gobernanza Y Territorio","Subdirección De Atención E Inspección A Tianguis Y Espacios Abiertos","Actualizar Los Padrones De Los Comerciantes De Tianguis","Porcentaje De Comerciantes Regularizados En Los Censos","Numero De Comerciantes Regularizados",150,270]
["Secretaría De La Consejería JurídicaDirección De Derechos Humanos 1Atención A Quejas En Materia De Derechos Humanos","Secretaría De La Consejería JurídicaDirección De Derechos Humanos 1",{"$f":"COUNTIF($E$2:E155,E155:E155)","v":1},"Secretaría De La Consejería Jurídica","Dirección De Derechos Humanos ","Atención A Quejas En Materia De Derechos Humanos","Porcentaje De Quejas Ciudadanas En Materia De Derechos Humanos, Atendidas ","Número De Quejas Atendidas ",0,250]
["Secretaría De La Consejería JurídicaDirección Legal-Consultiva1Consultas Y Asesoría Jurídica","Secretaría De La Consejería JurídicaDirección Legal-Consultiva1",{"$f":"COUNTIF($E$2:E156,E156:E156)","v":1},"Secretaría De La Consejería Jurídica","Dirección Legal-Consultiva","Consultas Y Asesoría Jurídica","Porcentaje De Atenciones A Consultas Y Asesoría Jurídica, Realizadas","Número De Atenciones A Consultas Y Asesoría Jurídica, Realizadas ",0,60]
["Secretaría De La Consejería JurídicaDirección Legal-Consultiva2Opiniones Jurídicas","Secretaría De La Consejería JurídicaDirección Legal-Consultiva2",{"$f":"COUNTIF($E$2:E157,E157:E157)","v":2},"Secretaría De La Consejería Jurídica","Dirección Legal-Consultiva","Opiniones Jurídicas","Porcentaje De Opiniones Jurídicas Emitidas","Número De Opiniones Jurídicas Emitidas",0,60]
["Secretaría De La Consejería JurídicaDirección De Apoyo A Cabildo1Apoyo Asuntos Derivados Por Secretaría  ","Secretaría De La Consejería JurídicaDirección De Apoyo A Cabildo1",{"$f":"COUNTIF($E$2:E158,E158:E158)","v":1},"Secretaría De La Consejería Jurídica","Dirección De Apoyo A Cabildo","Apoyo Asuntos Derivados Por Secretaría  ","Porcentaje De Gestiones Y Asuntos Derivados Y Con Seguimiento Realizadas","Número De Gestiones Y Asuntos Derivados Con Seguimiento ",0,40]
["Secretaría De La Consejería JurídicaDirección De Apoyo A Cabildo2Consolidar El Sistema De Información De Acuerdos Del Pleno","Secretaría De La Consejería JurídicaDirección De Apoyo A Cabildo2",{"$f":"COUNTIF($E$2:E159,E159:E159)","v":2},"Secretaría De La Consejería Jurídica","Dirección De Apoyo A Cabildo","Consolidar El Sistema De Información De Acuerdos Del Pleno","Porcentaje De Avance En La Identificación Del Estatus Que Guardan Los Puntos De Acuerdo Aprobados Por El Pleno Del Ayuntamiento","Número De Puntos De Acuerdo Identificados En Estatus De Seguimiento",0,40]
["Secretaría De La Consejería JurídicaDirección De Apoyo A Cabildo3Integración, Dictaminación De Iniciativas ","Secretaría De La Consejería JurídicaDirección De Apoyo A Cabildo3",{"$f":"COUNTIF($E$2:E160,E160:E160)","v":3},"Secretaría De La Consejería Jurídica","Dirección De Apoyo A Cabildo","Integración, Dictaminación De Iniciativas ","Porcentaje De Iniciativas Elaboradas                                        ","Número De Iniciativas Elaboradas",0,50]
["Secretaría De La Consejería JurídicaDirección De Apoyo A Cabildo4Participación En Sesiones Del Ayuntamiento","Secretaría De La Consejería JurídicaDirección De Apoyo A Cabildo4",{"$f":"COUNTIF($E$2:E161,E161:E161)","v":4},"Secretaría De La Consejería Jurídica","Dirección De Apoyo A Cabildo","Participación En Sesiones Del Ayuntamiento","Porcentaje De Sesiones Del Pleno Realizadas","Número De Sesiones Realizadas",0,15]
["Secretaría De La Consejería JurídicaDirección De Apoyo A Cabildo5Sitio Web De Actas Y Acuerdos ","Secretaría De La Consejería JurídicaDirección De Apoyo A Cabildo5",{"$f":"COUNTIF($E$2:E162,E162:E162)","v":5},"Secretaría De La Consejería Jurídica","Dirección De Apoyo A Cabildo","Sitio Web De Actas Y Acuerdos ","Porcentaje De Avance En Las Etapas De Actualización Del Sitio Web De Actas Y Acuerdos ","Número De Etapas Realizadas ",4,5]
["Secretaría De La Consejería JurídicaDirección De Mediación1Fortalecimiento Del Proceso De Levantamiento De Actas De Infracción","Secretaría De La Consejería JurídicaDirección De Mediación1",{"$f":"COUNTIF($E$2:E163,E163:E163)","v":1},"Secretaría De La Consejería Jurídica","Dirección De Mediación","Fortalecimiento Del Proceso De Levantamiento De Actas De Infracción","Porcentaje de Servidores Públicos Capacitados en Temas de llenado Correcto de Actas de Infracción ","Número De Servidores Públicos Capacitados",10,60]
["Secretaría De La Consejería JurídicaDirección De Mediación2Taller De Educación Cívica Para Reincidentes De Faltas Administrativas","Secretaría De La Consejería JurídicaDirección De Mediación2",{"$f":"COUNTIF($E$2:E164,E164:E164)","v":2},"Secretaría De La Consejería Jurídica","Dirección De Mediación","Taller De Educación Cívica Para Reincidentes De Faltas Administrativas","Porcentaje De Talleres De Educación Cívica, A Persona Infractoras Realizados ","Número De Talleres Realizados",0,12]
["Secretaría De La Consejería JurídicaDirección Del Registro Civil1Campaña De Integración Familiar 2026","Secretaría De La Consejería JurídicaDirección Del Registro Civil1",{"$f":"COUNTIF($E$2:E165,E165:E165)","v":1},"Secretaría De La Consejería Jurídica","Dirección Del Registro Civil","Campaña De Integración Familiar 2026","Porcentaje De Actas De Matrimonio Realizadas En La Campaña De Integración Familiar 2026","Número De Actas Realizadas",421,430]
["Secretaría De La Consejería JurídicaDirección Del Registro Civil2Campaña De Integración Familiar 2026","Secretaría De La Consejería JurídicaDirección Del Registro Civil2",{"$f":"COUNTIF($E$2:E166,E166:E166)","v":2},"Secretaría De La Consejería Jurídica","Dirección Del Registro Civil","Campaña De Integración Familiar 2026","Porcentaje de Actas de Nacimiento Extemporaneas en la Campaña de Integración Familiar 2026 ","Número De Actas Realizadas",103,110]
["Secretaría De La Consejería JurídicaDirección Del Registro Civil3Campaña De Integración Familiar 2026","Secretaría De La Consejería JurídicaDirección Del Registro Civil3",{"$f":"COUNTIF($E$2:E167,E167:E167)","v":3},"Secretaría De La Consejería Jurídica","Dirección Del Registro Civil","Campaña De Integración Familiar 2026","Porcentaje De Actas De Reconocimiento De Hijos  En La Campaña De Integración Familiar 2026","Número De Actas Realizadas",34,40]
["Secretaría De La Consejería JurídicaDirección Del Registro Civil4Capacitaciones Al Personal Del Registro Civil","Secretaría De La Consejería JurídicaDirección Del Registro Civil4",{"$f":"COUNTIF($E$2:E168,E168:E168)","v":4},"Secretaría De La Consejería Jurídica","Dirección Del Registro Civil","Capacitaciones Al Personal Del Registro Civil","Porcentaje De Servidores Públicos Capacitados En Materia De Levantamiento De Actos En El Sistema Sid","Número De Servidores Públicos Capacitados",0,40]
["Secretaría De La Consejería JurídicaDirección Del Registro Civil5Matrimonios Colectivos","Secretaría De La Consejería JurídicaDirección Del Registro Civil5",{"$f":"COUNTIF($E$2:E169,E169:E169)","v":5},"Secretaría De La Consejería Jurídica","Dirección Del Registro Civil","Matrimonios Colectivos","Porcentaje De Parejas Que Contrajeron Matrimonio Durante La Campaña","Número De Parejas ",394,400]
["Secretaría De La Consejería JurídicaSecretaría De La Consejería Jurídica1Atención Y Orientación Jurídica A Los Ciudadanos","Secretaría De La Consejería JurídicaSecretaría De La Consejería Jurídica1",{"$f":"COUNTIF($E$2:E170,E170:E170)","v":1},"Secretaría De La Consejería Jurídica","Secretaría De La Consejería Jurídica","Atención Y Orientación Jurídica A Los Ciudadanos","Porcentaje De Solicitudes De Atención Y Orientación A La Ciudadanía, Realizadas","Número De Atenciones Y Orientaciones Realizadas",0,18]
["Secretaría De La Consejería JurídicaSecretaría De La Consejería Jurídica2Capacitación Jurídica Al Gobierno Municipal","Secretaría De La Consejería JurídicaSecretaría De La Consejería Jurídica2",{"$f":"COUNTIF($E$2:E171,E171:E171)","v":2},"Secretaría De La Consejería Jurídica","Secretaría De La Consejería Jurídica","Capacitación Jurídica Al Gobierno Municipal","Porcentaje De Capacitaciones Jurídicas Realizadas ","Número De Capacitaciones Realizadas",0,2]
["Secretaría De La Consejería JurídicaSecretaría De La Consejería Jurídica3Participación En Comisiones, Comités Y Grupos De Trabajo","Secretaría De La Consejería JurídicaSecretaría De La Consejería Jurídica3",{"$f":"COUNTIF($E$2:E172,E172:E172)","v":3},"Secretaría De La Consejería Jurídica","Secretaría De La Consejería Jurídica","Participación En Comisiones, Comités Y Grupos De Trabajo","Porcentaje De Atención A Comisiones, Comités, Grupos De Trabajo Y Reuniones","Número De Asistencia A Comisiones, Comités, Grupos De Trabajo Y Reuniones",0,10]
["Secretaría De La Consejería JurídicaSecretaría De La Consejería Jurídica4Revisión De Documentos Para Firma De La Presidenta","Secretaría De La Consejería JurídicaSecretaría De La Consejería Jurídica4",{"$f":"COUNTIF($E$2:E173,E173:E173)","v":4},"Secretaría De La Consejería Jurídica","Secretaría De La Consejería Jurídica","Revisión De Documentos Para Firma De La Presidenta","Porcentaje De Documentos Revisados Para Firma Presidenta","Número De Documentos Revisados",0,900]
["Secretaría De La Contraloría Municipal Y Combate A La CorrupciónAutoridad Investigadora1Fortalecimiento A La Autoridad Investigadora, Recepción De Quejas Ciudadanas Al Personal Operativo Y Personal Administrativo","Secretaría De La Contraloría Municipal Y Combate A La CorrupciónAutoridad Investigadora1",{"$f":"COUNTIF($E$2:E174,E174:E174)","v":1},"Secretaría De La Contraloría Municipal Y Combate A La Corrupción","Autoridad Investigadora","Fortalecimiento A La Autoridad Investigadora, Recepción De Quejas Ciudadanas Al Personal Operativo Y Personal Administrativo","Porcentaje de etapas De Gestión Realizadas Para El Fortalecimiento De La Autoridad Investigadora","Número De Etapas Gestionadas Y  Realizadas",1,5]
["Secretaría De La Contraloría Municipal Y Combate A La CorrupciónAutoridad Substanciadora1Fortalecimiento De Los Procedimientos De Responsabilidad Administrativa","Secretaría De La Contraloría Municipal Y Combate A La CorrupciónAutoridad Substanciadora1",{"$f":"COUNTIF($E$2:E175,E175:E175)","v":1},"Secretaría De La Contraloría Municipal Y Combate A La Corrupción","Autoridad Substanciadora","Fortalecimiento De Los Procedimientos De Responsabilidad Administrativa","Numero De Informes Recibidos Por La Autoridad Substanciadora","Numero De Informes Recibidos Y Atendidos",0,100]
["Secretaría De La Contraloría Municipal Y Combate A La CorrupciónAutoridad Substanciadora2Fortalecimiento A La Autoridad Substanciadora, A Través De Personal Administrativo Y Suministros Materiales","Secretaría De La Contraloría Municipal Y Combate A La CorrupciónAutoridad Substanciadora2",{"$f":"COUNTIF($E$2:E176,E176:E176)","v":2},"Secretaría De La Contraloría Municipal Y Combate A La Corrupción","Autoridad Substanciadora","Fortalecimiento A La Autoridad Substanciadora, A Través De Personal Administrativo Y Suministros Materiales","Etapa De Gestión A Realizar Para El Fortalecimiento De La Autoridad Substanciadora","Número De Etapas Gestionadas Y Realizadas",0,100]
["Secretaría De La Contraloría Municipal Y Combate A La CorrupciónDirección De Auditoría A La Obra Pública Y Servicios1Revisión Contable Y Administrativa De Expedientes De Obra Pública Municipal","Secretaría De La Contraloría Municipal Y Combate A La CorrupciónDirección De Auditoría A La Obra Pública Y Servicios1",{"$f":"COUNTIF($E$2:E177,E177:E177)","v":1},"Secretaría De La Contraloría Municipal Y Combate A La Corrupción","Dirección De Auditoría A La Obra Pública Y Servicios","Revisión Contable Y Administrativa De Expedientes De Obra Pública Municipal","Porcentaje De Auditorías A La Obra Pública Realizadas","Número De Auditorías Realizadas",0,"3"]
["Secretaría De La Contraloría Municipal Y Combate A La CorrupciónDirección De Auditoria Gubernamental Y Combate A La Corrupción1Auditorias","Secretaría De La Contraloría Municipal Y Combate A La CorrupciónDirección De Auditoria Gubernamental Y Combate A La Corrupción1",{"$f":"COUNTIF($E$2:E178,E178:E178)","v":1},"Secretaría De La Contraloría Municipal Y Combate A La Corrupción","Dirección De Auditoria Gubernamental Y Combate A La Corrupción","Auditorias","Auditorías Concluidas","Número De Auditorías Concluidas",2,5]
["Secretaría De La Contraloría Municipal Y Combate A La CorrupciónDirección De Auditoria Gubernamental Y Combate A La Corrupción2Procedimientos Por Robo Y Extravió","Secretaría De La Contraloría Municipal Y Combate A La CorrupciónDirección De Auditoria Gubernamental Y Combate A La Corrupción2",{"$f":"COUNTIF($E$2:E179,E179:E179)","v":2},"Secretaría De La Contraloría Municipal Y Combate A La Corrupción","Dirección De Auditoria Gubernamental Y Combate A La Corrupción","Procedimientos Por Robo Y Extravió","Procedimientos Por Robo Y Extravió Concluidos","Número De Procedimientos Por Robo Y Extravió Concluidos",0,8]
["Secretaría De La Contraloría Municipal Y Combate A La CorrupciónDirección De Auditoria Gubernamental Y Combate A La Corrupción3Visitas De Inspección","Secretaría De La Contraloría Municipal Y Combate A La CorrupciónDirección De Auditoria Gubernamental Y Combate A La Corrupción3",{"$f":"COUNTIF($E$2:E180,E180:E180)","v":3},"Secretaría De La Contraloría Municipal Y Combate A La Corrupción","Dirección De Auditoria Gubernamental Y Combate A La Corrupción","Visitas De Inspección","Visitas De Inspección Concluidas","Número De Visitas De Inspección Concluidas",0,9]
["Secretaría De La Contraloría Municipal Y Combate A La CorrupciónDirección De Responsabilidades Y Evolución Patrimonial1Concientización En Las Declaraciones Patrimoniales Y De Intereses","Secretaría De La Contraloría Municipal Y Combate A La CorrupciónDirección De Responsabilidades Y Evolución Patrimonial1",{"$f":"COUNTIF($E$2:E181,E181:E181)","v":1},"Secretaría De La Contraloría Municipal Y Combate A La Corrupción","Dirección De Responsabilidades Y Evolución Patrimonial","Concientización En Las Declaraciones Patrimoniales Y De Intereses","Realización De Declaraciones Patrimoniales Iniciales, De Modificación Y De Conclusión Porcentaje En La Realización De Declaraciones Patrimoniales Iniciales, De Modificación Y De Conclusión, Realizadas","Número De Declaraciones Patrimoniales De Inicio, De Modificación Y De Conclusión Realizadas",0,"1500"]
["Secretaría De La Contraloría Municipal Y Combate A La CorrupciónDirección De Responsabilidades Y Evolución Patrimonial2Modelo Optimo Para La Sustanciación Y Resolución De Procedimientos","Secretaría De La Contraloría Municipal Y Combate A La CorrupciónDirección De Responsabilidades Y Evolución Patrimonial2",{"$f":"COUNTIF($E$2:E182,E182:E182)","v":2},"Secretaría De La Contraloría Municipal Y Combate A La Corrupción","Dirección De Responsabilidades Y Evolución Patrimonial","Modelo Optimo Para La Sustanciación Y Resolución De Procedimientos","Reducir Tiempos De Resoluciones, Sin Generar Menoscabo En Las Garantías  De Los Investigados","Número De Resoluciones Que Se Emitan Al Abatir Tiempos",0,100]
["Secretaría De La Contraloría Municipal Y Combate A La CorrupciónDirección De Responsabilidades Y Evolución Patrimonial3Optimizar El Trabajo Eficiente","Secretaría De La Contraloría Municipal Y Combate A La CorrupciónDirección De Responsabilidades Y Evolución Patrimonial3",{"$f":"COUNTIF($E$2:E183,E183:E183)","v":3},"Secretaría De La Contraloría Municipal Y Combate A La Corrupción","Dirección De Responsabilidades Y Evolución Patrimonial","Optimizar El Trabajo Eficiente","Optimizar La Distribución De Tareas Para El Flujo De Integración De Expedientes Mas Eficiente","Número De Expedientes O Tareas Asignada A Cada Persona",0,100]
["Secretaría De La Contraloría Municipal Y Combate A La CorrupciónSubdirección De Auditoría Financiera Y De Desempeño1Actas Circunstanciadas","Secretaría De La Contraloría Municipal Y Combate A La CorrupciónSubdirección De Auditoría Financiera Y De Desempeño1",{"$f":"COUNTIF($E$2:E184,E184:E184)","v":1},"Secretaría De La Contraloría Municipal Y Combate A La Corrupción","Subdirección De Auditoría Financiera Y De Desempeño","Actas Circunstanciadas","Actas Circunstanciadas Realizadas","Número De Actas Circunstanciadas Realizadas",0,10]
["Secretaría De La Contraloría Municipal Y Combate A La CorrupciónSubdirección De Auditoría Financiera Y De Desempeño2Capacitación En Formatos De Entrega Recepción","Secretaría De La Contraloría Municipal Y Combate A La CorrupciónSubdirección De Auditoría Financiera Y De Desempeño2",{"$f":"COUNTIF($E$2:E185,E185:E185)","v":2},"Secretaría De La Contraloría Municipal Y Combate A La Corrupción","Subdirección De Auditoría Financiera Y De Desempeño","Capacitación En Formatos De Entrega Recepción","Capacitación En Formatos De Entrega Recepción Realizadas","Cantidad De Capacitaciones En Formatos De Entrega-Recepción Realizadas ",0,15]
["Secretaría De La Contraloría Municipal Y Combate A La CorrupciónSubdirección De Auditoría Financiera Y De Desempeño3Procedimientos De Aclaración Derivados De La Entrega-Recepción","Secretaría De La Contraloría Municipal Y Combate A La CorrupciónSubdirección De Auditoría Financiera Y De Desempeño3",{"$f":"COUNTIF($E$2:E186,E186:E186)","v":3},"Secretaría De La Contraloría Municipal Y Combate A La Corrupción","Subdirección De Auditoría Financiera Y De Desempeño","Procedimientos De Aclaración Derivados De La Entrega-Recepción","Procedimientos De Aclaración Derivados De La Entrega-Recepción Concluidos","Número De Procedimientos De Aclaración Derivados De La Entrega-Recepción Concluidos",0,10]
["Secretaría De La Contraloría Municipal Y Combate A La CorrupciónSubdirección De Auditoría Financiera Y De Desempeño4Proceso De Entrega-Recepción","Secretaría De La Contraloría Municipal Y Combate A La CorrupciónSubdirección De Auditoría Financiera Y De Desempeño4",{"$f":"COUNTIF($E$2:E187,E187:E187)","v":4},"Secretaría De La Contraloría Municipal Y Combate A La Corrupción","Subdirección De Auditoría Financiera Y De Desempeño","Proceso De Entrega-Recepción","Actas De Entrega-Recepción Realizadas","Número De Actas De Entrega- Recepción Realizadas",92,24]
["Secretaría De Obras PúblicasSubdirección De Mantenimiento1Mantenimiento A Escuelas","Secretaría De Obras PúblicasSubdirección De Mantenimiento1",{"$f":"COUNTIF($E$2:E188,E188:E188)","v":1},"Secretaría De Obras Públicas","Subdirección De Mantenimiento","Mantenimiento A Escuelas","N° De Solicitudes Recibidas De Instituciones Académicas - Escolares Intervenidas/N° De Solicitudes Atendidas ","Solicitudes Atendidas",0,216]
["Secretaría De Obras PúblicasSubdirección De Mantenimiento2Señalización Horizontal Y Vertical","Secretaría De Obras PúblicasSubdirección De Mantenimiento2",{"$f":"COUNTIF($E$2:E189,E189:E189)","v":2},"Secretaría De Obras Públicas","Subdirección De Mantenimiento","Señalización Horizontal Y Vertical","Porcentaje De Colonias Intervenidas Con Señalización Horizontal Y Vertical","N° Colonias Intervenidas ",0,100]
["Secretaría De Obras PúblicasSubdirección De Mantenimiento3Mantenimiento A Edificios","Secretaría De Obras PúblicasSubdirección De Mantenimiento3",{"$f":"COUNTIF($E$2:E190,E190:E190)","v":3},"Secretaría De Obras Públicas","Subdirección De Mantenimiento","Mantenimiento A Edificios","Porcentaje De Solicitudes Atendidas Al Mantenimiento A Edificios Y Espacios Públicos","Solicitudes Atendidas ",0,300]
["Secretaría De Obras PúblicasSubdirección De Mantenimiento4Intervenciones Al Entorno Urbano","Secretaría De Obras PúblicasSubdirección De Mantenimiento4",{"$f":"COUNTIF($E$2:E191,E191:E191)","v":4},"Secretaría De Obras Públicas","Subdirección De Mantenimiento","Intervenciones Al Entorno Urbano","Porcentaje De Colonias Intervenidas En Atención A Servicios Generales Al Entorno Urbano","N° Colonias Intervenidas",0,50]
["Secretaría De Obras PúblicasSubdirección De Control De La Edificación Y Ordenamiento Territorial1Programa De Inspección Y Vigilancia De Tramites Y Licencias De Construcción","Secretaría De Obras PúblicasSubdirección De Control De La Edificación Y Ordenamiento Territorial1",{"$f":"COUNTIF($E$2:E192,E192:E192)","v":1},"Secretaría De Obras Públicas","Subdirección De Control De La Edificación Y Ordenamiento Territorial","Programa De Inspección Y Vigilancia De Tramites Y Licencias De Construcción","Número De Visitas Realizadas Para Verificar Que Cuenten Con Licencias De Construcción, Y Lo Establecido En El Reglamento De Construcción","Número De Visitas",2421,2500]
["Secretaría De Obras PúblicasSubdirección De Control De La Edificación Y Ordenamiento Territorial2Trámites Y Servicios","Secretaría De Obras PúblicasSubdirección De Control De La Edificación Y Ordenamiento Territorial2",{"$f":"COUNTIF($E$2:E193,E193:E193)","v":2},"Secretaría De Obras Públicas","Subdirección De Control De La Edificación Y Ordenamiento Territorial","Trámites Y Servicios","Número De Trámites Concluidos","Trámites",2289,2300]
["Secretaría De Obras PúblicasDirección De Construcción Y Mantenimiento1Programa De Urbanización","Secretaría De Obras PúblicasDirección De Construcción Y Mantenimiento1",{"$f":"COUNTIF($E$2:E194,E194:E194)","v":1},"Secretaría De Obras Públicas","Dirección De Construcción Y Mantenimiento","Programa De Urbanización","Porcentaje En La Realización Y Ejecución De Obra Pública, Para Mejoras Del Municipio","Número De Obras Realizadas",240,250]
["Secretaría De Obras PúblicasDirección De Presupuestos Y Contratación De Obra Pública1",{"$f":"D195&E195&C195","v":"Secretaría De Obras PúblicasDirección De Presupuestos Y Contratación De Obra Pública1"},{"$f":"COUNTIF($E$2:E195,E195:E195)","v":1},"Secretaría De Obras Públicas","Dirección De Presupuestos Y Contratación De Obra Pública"]
["Secretaría De Obras PúblicasDirección De Presupuestos Y Contratación De Obra Pública2","Secretaría De Obras PúblicasDirección De Presupuestos Y Contratación De Obra Pública2",{"$f":"COUNTIF($E$2:E196,E196:E196)","v":2},"Secretaría De Obras Públicas","Dirección De Presupuestos Y Contratación De Obra Pública"]
["Secretaría De Planificación, Análisis Y Gestión UrbanaDirección De Gestión Territorial Y Planeación Urbana 1Plan Municipal De Regularización De Predios ","Secretaría De Planificación, Análisis Y Gestión UrbanaDirección De Gestión Territorial Y Planeación Urbana 1",{"$f":"COUNTIF($E$2:E197,E197:E197)","v":1},"Secretaría De Planificación, Análisis Y Gestión Urbana","Dirección De Gestión Territorial Y Planeación Urbana ","Plan Municipal De Regularización De Predios ","Numero De Títulos Emitidos En Predios Irregulares De San Pedro Tlaquepaque","Títulos Emitidos",600,900]
["Secretaría De Planificación, Análisis Y Gestión UrbanaDepartamento De Planeación Urbana1Instrumentos De Planeación Urbana Y De Ordenamiento Ecológico ","Secretaría De Planificación, Análisis Y Gestión UrbanaDepartamento De Planeación Urbana1",{"$f":"COUNTIF($E$2:E198,E198:E198)","v":1},"Secretaría De Planificación, Análisis Y Gestión Urbana","Departamento De Planeación Urbana","Instrumentos De Planeación Urbana Y De Ordenamiento Ecológico ","Porcentaje Del Número De Procesos Concluidos De Los Instrumentos De Planeación Urbana Y De Ordenamiento Ecológico","Proceso Concluido",0,6]
["Secretaría De Planificación, Análisis Y Gestión UrbanaDirección De Banco Integrado De Proyectos  Y Programas1Seguimiento De Actividades De Las Mesas De Gestión Metropolitanas Ante Imeplan","Secretaría De Planificación, Análisis Y Gestión UrbanaDirección De Banco Integrado De Proyectos  Y Programas1",{"$f":"COUNTIF($E$2:E199,E199:E199)","v":1},"Secretaría De Planificación, Análisis Y Gestión Urbana","Dirección De Banco Integrado De Proyectos  Y Programas","Seguimiento De Actividades De Las Mesas De Gestión Metropolitanas Ante Imeplan","Porcentaje De Reportes Mensuales Generados Por Las Mesas De Gestión Y Coordinación Activas","Número De Reportes Mensuales Generados \t\t",180,192]
["Secretaría De SaludSubdirección De Enseñanza1Enseñanza Continua","Secretaría De SaludSubdirección De Enseñanza1",{"$f":"COUNTIF($E$2:E200,E200:E200)","v":1},"Secretaría De Salud","Subdirección De Enseñanza","Enseñanza Continua","Numero De Cesiones Programadas Porcentaje De Personal Capacitado %","Numero De Sesión Realizada Porcentaje ",1,12]
["Secretaría De SaludTrabajo Social 1Conciencia Social","Secretaría De SaludTrabajo Social 1",{"$f":"COUNTIF($E$2:E201,E201:E201)","v":1},"Secretaría De Salud","Trabajo Social ","Conciencia Social","Diversos Ámbitos Sociales Que Requieren De Información Oportuna Número De Personas Beneficiadas Con Charlas Informativas","Numero De Personas Beneficiadas"]
["Secretaría De SaludSubdirección De Salud Animal1Campañas Integrales De Salud Publica Y Bienestar Animal","Secretaría De SaludSubdirección De Salud Animal1",{"$f":"COUNTIF($E$2:E202,E202:E202)","v":1},"Secretaría De Salud","Subdirección De Salud Animal","Campañas Integrales De Salud Publica Y Bienestar Animal","Porcentaje De Campañas De Esterilización Gratuitas Realizadas","Número De Campañas Realizadas ",0,100]
["Secretaría De SaludSubdirección De Salud Animal2Campañas Integrales De Salud Publica Y Bienestar Animal","Secretaría De SaludSubdirección De Salud Animal2",{"$f":"COUNTIF($E$2:E203,E203:E203)","v":2},"Secretaría De Salud","Subdirección De Salud Animal","Campañas Integrales De Salud Publica Y Bienestar Animal","Porcentaje De Campañas De Vacunación Gratuitas Realizadas","Numero De Campañas Realizadas",0,100]
["Secretaría De SaludSubdirección De Salud Animal3Campañas Integrales De Salud Publica Y Bienestar Animal","Secretaría De SaludSubdirección De Salud Animal3",{"$f":"COUNTIF($E$2:E204,E204:E204)","v":3},"Secretaría De Salud","Subdirección De Salud Animal","Campañas Integrales De Salud Publica Y Bienestar Animal","Porcentaje De Campañas De Educación Y Concientización Escolar.","Numero De Campañas Realizadas",0,40]
["Secretaría De Seguridad Y Protección CiudadanaDirección Administrativa1Programa Permanente De Seguimiento Para La Administración Eficiente De Los Recursos Humanos Y Materiales De La Secretaria","Secretaría De Seguridad Y Protección CiudadanaDirección Administrativa1",{"$f":"COUNTIF($E$2:E205,E205:E205)","v":1},"Secretaría De Seguridad Y Protección Ciudadana","Dirección Administrativa","Programa Permanente De Seguimiento Para La Administración Eficiente De Los Recursos Humanos Y Materiales De La Secretaria","Porcentaje De Etapas Realizadas Para El Programa Permanente De Seguimiento Para La Administración Eficiente De Los Recursos Humanos Y Materiales De La Comisaria","Numero De Etapas Realizadas ",0,72]
["Secretaría De Seguridad Y Protección CiudadanaDirección De Atención A La Violencia De Genero1Prevención Comunitaria Y Escolar De Las Violencias En Razón De Genero","Secretaría De Seguridad Y Protección CiudadanaDirección De Atención A La Violencia De Genero1",{"$f":"COUNTIF($E$2:E206,E206:E206)","v":1},"Secretaría De Seguridad Y Protección Ciudadana","Dirección De Atención A La Violencia De Genero","Prevención Comunitaria Y Escolar De Las Violencias En Razón De Genero","Porcentaje De Atenciones En Las Escuelas Realizadas Por La Dirección De Atención A La Violencia De Género ","Número De Atenciones Realizadas ",3000,3500]
["Secretaría De Seguridad Y Protección CiudadanaDirección Operativa1Certificación De Personal Y Oficiales Caninos K-9","Secretaría De Seguridad Y Protección CiudadanaDirección Operativa1",{"$f":"COUNTIF($E$2:E207,E207:E207)","v":1},"Secretaría De Seguridad Y Protección Ciudadana","Dirección Operativa","Certificación De Personal Y Oficiales Caninos K-9","Porcentaje De Personal Operativo Y Oficiales Caninos Certificados Ante La Secretaría De Seguridad Pública Con Cedula Profesional.","Número De Personal Operativo Y Oficiales Caninos Certificados",0,4]
["Secretaría De Seguridad Y Protección CiudadanaDirección Operativa2Material Para El Desempeño De Las Actividades De La Unidad Proximidad Policial","Secretaría De Seguridad Y Protección CiudadanaDirección Operativa2",{"$f":"COUNTIF($E$2:E208,E208:E208)","v":2},"Secretaría De Seguridad Y Protección Ciudadana","Dirección Operativa","Material Para El Desempeño De Las Actividades De La Unidad Proximidad Policial","Porcentaje De Etapa De Gestión Para La Adquisición Del Material Necesario Para La Impartición De Talleres Y Pláticas Preventivas","Número De Etapas Realizadas",0,5]
["Secretaría De Seguridad Y Protección CiudadanaDirección Operativa3Unidad De Proximidad Policial","Secretaría De Seguridad Y Protección CiudadanaDirección Operativa3",{"$f":"COUNTIF($E$2:E209,E209:E209)","v":3},"Secretaría De Seguridad Y Protección Ciudadana","Dirección Operativa","Unidad De Proximidad Policial","1.- Porcentaje De Patrullaje De Vigilancia Y Proximidad Ciudadana En Colonias Con Mayor Incidencias. ","Número De Patrullajes De Vigilancia Realizados",60,120]
[{"$f":"B210&F210","v":"Secretaría De Seguridad Y Protección CiudadanaDirección Operativa4Unidad De Proximidad Policial"},"Secretaría De Seguridad Y Protección CiudadanaDirección Operativa4",{"$f":"COUNTIF($E$2:E210,E210:E210)","v":4},"Secretaría De Seguridad Y Protección Ciudadana","Dirección Operativa","Unidad De Proximidad Policial","2.- Porcentaje De Planteles Atendidos Mediante Entrevistas Para Conocer Las Necesidades En Materia De Seguridad","Número De Escuelas Atendidas",30,200]
["Secretaría De Seguridad Y Protección CiudadanaDirección Operativa5Unidad De Proximidad Policial","Secretaría De Seguridad Y Protección CiudadanaDirección Operativa5",{"$f":"COUNTIF($E$2:E211,E211:E211)","v":5},"Secretaría De Seguridad Y Protección Ciudadana","Dirección Operativa","Unidad De Proximidad Policial","3.- Porcentaje De Escuelas Atendidas Mediante Pláticas Preventivas.","Número De Escuelas Atendidas",60,80]
["Secretaría De Seguridad Y Protección CiudadanaSubdirección De Planeación Estratégica1Actualización De Cuip De Los Elementos Operativos","Secretaría De Seguridad Y Protección CiudadanaSubdirección De Planeación Estratégica1",{"$f":"COUNTIF($E$2:E212,E212:E212)","v":1},"Secretaría De Seguridad Y Protección Ciudadana","Subdirección De Planeación Estratégica","Actualización De Cuip De Los Elementos Operativos","Porcentaje De Elementos Operativos Con Registro O Actualización De Cuip","Número De Elementos Dados De Alta En La Corporación 897",0,85]
["Secretaría De Seguridad Y Protección CiudadanaSubdirección De Planeación Estratégica2Credencialización","Secretaría De Seguridad Y Protección CiudadanaSubdirección De Planeación Estratégica2",{"$f":"COUNTIF($E$2:E213,E213:E213)","v":2},"Secretaría De Seguridad Y Protección Ciudadana","Subdirección De Planeación Estratégica","Credencialización","Porcentaje En El Cumplimiento De Los Procesos De Credencialización Y Captura De Asignación De Armas Para El Personal Operativo De La Comisaría Municipal","Número De Credenciales De Portación De Arma De Fuego Impresas.",1300,700]
["Secretaría De Seguridad Y Protección CiudadanaSubdirección Planeación Estratégica1Mantenimiento Preventivo De Armas","Secretaría De Seguridad Y Protección CiudadanaSubdirección Planeación Estratégica1",{"$f":"COUNTIF($E$2:E214,E214:E214)","v":1},"Secretaría De Seguridad Y Protección Ciudadana","Subdirección Planeación Estratégica","Mantenimiento Preventivo De Armas","Porcentaje De Mantenimiento De Armamento","Número De Armas Que Reciben Mantenimiento",983,983]
["Secretaría De Seguridad Y Protección CiudadanaSubdirección De Planeación Estratégica3Seguimiento Al Trámite De Renovación E Inclusión De La Licencia Colectiva De Portación De Armas De Fuego","Secretaría De Seguridad Y Protección CiudadanaSubdirección De Planeación Estratégica3",{"$f":"COUNTIF($E$2:E215,E215:E215)","v":3},"Secretaría De Seguridad Y Protección Ciudadana","Subdirección De Planeación Estratégica","Seguimiento Al Trámite De Renovación E Inclusión De La Licencia Colectiva De Portación De Armas De Fuego","Porcentaje De Expedientes Integrados Y Validados Para La Renovación O Inclusión En La Licencia Colectiva.","Número De Elementos Dados De Alta En La Corporación  897",0,8]
["Secretaría De Seguridad Y Protección CiudadanaSubdirección De Profesionalización Y Acreditación Policial1Capacitación Para Formación Inicial Policía De Proximidad","Secretaría De Seguridad Y Protección CiudadanaSubdirección De Profesionalización Y Acreditación Policial1",{"$f":"COUNTIF($E$2:E216,E216:E216)","v":1},"Secretaría De Seguridad Y Protección Ciudadana","Subdirección De Profesionalización Y Acreditación Policial","Capacitación Para Formación Inicial Policía De Proximidad","Porcentaje De Avance En La Capacitación De Personas Reclutadas Para El Curso De Formación Inicial Policía De Proximidad","Numero De Personas Capacitadas",0,50]
["Secretaría De Seguridad Y Protección CiudadanaSubdirección De Acreditación Y Actualización Policial1Formación Continua","Secretaría De Seguridad Y Protección CiudadanaSubdirección De Acreditación Y Actualización Policial1",{"$f":"COUNTIF($E$2:E217,E217:E217)","v":1},"Secretaría De Seguridad Y Protección Ciudadana","Subdirección De Acreditación Y Actualización Policial","Formación Continua","Formación Continua De Policías Municipales En Activo     Porcentaje De Elementos Policiales Con Capacitación Continua ","Número De Elementos Policiales Con Capacitación Continua",0,244]
["Secretaría De Seguridad Y Protección CiudadanaSubdirección De Profesionalización Y Acreditación Policial2Proceso De Selección De Personas Para Policía Municipal","Secretaría De Seguridad Y Protección CiudadanaSubdirección De Profesionalización Y Acreditación Policial2",{"$f":"COUNTIF($E$2:E218,E218:E218)","v":2},"Secretaría De Seguridad Y Protección Ciudadana","Subdirección De Profesionalización Y Acreditación Policial","Proceso De Selección De Personas Para Policía Municipal","Porcentaje En La Selección  Y Reclutamiento De Personas Que Cumplan Con El Perfil Para Policía De Proximidad","Numero De Personas Seleccionadas Y Reclutadas",0,50]
["Secretaría De Seguridad Y Protección CiudadanaDirección De Gestión Integral De Riesgos1Programa Y Evaluación De Dictaminarían De Riesgos Hidrometereológicos","Secretaría De Seguridad Y Protección CiudadanaDirección De Gestión Integral De Riesgos1",{"$f":"COUNTIF($E$2:E219,E219:E219)","v":1},"Secretaría De Seguridad Y Protección Ciudadana","Dirección De Gestión Integral De Riesgos","Programa Y Evaluación De Dictaminarían De Riesgos Hidrometereológicos","Porcentaje De Etapas De Preparación Y Actualización Del Censo De Población E Información De Puntos Y Polígonos De Zonas Con Riesgo De Inundación","Numero De Etapas Realizadas",2,3]
["Secretaría De Seguridad Y Protección CiudadanaSub Dirección De Gestión Integral De Riesgos1Programa De Gestión Integral De Riesgos Mediante Visitas De Inspección","Secretaría De Seguridad Y Protección CiudadanaSub Dirección De Gestión Integral De Riesgos1",{"$f":"COUNTIF($E$2:E220,E220:E220)","v":1},"Secretaría De Seguridad Y Protección Ciudadana","Sub Dirección De Gestión Integral De Riesgos","Programa De Gestión Integral De Riesgos Mediante Visitas De Inspección","Porcentaje De Visitas De Inspección Al Ámbito Publico, Privado Y Social Por Solicitud Realizada","Número De Visitas De Inspección Realizadas",600,1000]
["Secretaría De Seguridad Y Protección CiudadanaSub Dirección De Gestión Integral De Riesgos2Programa De Gestión Integral De Riesgos Mediante Visitas De Inspección A Inmuebles","Secretaría De Seguridad Y Protección CiudadanaSub Dirección De Gestión Integral De Riesgos2",{"$f":"COUNTIF($E$2:E221,E221:E221)","v":2},"Secretaría De Seguridad Y Protección Ciudadana","Sub Dirección De Gestión Integral De Riesgos","Programa De Gestión Integral De Riesgos Mediante Visitas De Inspección A Inmuebles","Porcentaje De Informes De Visitas De Inspección De Operativos Extraordinarios Realizados","Número De Informes Realizados",6,5]
["Secretaría De Seguridad Y Protección CiudadanaSub Dirección De Gestión Integral De Riesgos3Programa De Gestión Integral De Riesgos Mediante Visitas De Inspección A Inmuebles","Secretaría De Seguridad Y Protección CiudadanaSub Dirección De Gestión Integral De Riesgos3",{"$f":"COUNTIF($E$2:E222,E222:E222)","v":3},"Secretaría De Seguridad Y Protección Ciudadana","Sub Dirección De Gestión Integral De Riesgos","Programa De Gestión Integral De Riesgos Mediante Visitas De Inspección A Inmuebles","Porcentaje De Asesoría Técnica Brindadas En Materia De Gestión Integral De Riesgos Mediante La Atención A La Ciudadanía","Número de Personas Capacitadas",5666,4000]
["Secretaría De Seguridad Y Protección CiudadanaJefatura De Capacitación1Programa Permanente De Prevención De Riesgos Mediante La Capacitación A La Población En General","Secretaría De Seguridad Y Protección CiudadanaJefatura De Capacitación1",{"$f":"COUNTIF($E$2:E223,E223:E223)","v":1},"Secretaría De Seguridad Y Protección Ciudadana","Jefatura De Capacitación","Programa Permanente De Prevención De Riesgos Mediante La Capacitación A La Población En General","Porcentaje De Personas Capacitadas Mediante El Programa De Protección Civil En Mi Escuela","Numero De Personas Capacitadas",682,15000]
["Secretaría De Seguridad Y Protección CiudadanaJefatura De Capacitación2Programa Permanente De Prevención De Riesgos Mediante La Capacitación A La Población En General","Secretaría De Seguridad Y Protección CiudadanaJefatura De Capacitación2",{"$f":"COUNTIF($E$2:E224,E224:E224)","v":2},"Secretaría De Seguridad Y Protección Ciudadana","Jefatura De Capacitación","Programa Permanente De Prevención De Riesgos Mediante La Capacitación A La Población En General","Porcentaje De Personas Capacitadas Mediante El Programa De Formación De Brigadas Internas De Protección Civil En Los Centros De Trabajo","Numero De Personas Capacitadas",386,1000]
["Secretaría De Seguridad Y Protección CiudadanaJefatura De Capacitación3Programa Permanente De Prevención De Riesgos Mediante La Capacitación A La Población En General","Secretaría De Seguridad Y Protección CiudadanaJefatura De Capacitación3",{"$f":"COUNTIF($E$2:E225,E225:E225)","v":3},"Secretaría De Seguridad Y Protección Ciudadana","Jefatura De Capacitación","Programa Permanente De Prevención De Riesgos Mediante La Capacitación A La Población En General","Porcentaje De Personas Capacitadas Mediante El Programa De Capacitación A Comunidades","Numero De Personas Capacitadas",264,600]
["Secretaría De Seguridad Y Protección CiudadanaJefatura De Capacitación4Programa Permanente De Prevención De Riesgos Mediante La Capacitación A La Población En General","Secretaría De Seguridad Y Protección CiudadanaJefatura De Capacitación4",{"$f":"COUNTIF($E$2:E226,E226:E226)","v":4},"Secretaría De Seguridad Y Protección Ciudadana","Jefatura De Capacitación","Programa Permanente De Prevención De Riesgos Mediante La Capacitación A La Población En General","Porcentaje De Simulacro Evaluados Mediante El Programa De Simulacros Para Evaluar La Capacidad De Respuesta De La Población","Numero De Personas Capacitadas",37,100]
["Secretaría De Seguridad Y Protección CiudadanaDepartamento Administrativo De Bomberos Y Protección Civil De San Pedro Tlaquepaque1Programa De Profesionalización, Actualización Especializada Y Salud Integral Para El Personal De La Dirección De Bomberos Y ","Secretaría De Seguridad Y Protección CiudadanaDepartamento Administrativo De Bomberos Y Protección Civil De San Pedro Tlaquepaque1",{"$f":"COUNTIF($E$2:E227,E227:E227)","v":1},"Secretaría De Seguridad Y Protección Ciudadana","Departamento Administrativo De Bomberos Y Protección Civil De San Pedro Tlaquepaque","Programa De Profesionalización, Actualización Especializada Y Salud Integral Para El Personal De La Dirección De Bomberos Y "," 1. Porcentaje De Cursos Recibidos Para El Personal Adscrito A Esta Dirección De Bomberos Y Protección Civil","Número De Cursos Recibidos",81,50]
["Secretaría De Seguridad Y Protección CiudadanaDepartamento Administrativo De Bomberos Y Protección Civil De San Pedro Tlaquepaque2Programa De Profesionalización, Actualización Especializada Y Salud Integral Para El Personal De La Dirección De Bomberos Y Protección Civil","Secretaría De Seguridad Y Protección CiudadanaDepartamento Administrativo De Bomberos Y Protección Civil De San Pedro Tlaquepaque2",{"$f":"COUNTIF($E$2:E228,E228:E228)","v":2},"Secretaría De Seguridad Y Protección Ciudadana","Departamento Administrativo De Bomberos Y Protección Civil De San Pedro Tlaquepaque","Programa De Profesionalización, Actualización Especializada Y Salud Integral Para El Personal De La Dirección De Bomberos Y Protección Civil"," 2. Porcentaje De Atenciones Y Actividades De Salud Integral","Número De Atenciones Y Actividades Realizadas",123,100]
["Secretaría De Seguridad Y Protección CiudadanaDepartamento Administrativo De Bomberos Y Protección Civil De San Pedro Tlaquepaque3Programa De Profesionalización, Actualización Especializada Y Salud Integral Para El Personal De La Dirección De Bomberos Y Protección Civil","Secretaría De Seguridad Y Protección CiudadanaDepartamento Administrativo De Bomberos Y Protección Civil De San Pedro Tlaquepaque3",{"$f":"COUNTIF($E$2:E229,E229:E229)","v":3},"Secretaría De Seguridad Y Protección Ciudadana","Departamento Administrativo De Bomberos Y Protección Civil De San Pedro Tlaquepaque","Programa De Profesionalización, Actualización Especializada Y Salud Integral Para El Personal De La Dirección De Bomberos Y Protección Civil"," 3. Porcentaje De Alimentos Otorgados Para Los Elementos De Esta Dirección De Bomberos Y Protección Civil","Número De Alimentos Otorgados",45060,42000]
["Secretaría De Seguridad Y Protección CiudadanaDirección General De Protección Civil Y Bomberos1Programa De Actualización Del Atlas Municipal De Riesgos De San Pedro Tlaquepaque","Secretaría De Seguridad Y Protección CiudadanaDirección General De Protección Civil Y Bomberos1",{"$f":"COUNTIF($E$2:E230,E230:E230)","v":1},"Secretaría De Seguridad Y Protección Ciudadana","Dirección General De Protección Civil Y Bomberos","Programa De Actualización Del Atlas Municipal De Riesgos De San Pedro Tlaquepaque","Porcentaje De Avance De Las Etapas De Gestión De La Actualización De Altas De Riesgos","Número De Etapas De Gestión Realizadas",0,4]
["Secretaría De Seguridad Y Protección CiudadanaSubdirección Operativa1Programa Permanente De Operativos De Prevención De Accidentes","Secretaría De Seguridad Y Protección CiudadanaSubdirección Operativa1",{"$f":"COUNTIF($E$2:E231,E231:E231)","v":1},"Secretaría De Seguridad Y Protección Ciudadana","Subdirección Operativa","Programa Permanente De Operativos De Prevención De Accidentes","Porcentaje De Operativos Para La Prevención De Accidentes Implementados","Número De Operativos Implementados",650,1500]
["Secretaría De Seguridad Y Protección CiudadanaSubdirección Operativa2Programa Permanente De Auxilio A La Población Para Casos De Emergencia Y/O Desastres En San Pedro Tlaquepaque","Secretaría De Seguridad Y Protección CiudadanaSubdirección Operativa2",{"$f":"COUNTIF($E$2:E232,E232:E232)","v":2},"Secretaría De Seguridad Y Protección Ciudadana","Subdirección Operativa","Programa Permanente De Auxilio A La Población Para Casos De Emergencia Y/O Desastres En San Pedro Tlaquepaque","Porcentaje De Atenciones A Emergencias Ordinarias Realizadas","Número De Atenciones Realizadas",0,17000]
["Secretaría De Seguridad Y Protección CiudadanaDirección De Bomberos Y Protección Civil1Programa Del Consejo Municipal  De La Dirección De Bomberos Y Protección Civil ","Secretaría De Seguridad Y Protección CiudadanaDirección De Bomberos Y Protección Civil1",{"$f":"COUNTIF($E$2:E233,E233:E233)","v":1},"Secretaría De Seguridad Y Protección Ciudadana","Dirección De Bomberos Y Protección Civil","Programa Del Consejo Municipal  De La Dirección De Bomberos Y Protección Civil ","Porcentaje De Sesiones Del Consejo Municipal De Protección Civil Realizadas.","Sesiones Realizadas",2,4]
["Secretaría De Seguridad Y Protección CiudadanaSubdirección  Jurídica Y De Derechos Humanos1Evaluaciones De Control De Confianza","Secretaría De Seguridad Y Protección CiudadanaSubdirección  Jurídica Y De Derechos Humanos1",{"$f":"COUNTIF($E$2:E234,E234:E234)","v":1},"Secretaría De Seguridad Y Protección Ciudadana","Subdirección  Jurídica Y De Derechos Humanos","Evaluaciones De Control De Confianza","Examen De Control Y Confianza","Aritmético, Dando El Valor De (1) Por Cada Elemento Evaluado",300,300]
["Secretaría De Seguridad Y Protección CiudadanaSubdirección De Prevención Al  Delito1Programas Preventivos","Secretaría De Seguridad Y Protección CiudadanaSubdirección De Prevención Al  Delito1",{"$f":"COUNTIF($E$2:E235,E235:E235)","v":1},"Secretaría De Seguridad Y Protección Ciudadana","Subdirección De Prevención Al  Delito","Programas Preventivos","Porcentaje De Personas Atendidas Con La Aplicación De Programas Preventivos, Para Generar Factores De Protección Que Disminuyan Las Violencias, Uso De Las Drogas Y Conductas Delictivas E Infractoras","Número De Personas Atendidas",23500,23800]
["Secretaría De Seguridad Y Protección CiudadanaSubdirección De Prevención Al  Delito2Asipt ","Secretaría De Seguridad Y Protección CiudadanaSubdirección De Prevención Al  Delito2",{"$f":"COUNTIF($E$2:E236,E236:E236)","v":2},"Secretaría De Seguridad Y Protección Ciudadana","Subdirección De Prevención Al  Delito","Asipt ","Número De Elementos Operativos Y Familiares Atendidos En Acompañamientos Y Situaciones Emergentes","Elementos Y Familiares Atendidos",35,38]
["Secretaría De Seguridad Y Protección CiudadanaSubdirección De Prevención Al  Delito3Gabinete Psicológico","Secretaría De Seguridad Y Protección CiudadanaSubdirección De Prevención Al  Delito3",{"$f":"COUNTIF($E$2:E237,E237:E237)","v":3},"Secretaría De Seguridad Y Protección Ciudadana","Subdirección De Prevención Al  Delito","Gabinete Psicológico","Número De Elementos Operativos Y Familiares Atendidos Psicológicamente ","Personas Atendidas",140,150]
["Secretaría De Seguridad Y Protección CiudadanaSubdirección De Prevención Al  Delito4Cannat","Secretaría De Seguridad Y Protección CiudadanaSubdirección De Prevención Al  Delito4",{"$f":"COUNTIF($E$2:E238,E238:E238)","v":4},"Secretaría De Seguridad Y Protección Ciudadana","Subdirección De Prevención Al  Delito","Cannat","Número De Atenciones  De Niñas, Niños Y Adolescentes En Conflicto Con La Ley","Niños, Niñas Y Adolescentes En Conflicto Con La Ley",30,35]
["Secretaría De Seguridad Y Protección CiudadanaSubdirección De Prevención Al  Delito5Cascareando Por La Prevención","Secretaría De Seguridad Y Protección CiudadanaSubdirección De Prevención Al  Delito5",{"$f":"COUNTIF($E$2:E239,E239:E239)","v":5},"Secretaría De Seguridad Y Protección Ciudadana","Subdirección De Prevención Al  Delito","Cascareando Por La Prevención","Adolescentes De 08 Escuelas Secundarias Del Turno Matutino   Del Municipio De San Pedro Tlaquepaque","Número De Escuelas",8,8]
["Secretaría De Seguridad Y Protección CiudadanaSubdirección Vinculación Ciudadana1Programa De Participación Ciudadana (Línea Segura)","Secretaría De Seguridad Y Protección CiudadanaSubdirección Vinculación Ciudadana1",{"$f":"COUNTIF($E$2:E240,E240:E240)","v":1},"Secretaría De Seguridad Y Protección Ciudadana","Subdirección Vinculación Ciudadana","Programa De Participación Ciudadana (Línea Segura)","Porcentaje De Personas Capacitadas Para Realizar Sus Reportes A Las Áreas Correspondientes.","Número De Personas Capacitadas ",3700,4000]
["Secretaría De Seguridad Y Protección CiudadanaSubdirección de Vialidad1Participación en la Mesa Metropolitana de Movilidad","Secretaría De Seguridad Y Protección CiudadanaSubdirección de Vialidad1",{"$f":"COUNTIF($E$2:E241,E241:E241)","v":1},"Secretaría De Seguridad Y Protección Ciudadana","Subdirección de Vialidad","Participación en la Mesa Metropolitana de Movilidad","Porcentaje de participación en sesiones de la Mesa Metropolitana de Movilidad y sus grupos de trabajo","Reporte de participación mensual",6,12]
["Secretaría De Seguridad Y Protección CiudadanaSubdirección de Vialidad2Estacionamiento Preferencial en Vía Pública","Secretaría De Seguridad Y Protección CiudadanaSubdirección de Vialidad2",{"$f":"COUNTIF($E$2:E242,E242:E242)","v":2},"Secretaría De Seguridad Y Protección Ciudadana","Subdirección de Vialidad","Estacionamiento Preferencial en Vía Pública","Proyecto para intervención de Estacionamientos Preferenciales en Vía Pública","Número de estacionamientos",0,4]
["Secretaría De Seguridad Y Protección CiudadanaSubdirección de Vialidad3 Cruceros Seguros","Secretaría De Seguridad Y Protección CiudadanaSubdirección de Vialidad3",{"$f":"COUNTIF($E$2:E243,E243:E243)","v":3},"Secretaría De Seguridad Y Protección Ciudadana","Subdirección de Vialidad"," Cruceros Seguros","Proyectos elaborados para la intervención de cruceros seguros, para promover el tránsito peatonal libre y seguro","Número de cruceros seguros",0,50]
["Secretaría De Seguridad Y Protección CiudadanaDirección De Atención A La Violencia De Genero2Prevención Comunitaria Y Escolar De Las Violencias En Razón De Genero","Secretaría De Seguridad Y Protección CiudadanaDirección De Atención A La Violencia De Genero2",{"$f":"COUNTIF($E$2:E244,E244:E244)","v":2},"Secretaría De Seguridad Y Protección Ciudadana","Dirección De Atención A La Violencia De Genero","Prevención Comunitaria Y Escolar De Las Violencias En Razón De Genero","Porcentaje de atenciones en prevención comunitaria realizadas por la dirección de Atención a la Violencia de Género","Número de atenciones realizadas ",3500,8000]
["Secretaría De Servicios Públicos Y Medio AmbienteDirección De Medio Ambiente1Registro De Ladrilleros","Secretaría De Servicios Públicos Y Medio AmbienteDirección De Medio Ambiente1",{"$f":"COUNTIF($E$2:E245,E245:E245)","v":1},"Secretaría De Servicios Públicos Y Medio Ambiente","Dirección De Medio Ambiente","Registro De Ladrilleros","Porcentaje De Ladrilleras Registradas.","Número De Ladrilleras Registradas. ",200,220]
["Secretaría De Servicios Públicos Y Medio AmbienteDirección De Medio Ambiente2Registro De Ladrilleros","Secretaría De Servicios Públicos Y Medio AmbienteDirección De Medio Ambiente2",{"$f":"COUNTIF($E$2:E246,E246:E246)","v":2},"Secretaría De Servicios Públicos Y Medio Ambiente","Dirección De Medio Ambiente","Registro De Ladrilleros","Porcentaje De Ladrilleras Que Renuevan Convenio. ","Número De Ladrilleras Con Renovación  ",200,220]
["Secretaría De Servicios Públicos Y Medio AmbienteDirección De Medio Ambiente3Retiro De Bienes En Estado De Abandono En La Vía Pública","Secretaría De Servicios Públicos Y Medio AmbienteDirección De Medio Ambiente3",{"$f":"COUNTIF($E$2:E247,E247:E247)","v":3},"Secretaría De Servicios Públicos Y Medio Ambiente","Dirección De Medio Ambiente","Retiro De Bienes En Estado De Abandono En La Vía Pública"," Porcentaje De Reportes De Retiro De Vehículos En Vía Pública  Atendidos ","Número De Reportes Atendidos ",50,60]
["Secretaría De Servicios Públicos Y Medio AmbienteDirección De Medio Ambiente4Servicio De Dictaminarían Ambiental","Secretaría De Servicios Públicos Y Medio AmbienteDirección De Medio Ambiente4",{"$f":"COUNTIF($E$2:E248,E248:E248)","v":4},"Secretaría De Servicios Públicos Y Medio Ambiente","Dirección De Medio Ambiente","Servicio De Dictaminarían Ambiental","Porcentaje De Dictaminaciones Ambientales Ingresadas","Número De Dictaminaciones Evaluadas",140,150]
["Secretaría De Servicios Públicos Y Medio AmbienteRastro1Capacitación Continua Al Personal","Secretaría De Servicios Públicos Y Medio AmbienteRastro1",{"$f":"COUNTIF($E$2:E249,E249:E249)","v":1},"Secretaría De Servicios Públicos Y Medio Ambiente","Rastro","Capacitación Continua Al Personal","Porcentaje De Capacitaciones En Normatividad Sanitaria Realizadas","Numero De Capacitaciones  Realizadas",2,3]
["Secretaría De Servicios Públicos Y Medio AmbienteRastro2Campañas De Inspección Cárnica","Secretaría De Servicios Públicos Y Medio AmbienteRastro2",{"$f":"COUNTIF($E$2:E250,E250:E250)","v":2},"Secretaría De Servicios Públicos Y Medio Ambiente","Rastro","Campañas De Inspección Cárnica","Porcentaje De Inspección A Giros Y Tianguis Realizadas","Numero De Inspecciones",8241,8500]
["Secretaría De Servicios Públicos Y Medio AmbienteRastro3Bio Digestor ","Secretaría De Servicios Públicos Y Medio AmbienteRastro3",{"$f":"COUNTIF($E$2:E251,E251:E251)","v":3},"Secretaría De Servicios Públicos Y Medio Ambiente","Rastro","Bio Digestor ","Instalación Y Puesta En Marcha Del Biodigestor.","Porcentaje De Avance Del Proyecto.",0,1]
["Secretaría De Servicios Públicos Y Medio AmbienteDirección De Cementerios 1Ampliación O Construcción  Del Archivo General De La Dirección De Cementerios","Secretaría De Servicios Públicos Y Medio AmbienteDirección De Cementerios 1",{"$f":"COUNTIF($E$2:E252,E252:E252)","v":1},"Secretaría De Servicios Públicos Y Medio Ambiente","Dirección De Cementerios ","Ampliación O Construcción  Del Archivo General De La Dirección De Cementerios","Porcentaje De Etapas De Gestión","Numero De Etapas Realizadas",0,6]
["Secretaría De Servicios Públicos Y Medio AmbienteDirección De Cementerios 2Reforzamiento De Barda Perimetral  En El Cementerio De San Sebastianito ","Secretaría De Servicios Públicos Y Medio AmbienteDirección De Cementerios 2",{"$f":"COUNTIF($E$2:E253,E253:E253)","v":2},"Secretaría De Servicios Públicos Y Medio Ambiente","Dirección De Cementerios ","Reforzamiento De Barda Perimetral  En El Cementerio De San Sebastianito ","Porcentaje De Etapas De Gestión","Numero De Etapas Realizadas",0,6]
["Secretaría De Servicios Públicos Y Medio AmbienteDirección De Cementerios 3Gestión De Para  La  Digitalización Administrativa ","Secretaría De Servicios Públicos Y Medio AmbienteDirección De Cementerios 3",{"$f":"COUNTIF($E$2:E254,E254:E254)","v":3},"Secretaría De Servicios Públicos Y Medio Ambiente","Dirección De Cementerios ","Gestión De Para  La  Digitalización Administrativa ","Porcentaje De Etapas De Gestión","Numero De Etapas Realizadas Para La Digitalización Administrativa  ",0,6]
["Secretaría De Servicios Públicos Y Medio AmbienteSubdirección De Parques, Jardines Y Gestión Del Cambio Climático 1Adopta Un Árbol Y Dale Vida Al Planeta ","Secretaría De Servicios Públicos Y Medio AmbienteSubdirección De Parques, Jardines Y Gestión Del Cambio Climático 1",{"$f":"COUNTIF($E$2:E255,E255:E255)","v":1},"Secretaría De Servicios Públicos Y Medio Ambiente","Subdirección De Parques, Jardines Y Gestión Del Cambio Climático ","Adopta Un Árbol Y Dale Vida Al Planeta ","Porcentaje De Árboles Donados ","Número De Árboles Donados ",7000,5000]
["Secretaría De Servicios Públicos Y Medio AmbienteSubdirección De Parques, Jardines Y Gestión Del Cambio Climático 2Operativo De Reforestación ","Secretaría De Servicios Públicos Y Medio AmbienteSubdirección De Parques, Jardines Y Gestión Del Cambio Climático 2",{"$f":"COUNTIF($E$2:E256,E256:E256)","v":2},"Secretaría De Servicios Públicos Y Medio Ambiente","Subdirección De Parques, Jardines Y Gestión Del Cambio Climático ","Operativo De Reforestación ","Porcentaje De Árboles Reforestados En Áreas Verdes, Camellones, Parques Y Jardines.","Número De Árboles Reforestados ",2000,2000]
["Secretaría De Servicios Públicos Y Medio AmbienteSubdirección De Parques, Jardines Y Gestión Del Cambio Climático 3Operativo Derribos Secos","Secretaría De Servicios Públicos Y Medio AmbienteSubdirección De Parques, Jardines Y Gestión Del Cambio Climático 3",{"$f":"COUNTIF($E$2:E257,E257:E257)","v":3},"Secretaría De Servicios Públicos Y Medio Ambiente","Subdirección De Parques, Jardines Y Gestión Del Cambio Climático ","Operativo Derribos Secos","Porcentaje De Arboles Secos Con Riesgo Latente ","Número De Árboles Seccionados Y Retirados. ",300,300]
["Secretaría De Servicios Públicos Y Medio AmbienteSubdirección De Parques, Jardines Y Gestión Del Cambio Climático 4Operativo Mantenimiento De Áreas Verdes ","Secretaría De Servicios Públicos Y Medio AmbienteSubdirección De Parques, Jardines Y Gestión Del Cambio Climático 4",{"$f":"COUNTIF($E$2:E258,E258:E258)","v":4},"Secretaría De Servicios Públicos Y Medio Ambiente","Subdirección De Parques, Jardines Y Gestión Del Cambio Climático ","Operativo Mantenimiento De Áreas Verdes ","Porcentaje De Áreas Verdes Pertenecientes Al Municipio De San Pedro Tlaquepaque. ","Número De Áreas Verdes Intervenidas En M2 ",9500000,"5´000,000"]
["Secretaría De Servicios Públicos Y Medio AmbienteSubdirección De Parques, Jardines Y Gestión Del Cambio Climático 5Operativo Podas Preventivas ",{"$f":"D259&E259&C259","v":"Secretaría De Servicios Públicos Y Medio AmbienteSubdirección De Parques, Jardines Y Gestión Del Cambio Climático 5"},{"$f":"COUNTIF($E$2:E259,E259:E259)","v":5},"Secretaría De Servicios Públicos Y Medio Ambiente","Subdirección De Parques, Jardines Y Gestión Del Cambio Climático ","Operativo Podas Preventivas ","Podas Realizadas En Nuestras Áreas Municipales ","Numeró Total De Podas Realizadas ",6000,6000]
["Secretaría De Servicios Públicos Y Medio AmbienteSubdirección De Parques, Jardines Y Gestión Del Cambio Climático 6Trituración de Material Orgánico para la Elaboración de Composta ","Secretaría De Servicios Públicos Y Medio AmbienteSubdirección De Parques, Jardines Y Gestión Del Cambio Climático 6",{"$f":"COUNTIF($E$2:E260,E260:E260)","v":6},"Secretaría De Servicios Públicos Y Medio Ambiente","Subdirección De Parques, Jardines Y Gestión Del Cambio Climático ","Trituración de Material Orgánico para la Elaboración de Composta ","Porcentaje De Viajes De Ramas Resultantes De Podas Y Derribos.","Número De Viajes Realizados Y Triturados ",900,900]
["Secretaría De Servicios Públicos Y Medio AmbienteRegulación Ambiental1Atínale hacia un Futuro más Limpio","Secretaría De Servicios Públicos Y Medio AmbienteRegulación Ambiental1",{"$f":"COUNTIF($E$2:E261,E261:E261)","v":1},"Secretaría De Servicios Públicos Y Medio Ambiente","Regulación Ambiental","Atínale hacia un Futuro más Limpio","Escuelas ","Contenedores Instalados",5,100]
["Secretaría De Servicios Públicos Y Medio AmbienteRegulación Ambiental2Creadores de Esperanza","Secretaría De Servicios Públicos Y Medio AmbienteRegulación Ambiental2",{"$f":"COUNTIF($E$2:E262,E262:E262)","v":2},"Secretaría De Servicios Públicos Y Medio Ambiente","Regulación Ambiental","Creadores de Esperanza","Charlas  Ambientales  Y Talleres De Manualidad Con Reciclado","Numero De Charlas Y Talleres",100,150]
["Secretaría De Servicios Públicos Y Medio AmbienteRegulación Ambiental3El Mercadito","Secretaría De Servicios Públicos Y Medio AmbienteRegulación Ambiental3",{"$f":"COUNTIF($E$2:E263,E263:E263)","v":3},"Secretaría De Servicios Públicos Y Medio Ambiente","Regulación Ambiental","El Mercadito","Embaces Recolectados","Kilos D Embaces Recibidos",100,300]
["Secretaría De Servicios Públicos Y Medio AmbienteRegulación Ambiental4Gobierno con Buen Papel","Secretaría De Servicios Públicos Y Medio AmbienteRegulación Ambiental4",{"$f":"COUNTIF($E$2:E264,E264:E264)","v":4},"Secretaría De Servicios Públicos Y Medio Ambiente","Regulación Ambiental","Gobierno con Buen Papel","Porcentaje De Papel Recolectado","Kilogramos De Papel",3500,4000]
["Secretaría De Servicios Públicos Y Medio AmbienteRegulación Ambiental5Sembrado  Esperanza","Secretaría De Servicios Públicos Y Medio AmbienteRegulación Ambiental5",{"$f":"COUNTIF($E$2:E265,E265:E265)","v":5},"Secretaría De Servicios Públicos Y Medio Ambiente","Regulación Ambiental","Sembrado  Esperanza","Arboles  O Huertos","Arboles Plantados O Huertos ",100,150]
["Secretaría De Servicios Públicos Y Medio AmbienteDirección De Agua Potable, Drenaje Y Alcantarillado 1Entrega del Vital Liquido","Secretaría De Servicios Públicos Y Medio AmbienteDirección De Agua Potable, Drenaje Y Alcantarillado 1",{"$f":"COUNTIF($E$2:E266,E266:E266)","v":1},"Secretaría De Servicios Públicos Y Medio Ambiente","Dirección De Agua Potable, Drenaje Y Alcantarillado ","Entrega del Vital Liquido","Porcentaje De Etapas De Gestión Para Obtención De La Camioneta Pick Up","Número De Etapas De Gestión Realizadas",0,3]
["Secretaría De Servicios Públicos Y Medio AmbienteDirección De Agua Potable, Drenaje Y Alcantarillado 2Entrega del Vital Liquido","Secretaría De Servicios Públicos Y Medio AmbienteDirección De Agua Potable, Drenaje Y Alcantarillado 2",{"$f":"COUNTIF($E$2:E267,E267:E267)","v":2},"Secretaría De Servicios Públicos Y Medio Ambiente","Dirección De Agua Potable, Drenaje Y Alcantarillado ","Entrega del Vital Liquido","Porcentaje De Viajes Realizados, Para El Suministro De Agua","Numero De Viajes Realizados",0,12000]
["Secretaría De Servicios Públicos Y Medio AmbienteDirección De Agua Potable, Drenaje Y Alcantarillado 3Gestión y Puesta en Marcha del Laboratorio de Análisis de Agua Potable","Secretaría De Servicios Públicos Y Medio AmbienteDirección De Agua Potable, Drenaje Y Alcantarillado 3",{"$f":"COUNTIF($E$2:E268,E268:E268)","v":3},"Secretaría De Servicios Públicos Y Medio Ambiente","Dirección De Agua Potable, Drenaje Y Alcantarillado ","Gestión y Puesta en Marcha del Laboratorio de Análisis de Agua Potable","Porcentaje De Etapas De Gestión Para La Conclusión Y Puesta En Marcha Del Laboratorio De Análisis Del Agua Potable ","Número De Etapas Realizadas",0,10]
["Secretaría De Servicios Públicos Y Medio AmbienteDirección De Agua Potable, Drenaje Y Alcantarillado 4Padrón Único De Usuarios Y Servicio Medido","Secretaría De Servicios Públicos Y Medio AmbienteDirección De Agua Potable, Drenaje Y Alcantarillado 4",{"$f":"COUNTIF($E$2:E269,E269:E269)","v":4},"Secretaría De Servicios Públicos Y Medio Ambiente","Dirección De Agua Potable, Drenaje Y Alcantarillado ","Padrón Único De Usuarios Y Servicio Medido","Porcentaje De Viviendas Agregadas Al Padrón Único De Usuarios","Número De Viviendas",0,500]
["Secretaría De Servicios Públicos Y Medio AmbienteDirección De Agua Potable, Drenaje Y Alcantarillado 5Padrón Único De Usuarios Y Servicio Medido","Secretaría De Servicios Públicos Y Medio AmbienteDirección De Agua Potable, Drenaje Y Alcantarillado 5",{"$f":"COUNTIF($E$2:E270,E270:E270)","v":5},"Secretaría De Servicios Públicos Y Medio Ambiente","Dirección De Agua Potable, Drenaje Y Alcantarillado ","Padrón Único De Usuarios Y Servicio Medido","Porcentaje De Gestiones Realizadas Para  La Adquisición De 400 Medidores Y Piezas Especiales, Dos Equipos De Computo Completos Portátiles Y Dos Camionetas Pick Up Doble Cabina 2026   ","Número De Gestiones Realizadas",0,3]
["Secretaría De Servicios Públicos Y Medio AmbienteDirección De Agua Potable, Drenaje Y Alcantarillado 6Padrón Único De Usuarios Y Servicio Medido","Secretaría De Servicios Públicos Y Medio AmbienteDirección De Agua Potable, Drenaje Y Alcantarillado 6",{"$f":"COUNTIF($E$2:E271,E271:E271)","v":6},"Secretaría De Servicios Públicos Y Medio Ambiente","Dirección De Agua Potable, Drenaje Y Alcantarillado ","Padrón Único De Usuarios Y Servicio Medido","Porcentaje De Adquisición E Instalación De Medidores De Agua Y Piezas Especiales","Número De Medidores Y Piezas Especiales Instalados",0,400]
["Secretaría De Servicios Públicos Y Medio AmbienteDirección De Agua Potable, Drenaje Y Alcantarillado 7Recepción, Distribución, Dosificación, Monitoreo de Cloro Residual de Agua Potable","Secretaría De Servicios Públicos Y Medio AmbienteDirección De Agua Potable, Drenaje Y Alcantarillado 7",{"$f":"COUNTIF($E$2:E272,E272:E272)","v":7},"Secretaría De Servicios Públicos Y Medio Ambiente","Dirección De Agua Potable, Drenaje Y Alcantarillado ","Recepción, Distribución, Dosificación, Monitoreo de Cloro Residual de Agua Potable","Porcentaje De Distribución, Dosificación Y Monitoreo De Cloro Residual En El Agua Potable. ","Número De Monitoreos De Cloro Residual",0,24000]
["Secretaría De Servicios Públicos Y Medio AmbienteDirección De Agua Potable, Drenaje Y Alcantarillado 8Rehabilitación de 20 Pozos de Suministro del Agua ","Secretaría De Servicios Públicos Y Medio AmbienteDirección De Agua Potable, Drenaje Y Alcantarillado 8",{"$f":"COUNTIF($E$2:E273,E273:E273)","v":8},"Secretaría De Servicios Públicos Y Medio Ambiente","Dirección De Agua Potable, Drenaje Y Alcantarillado ","Rehabilitación de 20 Pozos de Suministro del Agua ","Porcentaje de pozos con mantenimiento y rehabilitación intervenidos","Número de pozos intervenidos",0,12]
[{"$f":"B274&F274","v":"Secretaría De Servicios Públicos Y Medio AmbienteDirección De Agua Potable, Drenaje Y Alcantarillado 9Trabajos Emergentes De Redes Hidrosanitarias"},"Secretaría De Servicios Públicos Y Medio AmbienteDirección De Agua Potable, Drenaje Y Alcantarillado 9",{"$f":"COUNTIF($E$2:E274,E274:E274)","v":9},"Secretaría De Servicios Públicos Y Medio Ambiente","Dirección De Agua Potable, Drenaje Y Alcantarillado ","Trabajos Emergentes De Redes Hidrosanitarias","Porcentaje De Reportes Atendidos Para El Mantenimiento De Redes Hidrosanitarias","Número De Reportes Ciudadanos Atendidos",1750,1800]
["Secretaría De Servicios Públicos Y Medio AmbienteAlumbrado Público1Sustitución De Luminarias Led","Secretaría De Servicios Públicos Y Medio AmbienteAlumbrado Público1",{"$f":"COUNTIF($E$2:E275,E275:E275)","v":1},"Secretaría De Servicios Públicos Y Medio Ambiente","Alumbrado Público","Sustitución De Luminarias Led","Porcentaje De Seguimiento Y Aporte A La Prestación Del Servicio De Alumbrado Público Mediante El Mantenimiento Y Sustitución De Luminarias Con Tecnología Led, Para Otorgar Seguridad A Los Habitantes Del Municipio","Número De Luminarias Sustituidas Y/O Reparadas En El Municipio",2000,5000]
["Secretaría De Servicios Públicos Y Medio AmbienteDirección De Aseo Público1Programa De Operativos De Limpieza","Secretaría De Servicios Públicos Y Medio AmbienteDirección De Aseo Público1",{"$f":"COUNTIF($E$2:E276,E276:E276)","v":1},"Secretaría De Servicios Públicos Y Medio Ambiente","Dirección De Aseo Público","Programa De Operativos De Limpieza","Porcentaje De Avance Del Programa Operativos De Limpieza","Número De Operativos Realizados",2370,3000]
["Secretaría De Servicios Públicos Y Medio AmbienteDirección De Aseo Público2Plataforma De Atención Ciudadana (Reportes)","Secretaría De Servicios Públicos Y Medio AmbienteDirección De Aseo Público2",{"$f":"COUNTIF($E$2:E277,E277:E277)","v":2},"Secretaría De Servicios Públicos Y Medio Ambiente","Dirección De Aseo Público","Plataforma De Atención Ciudadana (Reportes)","Porcentaje De Reportes Atendidos Dentro De Las 24 Horas","Número De Reportes Atendidos",0,2900]
["Secretaría De Servicios Públicos Y Medio AmbienteDirección De Aseo Público3Servicio De Fumigación Para Prevención Del Dengue ","Secretaría De Servicios Públicos Y Medio AmbienteDirección De Aseo Público3",{"$f":"COUNTIF($E$2:E278,E278:E278)","v":3},"Secretaría De Servicios Públicos Y Medio Ambiente","Dirección De Aseo Público","Servicio De Fumigación Para Prevención Del Dengue ","Porcentaje De Avance De Las Campañas De Fumigación Para La Prevención Del Dengue     Porcentaje De Campañas De Fumigación Para Prevención Del Dengue, Realizadas ","Número De Fumigaciones Realizadas                                                   Número De Campañas De Fumigación Realizadas ",0,150]
["Secretaría De Servicios Públicos Y Medio AmbienteDirección De Aseo Público4Servicio De Recolección De Residuos Sólidos Urbanos","Secretaría De Servicios Públicos Y Medio AmbienteDirección De Aseo Público4",{"$f":"COUNTIF($E$2:E279,E279:E279)","v":4},"Secretaría De Servicios Públicos Y Medio Ambiente","Dirección De Aseo Público","Servicio De Recolección De Residuos Sólidos Urbanos","Porcentaje De Avance En La Cobertura Del Servicio De Recolección De Residuos Sólidos Urbanos","Número De Servicios De Recolección Realizados",12740,30624]
["Secretaría De Servicios Públicos Y Medio AmbienteDirección De Medio Ambiente5Denuncia Ambiental Ciudadana","Secretaría De Servicios Públicos Y Medio AmbienteDirección De Medio Ambiente5",{"$f":"COUNTIF($E$2:E280,E280:E280)","v":5},"Secretaría De Servicios Públicos Y Medio Ambiente","Dirección De Medio Ambiente","Denuncia Ambiental Ciudadana","Porcentaje De Denuncias Recibidas Y Atendidas","Número De Denuncias Atendidas ",60,65]
["Secretaría De Servicios Públicos Y Medio AmbienteDirección De Medio Ambiente6Registro  De Fuentes Fijas Municipales","Secretaría De Servicios Públicos Y Medio AmbienteDirección De Medio Ambiente6",{"$f":"COUNTIF($E$2:E281,E281:E281)","v":6},"Secretaría De Servicios Públicos Y Medio Ambiente","Dirección De Medio Ambiente","Registro  De Fuentes Fijas Municipales","Porcentaje De Avance En El Registro De Fuentes Fijas ","Número De Fuentes Fijas Registradas",345,360]
["Secretaría Del Despacho De La PresidentaDirección De Comunicación Estratégica1Campañas En Redes Sociales","Secretaría Del Despacho De La PresidentaDirección De Comunicación Estratégica1",{"$f":"COUNTIF($E$2:E282,E282:E282)","v":1},"Secretaría Del Despacho De La Presidenta","Dirección De Comunicación Estratégica","Campañas En Redes Sociales","Porcentaje De Campañas Realizadas En Redes Sociales ","Número De Campañas Realizadas",0,40]
["Secretaría Del Despacho De La PresidentaDirección De Atención Y Vinculación Ciudadana1Atención A Reportes De Servicios Públicos, Información Sobre Apoyos Sociales Y Reportes En General","Secretaría Del Despacho De La PresidentaDirección De Atención Y Vinculación Ciudadana1",{"$f":"COUNTIF($E$2:E283,E283:E283)","v":1},"Secretaría Del Despacho De La Presidenta","Dirección De Atención Y Vinculación Ciudadana","Atención A Reportes De Servicios Públicos, Información Sobre Apoyos Sociales Y Reportes En General","Porcentaje De Reportes Ciudadanos Atendidos En Ventanilla Y Vía Telefónica.","Número De Reportes Atendidos",7900,9800]
["Secretaría Del Despacho De La PresidentaSubdirección De Gestión De Participación Territorial1Socializando Y Perifoneando Para La Ciudadanía","Secretaría Del Despacho De La PresidentaSubdirección De Gestión De Participación Territorial1",{"$f":"COUNTIF($E$2:E284,E284:E284)","v":1},"Secretaría Del Despacho De La Presidenta","Subdirección De Gestión De Participación Territorial","Socializando Y Perifoneando Para La Ciudadanía","Porcentaje De Avance En El Proceso De Perifoneas De Las Acciones De Gobierno Realizados","Números De Perifoneas Realizados",350,350]
["Secretaría Del Despacho De La PresidentaSubdirección De Gestión De Participación Territorial2Socializando Y Perifoneando Para La Ciudadanía","Secretaría Del Despacho De La PresidentaSubdirección De Gestión De Participación Territorial2",{"$f":"COUNTIF($E$2:E285,E285:E285)","v":2},"Secretaría Del Despacho De La Presidenta","Subdirección De Gestión De Participación Territorial","Socializando Y Perifoneando Para La Ciudadanía","Porcentaje De Avance En El Proceso De Difundir Las Acciones De Gobierno Mediante La Socialización Realizados","Número De Socializaciones Realizadas",250,250]
["Secretaría Del Despacho De La PresidentaSubdirección De Gestión De Participación Territorial3Capacitaciones A Organizaciones Vecinales ","Secretaría Del Despacho De La PresidentaSubdirección De Gestión De Participación Territorial3",{"$f":"COUNTIF($E$2:E286,E286:E286)","v":3},"Secretaría Del Despacho De La Presidenta","Subdirección De Gestión De Participación Territorial","Capacitaciones A Organizaciones Vecinales ","Porcentaje De Capacitaciones En Materia De Participación Ciudadana, Realizadas ","Número De Capacitaciones Realizadas",60,100]
["Secretaría Del Despacho De La PresidentaSubdirección De Gestión De Participación Territorial4Conformación De Organizaciones Vecinales","Secretaría Del Despacho De La PresidentaSubdirección De Gestión De Participación Territorial4",{"$f":"COUNTIF($E$2:E287,E287:E287)","v":4},"Secretaría Del Despacho De La Presidenta","Subdirección De Gestión De Participación Territorial","Conformación De Organizaciones Vecinales","Porcentaje De Avance En La Conformación De Organizaciones Vecinales","Numero De Conformaciones De Organizaciones Vecinales",65,100]
["Secretaría General Del AyuntamientoSecretaría General Del Ayuntamiento1Adecuación De Sala De Juntas (Pleno)","Secretaría General Del AyuntamientoSecretaría General Del Ayuntamiento1",{"$f":"COUNTIF($E$2:E288,E288:E288)","v":1},"Secretaría General Del Ayuntamiento","Secretaría General Del Ayuntamiento","Adecuación De Sala De Juntas (Pleno)","Porcentaje De Adecuaciones A La Sala De Juntas (Pleno) Realizadas","Número De Adecuaciones Realizadas ",0,1]
["Secretaría General Del AyuntamientoSecretaría General Del Ayuntamiento2Cartas De Residencia","Secretaría General Del AyuntamientoSecretaría General Del Ayuntamiento2",{"$f":"COUNTIF($E$2:E289,E289:E289)","v":2},"Secretaría General Del Ayuntamiento","Secretaría General Del Ayuntamiento","Cartas De Residencia","Porcentaje De Expedición De Cartas De Residencia.","Porcentaje De Expedición De Cartas De Residencia. Número De Cartas De Residencia Expedidas ",0,6000]
["Secretaría General Del AyuntamientoSecretaría General Del Ayuntamiento3Certificaciones","Secretaría General Del AyuntamientoSecretaría General Del Ayuntamiento3",{"$f":"COUNTIF($E$2:E290,E290:E290)","v":3},"Secretaría General Del Ayuntamiento","Secretaría General Del Ayuntamiento","Certificaciones","Porcentaje De Documentos Certificados  Certificaciones Realizadas","Número De Documentos Certificados",0,6000]
["Secretaría General Del AyuntamientoSecretaría General Del Ayuntamiento4Diseño, Impresión Publicación Y Distribución De Gacetas (Gaceta Municipal)","Secretaría General Del AyuntamientoSecretaría General Del Ayuntamiento4",{"$f":"COUNTIF($E$2:E291,E291:E291)","v":4},"Secretaría General Del Ayuntamiento","Secretaría General Del Ayuntamiento","Diseño, Impresión Publicación Y Distribución De Gacetas (Gaceta Municipal)","Porcentaje De Gacetas Municipales Publicadas","Porcentaje Número De Gacetas Municipales  Publicadas",0,20]
["Sindicatura Departamento De Mejora Regulatoria 1Catalogo Municipal De Trámites Y Servicios ","Sindicatura Departamento De Mejora Regulatoria 1",{"$f":"COUNTIF($E$2:E292,E292:E292)","v":1},"Sindicatura ","Departamento De Mejora Regulatoria ","Catalogo Municipal De Trámites Y Servicios ","Porcentaje De Dependencias Que Actualizaran El Catalogo Municipal De Trámites Y Servicios ","Cantidad De Dependencias Actualizadas En El Catálogo Municipal De Trámites Y Servicios",0,40]
["Sindicatura Departamento De Mejora Regulatoria 2Actualización Del Reglamento De Mejora Regulatoria De San Pedro Tlaquepaque","Sindicatura Departamento De Mejora Regulatoria 2",{"$f":"COUNTIF($E$2:E293,E293:E293)","v":2},"Sindicatura ","Departamento De Mejora Regulatoria ","Actualización Del Reglamento De Mejora Regulatoria De San Pedro Tlaquepaque","Porcentaje De Actividades Ejecutadas Para La Armonización De La Normatividad Municipal Con La Ley Nacional Para Eliminar Trámites Burocráticos ","Número De Actividades Ejecutadas Para La Armonización ",0,4]
["Sindicatura Sindicatura 1Presentación De Iniciativas De Modificación De Normatividad ","Sindicatura Sindicatura 1",{"$f":"COUNTIF($E$2:E294,E294:E294)","v":1},"Sindicatura ","Sindicatura ","Presentación De Iniciativas De Modificación De Normatividad ","Porcentaje De Iniciativas De Modificación A La Normatividad Municipal Realizadas ","Número De Iniciativas De Modificación Realizadas",2,3]
["Sindicatura Dirección Jurídica1Servicios De Asesoramiento Legal Y Jurídico A La Población Que Presenta Vulnerabilidad Legal E Indefensión De Su Patrimonio","Sindicatura Dirección Jurídica1",{"$f":"COUNTIF($E$2:E295,E295:E295)","v":1},"Sindicatura ","Dirección Jurídica","Servicios De Asesoramiento Legal Y Jurídico A La Población Que Presenta Vulnerabilidad Legal E Indefensión De Su Patrimonio","PENDIENTE"]
["Sindicatura Departamento de Contratos y Convenios1Servicio de Revisión de Contratos","Sindicatura Departamento de Contratos y Convenios1",{"$f":"COUNTIF($E$2:E296,E296:E296)","v":1},"Sindicatura ","Departamento de Contratos y Convenios","Servicio de Revisión de Contratos","Porcentaje de solicitudes de revisión de contratos para firma de la Sindicatura requerido por las áreas para la continuación y eficacia de la actividad municipal, realizadas ","Número de solicitudes de revisión de contratos realizadas",300,350]
["Unidad De TransparenciaUnidad De Transparencia 1Resoluciones Emitidas Por El Comité De Transparencia ","Unidad De TransparenciaUnidad De Transparencia 1",{"$f":"COUNTIF($E$2:E297,E297:E297)","v":1},"Unidad De Transparencia","Unidad De Transparencia ","Resoluciones Emitidas Por El Comité De Transparencia ","Porcentaje De Sesiones Del Comité De Transparencia Celebradas","Numero De Sesiones Realizadas",0,12]
["Unidad De TransparenciaUnidad De Transparencia 2Aumentar La Calidad En La Atención De Solicitudes De Acceso, Rectificación, Cancelación Y Oposición De Datos Personales ","Unidad De TransparenciaUnidad De Transparencia 2",{"$f":"COUNTIF($E$2:E298,E298:E298)","v":2},"Unidad De Transparencia","Unidad De Transparencia ","Aumentar La Calidad En La Atención De Solicitudes De Acceso, Rectificación, Cancelación Y Oposición De Datos Personales ","Porcentaje De Solicitudes De Acceso, Rectificación, Cancelación Y Oposición De Datos Personales, Atendidas","Número De Solicitudes Atendidas ",0,300]
["Unidad De TransparenciaUnidad De Transparencia 3Mejorar La Calidad En La Atención De Solicitudes De Acceso A La Información ","Unidad De TransparenciaUnidad De Transparencia 3",{"$f":"COUNTIF($E$2:E299,E299:E299)","v":3},"Unidad De Transparencia","Unidad De Transparencia ","Mejorar La Calidad En La Atención De Solicitudes De Acceso A La Información ","Porcentaje De Solicitudes De Acceso A La Información, Atendidas ","Número De Solicitudes Atendidas ",0,1800]
["0","0",{"$f":"COUNTIF($E$2:E300,E300:E300)","v":0}]
["0","0",{"$f":"COUNTIF($E$2:E301,E301:E301)","v":0}]
["0","0",{"$f":"COUNTIF($E$2:E302,E302:E302)","v":0}]
["0","0",{"$f":"COUNTIF($E$2:E303,E303:E303)","v":0}]
["0","0",{"$f":"COUNTIF($E$2:E304,E304:E304)","v":0}]
["0","0",{"$f":"COUNTIF($E$2:E305,E305:E305)","v":0}]
["0","0",{"$f":"COUNTIF($E$2:E306,E306:E306)","v":0}]
["0","0",{"$f":"COUNTIF($E$2:E307,E307:E307)","v":0}]
["0","0",{"$f":"COUNTIF($E$2:E308,E308:E308)","v":0}]
["0","0",{"$f":"COUNTIF($E$2:E309,E309:E309)","v":0}]
["0","0",{"$f":"COUNTIF($E$2:E310,E310:E310)","v":0}]
["0","0",{"$f":"COUNTIF($E$2:E311,E311:E311)","v":0}]
["0","0",{"$f":"COUNTIF($E$2:E312,E312:E312)","v":0}]
["0","0",{"$f":"COUNTIF($E$2:E313,E313:E313)","v":0}]
["0","0",{"$f":"COUNTIF($E$2:E314,E314:E314)","v":0}]
["0","0",{"$f":"COUNTIF($E$2:E315,E315:E315)","v":0}]
["0","0",{"$f":"COUNTIF($E$2:E316,E316:E316)","v":0}]
["0","0",{"$f":"COUNTIF($E$2:E317,E317:E317)","v":0}]
["0","0",{"$f":"COUNTIF($E$2:E318,E318:E318)","v":0}]
["0","0",{"$f":"COUNTIF($E$2:E319,E319:E319)","v":0}]
["0","0",{"$f":"COUNTIF($E$2:E320,E320:E320)","v":0}]
["0","0",{"$f":"COUNTIF($E$2:E321,E321:E321)","v":0}]
["0","0",{"$f":"COUNTIF($E$2:E322,E322:E322)","v":0}]
["0",{"$f":"D323&E323&C323","v":"0"},{"$f":"COUNTIF($E$2:E323,E323:E323)","v":0}]
["0","0",{"$f":"COUNTIF($E$2:E324,E324:E324)","v":0}]
["0","0",{"$f":"COUNTIF($E$2:E325,E325:E325)","v":0}]
["0","0",{"$f":"COUNTIF($E$2:E326,E326:E326)","v":0}]
["0","0",{"$f":"COUNTIF($E$2:E327,E327:E327)","v":0}]
["0","0",{"$f":"COUNTIF($E$2:E328,E328:E328)","v":0}]
["0","0",{"$f":"COUNTIF($E$2:E329,E329:E329)","v":0}]
["0","0",{"$f":"COUNTIF($E$2:E330,E330:E330)","v":0}]
["0","0",{"$f":"COUNTIF($E$2:E331,E331:E331)","v":0}]
["0","0",{"$f":"COUNTIF($E$2:E332,E332:E332)","v":0}]
["0","0",{"$f":"COUNTIF($E$2:E333,E333:E333)","v":0}]
["0","0",{"$f":"COUNTIF($E$2:E334,E334:E334)","v":0}]
["0","0",{"$f":"COUNTIF($E$2:E335,E335:E335)","v":0}]
["0","0",{"$f":"COUNTIF($E$2:E336,E336:E336)","v":0}]
["0","0",{"$f":"COUNTIF($E$2:E337,E337:E337)","v":0}]
[{"$f":"B338&F338","v":"0"},"0",{"$f":"COUNTIF($E$2:E338,E338:E338)","v":0}]
["0","0",{"$f":"COUNTIF($E$2:E339,E339:E339)","v":0}]
["0","0",{"$f":"COUNTIF($E$2:E340,E340:E340)","v":0}]
["0","0",{"$f":"COUNTIF($E$2:E341,E341:E341)","v":0}]
["0","0",{"$f":"COUNTIF($E$2:E342,E342:E342)","v":0}]
["0","0",{"$f":"COUNTIF($E$2:E343,E343:E343)","v":0}]
["0","0",{"$f":"COUNTIF($E$2:E344,E344:E344)","v":0}]
["0","0",{"$f":"COUNTIF($E$2:E345,E345:E345)","v":0}]
["0","0",{"$f":"COUNTIF($E$2:E346,E346:E346)","v":0}]
["0","0",{"$f":"COUNTIF($E$2:E347,E347:E347)","v":0}]
["0","0",{"$f":"COUNTIF($E$2:E348,E348:E348)","v":0}]
["0","0",{"$f":"COUNTIF($E$2:E349,E349:E349)","v":0}]
["0","0",{"$f":"COUNTIF($E$2:E350,E350:E350)","v":0}]
["0","0",{"$f":"COUNTIF($E$2:E351,E351:E351)","v":0}]
["0","0",{"$f":"COUNTIF($E$2:E352,E352:E352)","v":0}]
["0","0",{"$f":"COUNTIF($E$2:E353,E353:E353)","v":0}]
["0","0",{"$f":"COUNTIF($E$2:E354,E354:E354)","v":0}]
["0","0",{"$f":"COUNTIF($E$2:E355,E355:E355)","v":0}]
["0","0",{"$f":"COUNTIF($E$2:E356,E356:E356)","v":0}]
["0","0",{"$f":"COUNTIF($E$2:E357,E357:E357)","v":0}]
["0","0",{"$f":"COUNTIF($E$2:E358,E358:E358)","v":0}]
["0","0",{"$f":"COUNTIF($E$2:E359,E359:E359)","v":0}]
["0","0",{"$f":"COUNTIF($E$2:E360,E360:E360)","v":0}]
["0","0",{"$f":"COUNTIF($E$2:E361,E361:E361)","v":0}]
["0","0",{"$f":"COUNTIF($E$2:E362,E362:E362)","v":0}]
["0","0",{"$f":"COUNTIF($E$2:E363,E363:E363)","v":0}]
["0","0",{"$f":"COUNTIF($E$2:E364,E364:E364)","v":0}]
["0","0",{"$f":"COUNTIF($E$2:E365,E365:E365)","v":0}]
["0","0",{"$f":"COUNTIF($E$2:E366,E366:E366)","v":0}]
["0","0",{"$f":"COUNTIF($E$2:E367,E367:E367)","v":0}]
["0","0",{"$f":"COUNTIF($E$2:E368,E368:E368)","v":0}]
["0","0",{"$f":"COUNTIF($E$2:E369,E369:E369)","v":0}]
["0","0",{"$f":"COUNTIF($E$2:E370,E370:E370)","v":0}]
["0","0",{"$f":"COUNTIF($E$2:E371,E371:E371)","v":0}]
["0","0",{"$f":"COUNTIF($E$2:E372,E372:E372)","v":0}]
["0","0",{"$f":"COUNTIF($E$2:E373,E373:E373)","v":0}]
["0","0",{"$f":"COUNTIF($E$2:E374,E374:E374)","v":0}]
["0","0",{"$f":"COUNTIF($E$2:E375,E375:E375)","v":0}]
["0","0",{"$f":"COUNTIF($E$2:E376,E376:E376)","v":0}]
["0","0",{"$f":"COUNTIF($E$2:E377,E377:E377)","v":0}]
["0","0",{"$f":"COUNTIF($E$2:E378,E378:E378)","v":0}]
["0","0",{"$f":"COUNTIF($E$2:E379,E379:E379)","v":0}]
["0","0",{"$f":"COUNTIF($E$2:E380,E380:E380)","v":0}]
["0","0",{"$f":"COUNTIF($E$2:E381,E381:E381)","v":0}]
["0","0",{"$f":"COUNTIF($E$2:E382,E382:E382)","v":0}]
["0","0",{"$f":"COUNTIF($E$2:E383,E383:E383)","v":0}]
["0","0",{"$f":"COUNTIF($E$2:E384,E384:E384)","v":0}]
["0","0",{"$f":"COUNTIF($E$2:E385,E385:E385)","v":0}]
["0","0",{"$f":"COUNTIF($E$2:E386,E386:E386)","v":0}]
["0",{"$f":"D387&E387&C387","v":"0"},{"$f":"COUNTIF($E$2:E387,E387:E387)","v":0}]
["0","0",{"$f":"COUNTIF($E$2:E388,E388:E388)","v":0}]
["0","0",{"$f":"COUNTIF($E$2:E389,E389:E389)","v":0}]
["0","0",{"$f":"COUNTIF($E$2:E390,E390:E390)","v":0}]
["0","0",{"$f":"COUNTIF($E$2:E391,E391:E391)","v":0}]
["0","0",{"$f":"COUNTIF($E$2:E392,E392:E392)","v":0}]
["0","0",{"$f":"COUNTIF($E$2:E393,E393:E393)","v":0}]
["0","0",{"$f":"COUNTIF($E$2:E394,E394:E394)","v":0}]
["0","0",{"$f":"COUNTIF($E$2:E395,E395:E395)","v":0}]
["0","0",{"$f":"COUNTIF($E$2:E396,E396:E396)","v":0}]
["0","0",{"$f":"COUNTIF($E$2:E397,E397:E397)","v":0}]
["0","0",{"$f":"COUNTIF($E$2:E398,E398:E398)","v":0}]
["0","0",{"$f":"COUNTIF($E$2:E399,E399:E399)","v":0}]
["0","0",{"$f":"COUNTIF($E$2:E400,E400:E400)","v":0}]
["0","0",{"$f":"COUNTIF($E$2:E401,E401:E401)","v":0}]
[{"$f":"B402&F402","v":"0"},"0",{"$f":"COUNTIF($E$2:E402,E402:E402)","v":0}]
["0","0",{"$f":"COUNTIF($E$2:E403,E403:E403)","v":0}]
["0","0",{"$f":"COUNTIF($E$2:E404,E404:E404)","v":0}]
["0","0",{"$f":"COUNTIF($E$2:E405,E405:E405)","v":0}]
["0","0",{"$f":"COUNTIF($E$2:E406,E406:E406)","v":0}]
["0","0",{"$f":"COUNTIF($E$2:E407,E407:E407)","v":0}]
["0","0",{"$f":"COUNTIF($E$2:E408,E408:E408)","v":0}]
["0","0",{"$f":"COUNTIF($E$2:E409,E409:E409)","v":0}]
["0","0",{"$f":"COUNTIF($E$2:E410,E410:E410)","v":0}]
["0","0",{"$f":"COUNTIF($E$2:E411,E411:E411)","v":0}]
["0","0",{"$f":"COUNTIF($E$2:E412,E412:E412)","v":0}]
["0","0",{"$f":"COUNTIF($E$2:E413,E413:E413)","v":0}]
["0","0",{"$f":"COUNTIF($E$2:E414,E414:E414)","v":0}]
["0","0",{"$f":"COUNTIF($E$2:E415,E415:E415)","v":0}]
["0","0",{"$f":"COUNTIF($E$2:E416,E416:E416)","v":0}]
["0","0",{"$f":"COUNTIF($E$2:E417,E417:E417)","v":0}]
["0","0",{"$f":"COUNTIF($E$2:E418,E418:E418)","v":0}]
["0","0",{"$f":"COUNTIF($E$2:E419,E419:E419)","v":0}]
["0","0",{"$f":"COUNTIF($E$2:E420,E420:E420)","v":0}]
["0","0",{"$f":"COUNTIF($E$2:E421,E421:E421)","v":0}]
["0","0",{"$f":"COUNTIF($E$2:E422,E422:E422)","v":0}]
["0","0",{"$f":"COUNTIF($E$2:E423,E423:E423)","v":0}]
["0","0",{"$f":"COUNTIF($E$2:E424,E424:E424)","v":0}]
["0","0",{"$f":"COUNTIF($E$2:E425,E425:E425)","v":0}]
["0","0",{"$f":"COUNTIF($E$2:E426,E426:E426)","v":0}]
["0","0",{"$f":"COUNTIF($E$2:E427,E427:E427)","v":0}]
["0","0",{"$f":"COUNTIF($E$2:E428,E428:E428)","v":0}]
["0","0",{"$f":"COUNTIF($E$2:E429,E429:E429)","v":0}]
["0","0",{"$f":"COUNTIF($E$2:E430,E430:E430)","v":0}]
["0","0",{"$f":"COUNTIF($E$2:E431,E431:E431)","v":0}]
["0","0",{"$f":"COUNTIF($E$2:E432,E432:E432)","v":0}]
["0","0",{"$f":"COUNTIF($E$2:E433,E433:E433)","v":0}]
["0","0",{"$f":"COUNTIF($E$2:E434,E434:E434)","v":0}]
["0","0",{"$f":"COUNTIF($E$2:E435,E435:E435)","v":0}]
["0","0",{"$f":"COUNTIF($E$2:E436,E436:E436)","v":0}]
["0","0",{"$f":"COUNTIF($E$2:E437,E437:E437)","v":0}]
["0","0",{"$f":"COUNTIF($E$2:E438,E438:E438)","v":0}]
["0","0",{"$f":"COUNTIF($E$2:E439,E439:E439)","v":0}]
["0","0",{"$f":"COUNTIF($E$2:E440,E440:E440)","v":0}]
["0","0",{"$f":"COUNTIF($E$2:E441,E441:E441)","v":0}]
["0","0",{"$f":"COUNTIF($E$2:E442,E442:E442)","v":0}]
["0","0",{"$f":"COUNTIF($E$2:E443,E443:E443)","v":0}]
["0","0",{"$f":"COUNTIF($E$2:E444,E444:E444)","v":0}]
["0","0",{"$f":"COUNTIF($E$2:E445,E445:E445)","v":0}]
["0","0",{"$f":"COUNTIF($E$2:E446,E446:E446)","v":0}]
["0","0",{"$f":"COUNTIF($E$2:E447,E447:E447)","v":0}]
["0","0",{"$f":"COUNTIF($E$2:E448,E448:E448)","v":0}]
["0","0",{"$f":"COUNTIF($E$2:E449,E449:E449)","v":0}]
["0","0",{"$f":"COUNTIF($E$2:E450,E450:E450)","v":0}]
["0",{"$f":"D451&E451&C451","v":"0"},{"$f":"COUNTIF($E$2:E451,E451:E451)","v":0}]
["0","0",{"$f":"COUNTIF($E$2:E452,E452:E452)","v":0}]
["0","0",{"$f":"COUNTIF($E$2:E453,E453:E453)","v":0}]
["0","0",{"$f":"COUNTIF($E$2:E454,E454:E454)","v":0}]
["0","0",{"$f":"COUNTIF($E$2:E455,E455:E455)","v":0}]
["0","0",{"$f":"COUNTIF($E$2:E456,E456:E456)","v":0}]
["0","0",{"$f":"COUNTIF($E$2:E457,E457:E457)","v":0}]
["0","0",{"$f":"COUNTIF($E$2:E458,E458:E458)","v":0}]
["0","0",{"$f":"COUNTIF($E$2:E459,E459:E459)","v":0}]
["0","0",{"$f":"COUNTIF($E$2:E460,E460:E460)","v":0}]
["0","0",{"$f":"COUNTIF($E$2:E461,E461:E461)","v":0}]
["0","0",{"$f":"COUNTIF($E$2:E462,E462:E462)","v":0}]
["0","0",{"$f":"COUNTIF($E$2:E463,E463:E463)","v":0}]
["0","0",{"$f":"COUNTIF($E$2:E464,E464:E464)","v":0}]
["0","0",{"$f":"COUNTIF($E$2:E465,E465:E465)","v":0}]
[{"$f":"B466&F466","v":"0"},"0",{"$f":"COUNTIF($E$2:E466,E466:E466)","v":0}]
["0","0",{"$f":"COUNTIF($E$2:E467,E467:E467)","v":0}]
["0","0",{"$f":"COUNTIF($E$2:E468,E468:E468)","v":0}]
["0","0",{"$f":"COUNTIF($E$2:E469,E469:E469)","v":0}]
["0","0",{"$f":"COUNTIF($E$2:E470,E470:E470)","v":0}]
["0","0",{"$f":"COUNTIF($E$2:E471,E471:E471)","v":0}]
["0","0",{"$f":"COUNTIF($E$2:E472,E472:E472)","v":0}]
["0","0",{"$f":"COUNTIF($E$2:E473,E473:E473)","v":0}]
["0","0",{"$f":"COUNTIF($E$2:E474,E474:E474)","v":0}]
["0","0",{"$f":"COUNTIF($E$2:E475,E475:E475)","v":0}]
["0","0",{"$f":"COUNTIF($E$2:E476,E476:E476)","v":0}]
["0","0",{"$f":"COUNTIF($E$2:E477,E477:E477)","v":0}]
["0","0",{"$f":"COUNTIF($E$2:E478,E478:E478)","v":0}]
["0","0",{"$f":"COUNTIF($E$2:E479,E479:E479)","v":0}]
["0","0",{"$f":"COUNTIF($E$2:E480,E480:E480)","v":0}]
["0","0",{"$f":"COUNTIF($E$2:E481,E481:E481)","v":0}]
["0","0",{"$f":"COUNTIF($E$2:E482,E482:E482)","v":0}]
["0","0",{"$f":"COUNTIF($E$2:E483,E483:E483)","v":0}]
["0","0",{"$f":"COUNTIF($E$2:E484,E484:E484)","v":0}]
["0","0",{"$f":"COUNTIF($E$2:E485,E485:E485)","v":0}]
["0","0",{"$f":"COUNTIF($E$2:E486,E486:E486)","v":0}]
["0","0",{"$f":"COUNTIF($E$2:E487,E487:E487)","v":0}]
["0","0",{"$f":"COUNTIF($E$2:E488,E488:E488)","v":0}]
["0","0",{"$f":"COUNTIF($E$2:E489,E489:E489)","v":0}]
["0","0",{"$f":"COUNTIF($E$2:E490,E490:E490)","v":0}]
["0","0",{"$f":"COUNTIF($E$2:E491,E491:E491)","v":0}]
["0","0",{"$f":"COUNTIF($E$2:E492,E492:E492)","v":0}]
["0","0",{"$f":"COUNTIF($E$2:E493,E493:E493)","v":0}]
["0","0",{"$f":"COUNTIF($E$2:E494,E494:E494)","v":0}]
["0","0",{"$f":"COUNTIF($E$2:E495,E495:E495)","v":0}]
["0","0",{"$f":"COUNTIF($E$2:E496,E496:E496)","v":0}]
["0","0",{"$f":"COUNTIF($E$2:E497,E497:E497)","v":0}]
["0","0",{"$f":"COUNTIF($E$2:E498,E498:E498)","v":0}]
["0","0",{"$f":"COUNTIF($E$2:E499,E499:E499)","v":0}]
["0","0",{"$f":"COUNTIF($E$2:E500,E500:E500)","v":0}]
["0","0",{"$f":"COUNTIF($E$2:E501,E501:E501)","v":0}]
["0","0",{"$f":"COUNTIF($E$2:E502,E502:E502)","v":0}]
["0","0",{"$f":"COUNTIF($E$2:E503,E503:E503)","v":0}]
["0","0",{"$f":"COUNTIF($E$2:E504,E504:E504)","v":0}]
["0","0",{"$f":"COUNTIF($E$2:E505,E505:E505)","v":0}]
["0","0",{"$f":"COUNTIF($E$2:E506,E506:E506)","v":0}]
["0","0",{"$f":"COUNTIF($E$2:E507,E507:E507)","v":0}]
["0","0",{"$f":"COUNTIF($E$2:E508,E508:E508)","v":0}]
["0","0",{"$f":"COUNTIF($E$2:E509,E509:E509)","v":0}]
["0","0",{"$f":"COUNTIF($E$2:E510,E510:E510)","v":0}]
["0","0",{"$f":"COUNTIF($E$2:E511,E511:E511)","v":0}]
["0","0",{"$f":"COUNTIF($E$2:E512,E512:E512)","v":0}]
["0","0",{"$f":"COUNTIF($E$2:E513,E513:E513)","v":0}]
["0","0",{"$f":"COUNTIF($E$2:E514,E514:E514)","v":0}]
["0",{"$f":"D515&E515&C515","v":"0"},{"$f":"COUNTIF($E$2:E515,E515:E515)","v":0}]
["0","0",{"$f":"COUNTIF($E$2:E516,E516:E516)","v":0}]
["0","0",{"$f":"COUNTIF($E$2:E517,E517:E517)","v":0}]
["0","0",{"$f":"COUNTIF($E$2:E518,E518:E518)","v":0}]
["0","0",{"$f":"COUNTIF($E$2:E519,E519:E519)","v":0}]
["0","0",{"$f":"COUNTIF($E$2:E520,E520:E520)","v":0}]
["0","0",{"$f":"COUNTIF($E$2:E521,E521:E521)","v":0}]
["0","0",{"$f":"COUNTIF($E$2:E522,E522:E522)","v":0}]
["0","0",{"$f":"COUNTIF($E$2:E523,E523:E523)","v":0}]
["0","0",{"$f":"COUNTIF($E$2:E524,E524:E524)","v":0}]
["0","0",{"$f":"COUNTIF($E$2:E525,E525:E525)","v":0}]
["0","0",{"$f":"COUNTIF($E$2:E526,E526:E526)","v":0}]
["0","0",{"$f":"COUNTIF($E$2:E527,E527:E527)","v":0}]
["0","0",{"$f":"COUNTIF($E$2:E528,E528:E528)","v":0}]
["0","0",{"$f":"COUNTIF($E$2:E529,E529:E529)","v":0}]
[{"$f":"B530&F530","v":"0"},"0",{"$f":"COUNTIF($E$2:E530,E530:E530)","v":0}]
["0","0",{"$f":"COUNTIF($E$2:E531,E531:E531)","v":0}]
["0","0",{"$f":"COUNTIF($E$2:E532,E532:E532)","v":0}]
["0","0",{"$f":"COUNTIF($E$2:E533,E533:E533)","v":0}]
["0","0",{"$f":"COUNTIF($E$2:E534,E534:E534)","v":0}]
["0","0",{"$f":"COUNTIF($E$2:E535,E535:E535)","v":0}]
["0","0",{"$f":"COUNTIF($E$2:E536,E536:E536)","v":0}]
["0","0",{"$f":"COUNTIF($E$2:E537,E537:E537)","v":0}]
["0","0",{"$f":"COUNTIF($E$2:E538,E538:E538)","v":0}]
["0","0",{"$f":"COUNTIF($E$2:E539,E539:E539)","v":0}]
["0","0",{"$f":"COUNTIF($E$2:E540,E540:E540)","v":0}]
["0","0",{"$f":"COUNTIF($E$2:E541,E541:E541)","v":0}]
["0","0",{"$f":"COUNTIF($E$2:E542,E542:E542)","v":0}]
["0","0",{"$f":"COUNTIF($E$2:E543,E543:E543)","v":0}]
["0","0",{"$f":"COUNTIF($E$2:E544,E544:E544)","v":0}]
["0","0",{"$f":"COUNTIF($E$2:E545,E545:E545)","v":0}]
["0","0",{"$f":"COUNTIF($E$2:E546,E546:E546)","v":0}]
["0","0",{"$f":"COUNTIF($E$2:E547,E547:E547)","v":0}]
["0","0",{"$f":"COUNTIF($E$2:E548,E548:E548)","v":0}]
["0","0",{"$f":"COUNTIF($E$2:E549,E549:E549)","v":0}]
["0","0",{"$f":"COUNTIF($E$2:E550,E550:E550)","v":0}]
["0","0",{"$f":"COUNTIF($E$2:E551,E551:E551)","v":0}]
["0","0",{"$f":"COUNTIF($E$2:E552,E552:E552)","v":0}]
["0","0",{"$f":"COUNTIF($E$2:E553,E553:E553)","v":0}]
["0","0",{"$f":"COUNTIF($E$2:E554,E554:E554)","v":0}]
["0","0",{"$f":"COUNTIF($E$2:E555,E555:E555)","v":0}]
["0","0",{"$f":"COUNTIF($E$2:E556,E556:E556)","v":0}]
["0","0",{"$f":"COUNTIF($E$2:E557,E557:E557)","v":0}]
["0","0",{"$f":"COUNTIF($E$2:E558,E558:E558)","v":0}]
["0","0",{"$f":"COUNTIF($E$2:E559,E559:E559)","v":0}]
["0","0",{"$f":"COUNTIF($E$2:E560,E560:E560)","v":0}]
["0","0",{"$f":"COUNTIF($E$2:E561,E561:E561)","v":0}]
["0","0",{"$f":"COUNTIF($E$2:E562,E562:E562)","v":0}]
["0","0",{"$f":"COUNTIF($E$2:E563,E563:E563)","v":0}]
["0","0",{"$f":"COUNTIF($E$2:E564,E564:E564)","v":0}]
["0","0",{"$f":"COUNTIF($E$2:E565,E565:E565)","v":0}]
["0","0",{"$f":"COUNTIF($E$2:E566,E566:E566)","v":0}]
["0","0",{"$f":"COUNTIF($E$2:E567,E567:E567)","v":0}]
["0","0",{"$f":"COUNTIF($E$2:E568,E568:E568)","v":0}]
["0","0",{"$f":"COUNTIF($E$2:E569,E569:E569)","v":0}]
["0","0",{"$f":"COUNTIF($E$2:E570,E570:E570)","v":0}]
["0","0",{"$f":"COUNTIF($E$2:E571,E571:E571)","v":0}]
["0","0",{"$f":"COUNTIF($E$2:E572,E572:E572)","v":0}]
["0","0",{"$f":"COUNTIF($E$2:E573,E573:E573)","v":0}]
["0","0",{"$f":"COUNTIF($E$2:E574,E574:E574)","v":0}]
["0","0",{"$f":"COUNTIF($E$2:E575,E575:E575)","v":0}]
["0","0",{"$f":"COUNTIF($E$2:E576,E576:E576)","v":0}]
["0","0",{"$f":"COUNTIF($E$2:E577,E577:E577)","v":0}]
["0","0",{"$f":"COUNTIF($E$2:E578,E578:E578)","v":0}]
["0",{"$f":"D579&E579&C579","v":"0"},{"$f":"COUNTIF($E$2:E579,E579:E579)","v":0}]
["0","0",{"$f":"COUNTIF($E$2:E580,E580:E580)","v":0}]
["0","0",{"$f":"COUNTIF($E$2:E581,E581:E581)","v":0}]
["0","0",{"$f":"COUNTIF($E$2:E582,E582:E582)","v":0}]
["0","0",{"$f":"COUNTIF($E$2:E583,E583:E583)","v":0}]
["0","0",{"$f":"COUNTIF($E$2:E584,E584:E584)","v":0}]
["0","0",{"$f":"COUNTIF($E$2:E585,E585:E585)","v":0}]
["0","0",{"$f":"COUNTIF($E$2:E586,E586:E586)","v":0}]
["0","0",{"$f":"COUNTIF($E$2:E587,E587:E587)","v":0}]
["0","0",{"$f":"COUNTIF($E$2:E588,E588:E588)","v":0}]
["0","0",{"$f":"COUNTIF($E$2:E589,E589:E589)","v":0}]
["0","0",{"$f":"COUNTIF($E$2:E590,E590:E590)","v":0}]
["0","0",{"$f":"COUNTIF($E$2:E591,E591:E591)","v":0}]
["0","0",{"$f":"COUNTIF($E$2:E592,E592:E592)","v":0}]
["0","0",{"$f":"COUNTIF($E$2:E593,E593:E593)","v":0}]
[{"$f":"B594&F594","v":"0"},"0",{"$f":"COUNTIF($E$2:E594,E594:E594)","v":0}]
["0","0",{"$f":"COUNTIF($E$2:E595,E595:E595)","v":0}]
["0","0",{"$f":"COUNTIF($E$2:E596,E596:E596)","v":0}]
["0","0",{"$f":"COUNTIF($E$2:E597,E597:E597)","v":0}]
["0","0",{"$f":"COUNTIF($E$2:E598,E598:E598)","v":0}]
["0","0",{"$f":"COUNTIF($E$2:E599,E599:E599)","v":0}]
["0","0",{"$f":"COUNTIF($E$2:E600,E600:E600)","v":0}]